Workbook

Sheet Menu
B2: Tariffs rates: | C2: 2013/14
B4: Non-local authority | C4: Local authority
B5: WEPS | C5: Megaflex tariff
B6: Megaflex tariff | C6: Nightsave large tariff
B7: Nightsave large tariff | C7: Miniflex tariff
B8: Miniflex tariff | C8: Nightsave small tariff
B9: Nightsave small tariff | C9: Businessrate tariff
B10: Businessrate tariff | C10: Public lighting tariff
C11: Ruraflex tariff
C12: Nightsave rural tariff
B13: Public lighting tariff | C13: Landrate tariff
B14: Ruraflex tariff | C14: Homepower tariff
B15: Nightsave rural tariff | C15: Homelight tariff
B16: Landrate tariff
B17: Homepower tariff
B18: Homelight tariff
B21: Non-local authority tariffs means the tariffs applicable to Eskom direct customers and exclude the local authority tariffs.
B22: Local authority tariffs means tariffs applicable to municipal bulk points.

Sheet WEPS inc
R1: =SUM(E8:E23,G8:G23,I8:I23,K8:K23,M8:M23,O8:O23,Q8:Q23,#REF!,#REF!,#REF!,#REF!,#REF!,#REF!,#REF!,#REF!) - '[5]Non Local 201314'!$AL$391 -> 
B2: =Menu!$B$5 & " tariff" -> WEPS tariff | M2: =Menu!$B$4 -> Non-local authority
E4: Active energy charge [c/kWh] | Q4: Transmission network charges [R/kVA/m]
C5: Transmission zone | E5: High demand season [Jun - Aug] | K5: Low demand season [Sep - May] | Q5: Charged on utilised capacity
D6: Voltage | E6: Peak | G6: Standard | I6: Off Peak | K6: Peak | M6: Standard | O6: Off Peak
F7: VAT incl | H7: VAT incl | J7: VAT incl | L7: VAT incl | N7: VAT incl | P7: VAT incl | R7: VAT incl
C8: ≤ 300km | D8: < 500V | E8: ='[5]Non Local 201314'!P391 -> 204.55 | F8: =ROUND(E8 * (1 + VAT), 2) -> 233.19 | G8: ='[5]Non Local 201314'!Q391 -> 62.23 | H8: =ROUND(G8 * (1 + VAT), 2) -> 70.94 | I8: ='[5]Non Local 201314'!R391 -> 33.97 | J8: =ROUND(I8 * (1 + VAT), 2) -> 38.73 | K8: ='[5]Non Local 201314'!S391 -> 66.98 | L8: =ROUND(K8 * (1 + VAT), 2) -> 76.36 | M8: ='[5]Non Local 201314'!T391 -> 46.22 | N8: =ROUND(M8 * (1 + VAT), 2) -> 52.69 | O8: ='[5]Non Local 201314'!U391 -> 29.46 | P8: =ROUND(O8 * (1 + VAT), 2) -> 33.58 | Q8: ='[5]Non Local 201314'!Z391 -> 5.85 | R8: =ROUND(Q8 * (1 + VAT), 2) -> 6.67
D9: ≥ 500V & < 66kV | E9: ='[5]Non Local 201314'!P392 -> 201.33 | F9: 229.52 | G9: ='[5]Non Local 201314'!Q392 -> 60.99 | H9: 69.53 | I9: ='[5]Non Local 201314'!R392 -> 33.12 | J9: 37.76 | K9: ='[5]Non Local 201314'!S392 -> 65.68 | L9: 74.88 | M9: ='[5]Non Local 201314'!T392 -> 45.2 | N9: 51.53 | O9: ='[5]Non Local 201314'!U392 -> 28.68 | P9: 32.7 | Q9: ='[5]Non Local 201314'!Z392 -> 5.35 | R9: 6.1
D10: ≥ 66kV & ≤ 132kV | E10: ='[5]Non Local 201314'!P393 -> 194.96 | F10: 222.25 | G10: ='[5]Non Local 201314'!Q393 -> 59.06 | H10: 67.33 | I10: ='[5]Non Local 201314'!R393 -> 32.07 | J10: 36.56 | K10: ='[5]Non Local 201314'!S393 -> 63.6 | L10: 72.5 | M10: ='[5]Non Local 201314'!T393 -> 43.77 | N10: 49.9 | O10: ='[5]Non Local 201314'!U393 -> 27.77 | P10: 31.66 | Q10: ='[5]Non Local 201314'!Z393 -> 5.21 | R10: 5.94
D11: > 132kV* | E11: ='[5]Non Local 201314'!P394 -> 183.75 | F11: 209.48 | G11: ='[5]Non Local 201314'!Q394 -> 55.66 | H11: 63.45 | I11: ='[5]Non Local 201314'!R394 -> 30.23 | J11: 34.46 | K11: ='[5]Non Local 201314'!S394 -> 59.94 | L11: 68.33 | M11: ='[5]Non Local 201314'!T394 -> 41.25 | N11: 47.03 | O11: ='[5]Non Local 201314'!U394 -> 26.18 | P11: 29.85 | Q11: ='[5]Non Local 201314'!Z394 -> 6.58 | R11: 7.5
C12: > 300km and ≤ 600km | D12: < 500V | E12: ='[5]Non Local 201314'!P395 -> 206.21 | F12: 235.08 | G12: ='[5]Non Local 201314'!Q395 -> 62.48 | H12: 71.23 | I12: ='[5]Non Local 201314'!R395 -> 33.93 | J12: 38.68 | K12: ='[5]Non Local 201314'!S395 -> 67.27 | L12: 76.69 | M12: ='[5]Non Local 201314'!T395 -> 46.31 | N12: 52.79 | O12: ='[5]Non Local 201314'!U395 -> 29.38 | P12: 33.49 | Q12: ='[5]Non Local 201314'!Z395 -> 5.9 | R12: 6.73
D13: ≥ 500V & < 66kV | E13: ='[5]Non Local 201314'!P396 -> 203.34 | F13: 231.81 | G13: ='[5]Non Local 201314'!Q396 -> 61.6 | H13: 70.22 | I13: ='[5]Non Local 201314'!R396 -> 33.45 | J13: 38.13 | K13: ='[5]Non Local 201314'!S396 -> 66.34 | L13: 75.63 | M13: ='[5]Non Local 201314'!T396 -> 45.65 | N13: 52.04 | O13: ='[5]Non Local 201314'!U396 -> 28.96 | P13: 33.01 | Q13: ='[5]Non Local 201314'!Z396 -> 5.4 | R13: 6.16
D14: ≥ 66kV & ≤ 132kV | E14: ='[5]Non Local 201314'!P397 -> 196.88 | F14: 224.44 | G14: ='[5]Non Local 201314'!Q397 -> 59.64 | H14: 67.99 | I14: ='[5]Non Local 201314'!R397 -> 32.38 | J14: 36.91 | K14: ='[5]Non Local 201314'!S397 -> 64.22 | L14: 73.21 | M14: ='[5]Non Local 201314'!T397 -> 44.19 | N14: 50.38 | O14: ='[5]Non Local 201314'!U397 -> 28.04 | P14: 31.97 | Q14: ='[5]Non Local 201314'!Z397 -> 5.25 | R14: 5.99
D15: > 132kV* | E15: ='[5]Non Local 201314'!P398 -> 185.58 | F15: 211.56 | G15: ='[5]Non Local 201314'!Q398 -> 56.22 | H15: 64.09 | I15: ='[5]Non Local 201314'!R398 -> 30.52 | J15: 34.79 | K15: ='[5]Non Local 201314'!S398 -> 60.53 | L15: 69 | M15: ='[5]Non Local 201314'!T398 -> 41.66 | N15: 47.49 | O15: ='[5]Non Local 201314'!U398 -> 26.43 | P15: 30.13 | Q15: ='[5]Non Local 201314'!Z398 -> 6.65 | R15: 7.58
C16: > 600km and ≤ 900km | D16: < 500V | E16: ='[5]Non Local 201314'!P399 -> 208.27 | F16: 237.43 | G16: ='[5]Non Local 201314'!Q399 -> 63.08 | H16: 71.91 | I16: ='[5]Non Local 201314'!R399 -> 34.25 | J16: 39.05 | K16: ='[5]Non Local 201314'!S399 -> 67.94 | L16: 77.45 | M16: ='[5]Non Local 201314'!T399 -> 46.76 | N16: 53.31 | O16: ='[5]Non Local 201314'!U399 -> 29.66 | P16: 33.81 | Q16: ='[5]Non Local 201314'!Z399 -> 5.97 | R16: 6.81
D17: ≥ 500V & < 66kV | E17: ='[5]Non Local 201314'!P400 -> 205.38 | F17: 234.13 | G17: ='[5]Non Local 201314'!Q400 -> 62.22 | H17: 70.93 | I17: ='[5]Non Local 201314'!R400 -> 33.79 | J17: 38.52 | K17: ='[5]Non Local 201314'!S400 -> 67 | L17: 76.38 | M17: ='[5]Non Local 201314'!T400 -> 46.11 | N17: 52.57 | O17: ='[5]Non Local 201314'!U400 -> 29.25 | P17: 33.35 | Q17: ='[5]Non Local 201314'!Z400 -> 5.44 | R17: 6.2
D18: ≥ 66kV & ≤ 132kV | E18: ='[5]Non Local 201314'!P401 -> 198.88 | F18: 226.72 | G18: ='[5]Non Local 201314'!Q401 -> 60.25 | H18: 68.69 | I18: ='[5]Non Local 201314'!R401 -> 32.71 | J18: 37.29 | K18: ='[5]Non Local 201314'!S401 -> 64.87 | L18: 73.95 | M18: ='[5]Non Local 201314'!T401 -> 44.65 | N18: 50.9 | O18: ='[5]Non Local 201314'!U401 -> 28.32 | P18: 32.28 | Q18: ='[5]Non Local 201314'!Z401 -> 5.29 | R18: 6.03
D19: > 132kV* | E19: ='[5]Non Local 201314'!P402 -> 187.45 | F19: 213.69 | G19: ='[5]Non Local 201314'!Q402 -> 56.78 | H19: 64.73 | I19: ='[5]Non Local 201314'!R402 -> 30.84 | J19: 35.16 | K19: ='[5]Non Local 201314'!S402 -> 61.15 | L19: 69.71 | M19: ='[5]Non Local 201314'!T402 -> 42.08 | N19: 47.97 | O19: ='[5]Non Local 201314'!U402 -> 26.7 | P19: 30.44 | Q19: ='[5]Non Local 201314'!Z402 -> 6.74 | R19: 7.68
C20: > 900km | D20: < 500V | E20: ='[5]Non Local 201314'!P403 -> 210.36 | F20: 239.81 | G20: ='[5]Non Local 201314'!Q403 -> 63.74 | H20: 72.66 | I20: ='[5]Non Local 201314'!R403 -> 34.61 | J20: 39.46 | K20: ='[5]Non Local 201314'!S403 -> 68.63 | L20: 78.24 | M20: ='[5]Non Local 201314'!T403 -> 47.23 | N20: 53.84 | O20: ='[5]Non Local 201314'!U403 -> 29.97 | P20: 34.17 | Q20: ='[5]Non Local 201314'!Z403 -> 5.99 | R20: 6.83
D21: ≥ 500V & < 66kV | E21: ='[5]Non Local 201314'!P404 -> 207.43 | F21: 236.47 | G21: ='[5]Non Local 201314'!Q404 -> 62.83 | H21: 71.63 | I21: ='[5]Non Local 201314'!R404 -> 34.11 | J21: 38.89 | K21: ='[5]Non Local 201314'!S404 -> 67.66 | L21: 77.13 | M21: ='[5]Non Local 201314'!T404 -> 46.56 | N21: 53.08 | O21: ='[5]Non Local 201314'!U404 -> 29.54 | P21: 33.68 | Q21: ='[5]Non Local 201314'!Z404 -> 5.51 | R21: 6.28
D22: ≥ 66kV & ≤ 132kV | E22: ='[5]Non Local 201314'!P405 -> 200.88 | F22: 229 | G22: ='[5]Non Local 201314'!Q405 -> 60.85 | H22: 69.37 | I22: ='[5]Non Local 201314'!R405 -> 33.04 | J22: 37.67 | K22: ='[5]Non Local 201314'!S405 -> 65.52 | L22: 74.69 | M22: ='[5]Non Local 201314'!T405 -> 45.1 | N22: 51.41 | O22: ='[5]Non Local 201314'!U405 -> 28.61 | P22: 32.62 | Q22: ='[5]Non Local 201314'!Z405 -> 5.32 | R22: 6.06
D23: > 132kV* | E23: ='[5]Non Local 201314'!P406 -> 189.29 | F23: 215.79 | G23: ='[5]Non Local 201314'!Q406 -> 57.37 | H23: 65.4 | I23: ='[5]Non Local 201314'!R406 -> 31.17 | J23: 35.53 | K23: ='[5]Non Local 201314'!S406 -> 61.78 | L23: 70.43 | M23: ='[5]Non Local 201314'!T406 -> 42.53 | N23: 48.48 | O23: ='[5]Non Local 201314'!U406 -> 27 | P23: 30.78 | Q23: ='[5]Non Local 201314'!Z406 -> 6.79 | R23: 7.74
D24: * 132 kV or Transmission connected
C25: Distribution network charges
E26: Network access charge [R/kVA/m] | G26: Network demand charge [R/kVA/m] | I26: Urban low voltage subsidy charge [R/kVA/m]
N27: Reliability service charge [c/kWh]
C28: Voltage | F28: VAT incl | H28: VAT incl | J28: VAT incl | L28: Voltage | O28: VAT incl
C29: < 500V | E29: ='[5]Non Local 201314'!AA391 -> 11.63 | F29: =ROUND(E29 * (1 + VAT), 2) -> 13.26 | G29: ='[5]Non Local 201314'!AB391 -> 22.05 | H29: =ROUND(G29 * (1 + VAT), 2) -> 25.14 | I29: ='[5]Non Local 201314'!AN391 -> 0 | J29: =ROUND(I29 * (1 + VAT), 2) -> 0 | L29: < 500V | N29: ='[5]Non Local 201314'!Y391 -> 0.27 | O29: =ROUND(N29 * (1 + VAT), 2) -> 0.31
C30: ≥ 500V & < 66kV | E30: ='[5]Non Local 201314'!AA392 -> 10.67 | F30: =ROUND(E30 * (1 + VAT), 2) -> 12.16 | G30: ='[5]Non Local 201314'!AB392 -> 20.23 | H30: =ROUND(G30 * (1 + VAT), 2) -> 23.06 | I30: ='[5]Non Local 201314'!AN392 -> 0 | J30: =ROUND(I30 * (1 + VAT), 2) -> 0 | L30: ≥ 500V & < 66kV | N30: ='[5]Non Local 201314'!Y392 -> 0.26 | O30: =ROUND(N30 * (1 + VAT), 2) -> 0.3
C31: ≥ 66kV & ≤ 132kV | E31: ='[5]Non Local 201314'!AA393 -> 3.81 | F31: =ROUND(E31 * (1 + VAT), 2) -> 4.34 | G31: ='[5]Non Local 201314'!AB393 -> 7.05 | H31: =ROUND(G31 * (1 + VAT), 2) -> 8.04 | I31: ='[5]Non Local 201314'!AN393 -> 9.39 | J31: =ROUND(I31 * (1 + VAT), 2) -> 10.7 | L31: ≥ 66kV & ≤ 132kV | N31: ='[5]Non Local 201314'!Y393 -> 0.25 | O31: =ROUND(N31 * (1 + VAT), 2) -> 0.29
C32: > 132kV / Transmission connected | E32: ='[5]Non Local 201314'!AA394 -> 0 | F32: =ROUND(E32 * (1 + VAT), 2) -> 0 | G32: ='[5]Non Local 201314'!AB394 -> 0 | H32: =ROUND(G32 * (1 + VAT), 2) -> 0 | I32: ='[5]Non Local 201314'!AN394 -> 9.39 | J32: =ROUND(I32 * (1 + VAT), 2) -> 10.7 | L32: > 132kV / Transmission connected | N32: ='[5]Non Local 201314'!Y394 -> 0.23 | O32: =ROUND(N32 * (1 + VAT), 2) -> 0.26
C34: Customer categories | E34: Service charge [R/account/day] | G34: Administration charge [R/POD/day] | L34: Reactive energy charge [c/kVArh]
F36: VAT incl | H36: VAT incl | L36: High season | N36: Low season
C37: ≤ 100 kVA | E37: ='Miniflex inc'!E29 -> 9.49 | F37: ='Miniflex inc'!F29 -> 10.82 | G37: ='Miniflex inc'!G29 -> 2.08 | H37: ='Miniflex inc'!H29 -> 2.37 | M37: VAT incl | O37: VAT incl
C38: > 100 kVA & ≤ 500 kVA | E38: ='Miniflex inc'!E30 -> 43.38 | F38: ='Miniflex inc'!F30 -> 49.45 | G38: ='Miniflex inc'!G30 -> 12.16 | H38: ='Miniflex inc'!H30 -> 13.86 | L38: ='[5]Non Local 201314'!$V$391 -> 9.4 | M38: =ROUND(L38 * (1 + VAT), 2) -> 10.72 | N38: 0 | O38: =ROUND(N38 * (1 + VAT), 2) -> 0
C39: > 500 kVA & ≤ 1 MVA | E39: ='Miniflex inc'!E31 -> 133.5 | F39: ='Miniflex inc'!F31 -> 152.19 | G39: ='Miniflex inc'!G31 -> 24.17 | H39: ='Miniflex inc'!H31 -> 27.55
C40: > 1 MVA | E40: ='Miniflex inc'!E32 -> 133.5 | F40: ='Miniflex inc'!F32 -> 152.19 | G40: ='Miniflex inc'!G32 -> 60.17 | H40: ='Miniflex inc'!H32 -> 68.59
C41: Key customers | E41: ='[5]Non Local 201314'!$O$391 -> 2616.06 | F41: =ROUND(E41 * (1 + VAT), 2) -> 2982.31 | G41: ='[5]Non Local 201314'!$J$391 -> 83.55 | H41: =ROUND(G41 * (1 + VAT), 2) -> 95.25
C44: Electrification and rural network subsidy charge [c/kWh] | E44: Affordability subsidy charge [c/kWh] payable by non-local authority tariffs
C46: All seasons | E46: All seasons
D47: VAT incl | F47: VAT incl
C48: ='[5]Non Local 201314'!$AO$391+'[5]Non Local 201314'!$AM$391 -> 5.2 | D48: =ROUND(C48 * (1 + VAT), 2) -> 5.93 | E48: ='[5]Non Local 201314'!$AP$391 -> 2.07 | F48: =ROUND(E48 * (1 + VAT), 2) -> 2.36
C51: Active energy charge excluding losses [c/kWh]
C52: High demand season [Jun - Aug] | I52: Low demand season [Sep - May]
C53: Peak | E53: Standard | G53: Off Peak | I53: Peak | K53: Standard | M53: Off Peak
D54: VAT incl | F54: VAT incl | H54: VAT incl | J54: VAT incl | L54: VAT incl | N54: VAT incl
C55: =ROUND(E11/'Loss Factors'!$I$5, 2) -> 181.8 | D55: =ROUND(C55 * (1 + VAT), 2) -> 207.25 | E55: =ROUND(G11/'Loss Factors'!$I$5, 2) -> 55.07 | F55: =ROUND(E55 * (1 + VAT), 2) -> 62.78 | G55: =ROUND(I11/'Loss Factors'!$I$5, 2) -> 29.91 | H55: =ROUND(G55 * (1 + VAT), 2) -> 34.1 | I55: =ROUNDDOWN(K11/'Loss Factors'!$I$5, 2) -> 59.3 | J55: =ROUND(I55 * (1 + VAT), 2) -> 67.6 | K55: =ROUND(M11/'Loss Factors'!$I$5, 2) -> 40.81 | L55: =ROUND(K55 * (1 + VAT), 2) -> 46.52 | M55: =ROUND(O11/'Loss Factors'!$I$5, 2) -> 25.9 | N55: =ROUND(M55 * (1 + VAT), 2) -> 29.53
C57: Active energy charge excluding losses and enviromental levy [c/kWh]
C58: High demand season [Jun - Aug] | I58: Low demand season [Sep - May]
C59: Peak | E59: Standard | G59: Off Peak | I59: Peak | K59: Standard | M59: Off Peak
D60: VAT incl | F60: VAT incl | H60: VAT incl | J60: VAT incl | L60: VAT incl | N60: VAT incl
C61: =C55-ROUND('Env levy'!$C$8,2) -> 178.31 | D61: =ROUND(C61 * (1 + VAT), 2) -> 203.27 | E61: =E55-ROUND('Env levy'!$C$8,2) -> 51.58 | F61: =ROUND(E61 * (1 + VAT), 2) -> 58.8 | G61: =G55-ROUND('Env levy'!$C$8,2) -> 26.42 | H61: =ROUND(G61 * (1 + VAT), 2) -> 30.12 | I61: =I55-ROUND('Env levy'!$C$8,2) -> 55.81 | J61: =ROUND(I61 * (1 + VAT), 2) -> 63.62 | K61: =K55-ROUND('Env levy'!$C$8,2) -> 37.32 | L61: =ROUND(K61 * (1 + VAT), 2) -> 42.54 | M61: =M55-ROUND('Env levy'!$C$8,2) -> 22.41 | N61: =ROUND(M61 * (1 + VAT), 2) -> 25.55

Sheet WEPS Munic inc
R1: =SUM(E8:E23,G8:G23,I8:I23,K8:K23,M8:M23,O8:O23,Q8:Q23,#REF!,#REF!,#REF!,#REF!,#REF!,#REF!,#REF!,#REF!) - '[5]Local 201314'!$AL$391 -> 
B2: =Menu!$B$5 & " tariff" -> WEPS tariff | M2: =Menu!$C$4 -> Local authority
E4: Active energy charge [c/kWh] | Q4: Transmission network charges [R/kVA/m]
C5: Transmission zone | E5: High demand season [Jun - Aug] | K5: Low demand season [Sep - May] | Q5: Charged on utilised capacity
D6: Voltage | E6: Peak | G6: Standard | I6: Off Peak | K6: Peak | M6: Standard | O6: Off Peak
F7: VAT incl | H7: VAT incl | J7: VAT incl | L7: VAT incl | N7: VAT incl | P7: VAT incl | R7: VAT incl
C8: ≤ 300km | D8: < 500V | E8: ='[5]Local 201314'!P300 -> 209.42 | F8: =ROUND(E8 * (1 + VAT), 2) -> 238.74 | G8: ='[5]Local 201314'!Q300 -> 63.72 | H8: =ROUND(G8 * (1 + VAT), 2) -> 72.64 | I8: ='[5]Local 201314'!R300 -> 34.78 | J8: =ROUND(I8 * (1 + VAT), 2) -> 39.65 | K8: ='[5]Local 201314'!S300 -> 68.57 | L8: =ROUND(K8 * (1 + VAT), 2) -> 78.17 | M8: ='[5]Local 201314'!T300 -> 47.32 | N8: =ROUND(M8 * (1 + VAT), 2) -> 53.94 | O8: ='[5]Local 201314'!U300 -> 30.16 | P8: =ROUND(O8 * (1 + VAT), 2) -> 34.38 | Q8: ='[5]Local 201314'!Z300 -> 5.83 | R8: =ROUND(Q8 * (1 + VAT), 2) -> 6.65 | U8: =E8-'Megaflex Munic inc'!E8 -> 0 | V8: =F8-'Megaflex Munic inc'!F8 -> 0 | W8: =G8-'Megaflex Munic inc'!G8 -> 0 | X8: =H8-'Megaflex Munic inc'!H8 -> 0 | Y8: =I8-'Megaflex Munic inc'!I8 -> 0 | Z8: =J8-'Megaflex Munic inc'!J8 -> 0 | AA8: =K8-'Megaflex Munic inc'!K8 -> 0 | AB8: =L8-'Megaflex Munic inc'!L8 -> 0 | AC8: =M8-'Megaflex Munic inc'!M8 -> 0 | AD8: =N8-'Megaflex Munic inc'!N8 -> 0 | AE8: =O8-'Megaflex Munic inc'!O8 -> 0 | AF8: =P8-'Megaflex Munic inc'!P8 -> 0
D9: ≥ 500V & < 66kV | E9: ='[5]Local 201314'!P301 -> 206.12 | F9: 234.98 | G9: ='[5]Local 201314'!Q301 -> 62.45 | H9: 71.19 | I9: ='[5]Local 201314'!R301 -> 33.91 | J9: 38.66 | K9: ='[5]Local 201314'!S301 -> 67.24 | L9: 76.65 | M9: ='[5]Local 201314'!T301 -> 46.28 | N9: 52.76 | O9: ='[5]Local 201314'!U301 -> 29.36 | P9: 33.47 | Q9: ='[5]Local 201314'!Z301 -> 5.32 | R9: 6.06 | U9: =E9-'Megaflex Munic inc'!E9 -> 0 | V9: =F9-'Megaflex Munic inc'!F9 -> 0 | W9: =G9-'Megaflex Munic inc'!G9 -> 0 | X9: =H9-'Megaflex Munic inc'!H9 -> 0 | Y9: =I9-'Megaflex Munic inc'!I9 -> 0 | Z9: =J9-'Megaflex Munic inc'!J9 -> 0 | AA9: =K9-'Megaflex Munic inc'!K9 -> 0 | AB9: =L9-'Megaflex Munic inc'!L9 -> 0 | AC9: =M9-'Megaflex Munic inc'!M9 -> 0 | AD9: =N9-'Megaflex Munic inc'!N9 -> 0 | AE9: =O9-'Megaflex Munic inc'!O9 -> 0 | AF9: =P9-'Megaflex Munic inc'!P9 -> 0
D10: ≥ 66kV & ≤ 132kV | E10: ='[5]Local 201314'!P302 -> 199.61 | F10: 227.56 | G10: ='[5]Local 201314'!Q302 -> 60.47 | H10: 68.94 | I10: ='[5]Local 201314'!R302 -> 32.83 | J10: 37.43 | K10: ='[5]Local 201314'!S302 -> 65.11 | L10: 74.23 | M10: ='[5]Local 201314'!T302 -> 44.82 | N10: 51.09 | O10: ='[5]Local 201314'!U302 -> 28.43 | P10: 32.41 | Q10: ='[5]Local 201314'!Z302 -> 5.18 | R10: 5.91 | U10: =E10-'Megaflex Munic inc'!E10 -> 0 | V10: =F10-'Megaflex Munic inc'!F10 -> 0 | W10: =G10-'Megaflex Munic inc'!G10 -> 0 | X10: =H10-'Megaflex Munic inc'!H10 -> 0 | Y10: =I10-'Megaflex Munic inc'!I10 -> 0 | Z10: =J10-'Megaflex Munic inc'!J10 -> 0 | AA10: =K10-'Megaflex Munic inc'!K10 -> 0 | AB10: =L10-'Megaflex Munic inc'!L10 -> 0 | AC10: =M10-'Megaflex Munic inc'!M10 -> 0 | AD10: =N10-'Megaflex Munic inc'!N10 -> 0 | AE10: =O10-'Megaflex Munic inc'!O10 -> 0 | AF10: =P10-'Megaflex Munic inc'!P10 -> 0
D11: > 132kV* | E11: ='[5]Local 201314'!P303 -> 188.13 | F11: 214.47 | G11: ='[5]Local 201314'!Q303 -> 56.99 | H11: 64.97 | I11: ='[5]Local 201314'!R303 -> 30.95 | J11: 35.28 | K11: ='[5]Local 201314'!S303 -> 61.37 | L11: 69.96 | M11: ='[5]Local 201314'!T303 -> 42.24 | N11: 48.15 | O11: ='[5]Local 201314'!U303 -> 26.8 | P11: 30.55 | Q11: ='[5]Local 201314'!Z303 -> 6.55 | R11: 7.47 | U11: =E11-'Megaflex Munic inc'!E11 -> 0 | V11: =F11-'Megaflex Munic inc'!F11 -> 0 | W11: =G11-'Megaflex Munic inc'!G11 -> 0 | X11: =H11-'Megaflex Munic inc'!H11 -> 0 | Y11: =I11-'Megaflex Munic inc'!I11 -> 0 | Z11: =J11-'Megaflex Munic inc'!J11 -> 0 | AA11: =K11-'Megaflex Munic inc'!K11 -> 0 | AB11: =L11-'Megaflex Munic inc'!L11 -> 0 | AC11: =M11-'Megaflex Munic inc'!M11 -> 0 | AD11: =N11-'Megaflex Munic inc'!N11 -> 0 | AE11: =O11-'Megaflex Munic inc'!O11 -> 0 | AF11: =P11-'Megaflex Munic inc'!P11 -> 0
C12: > 300km and ≤ 600km | D12: < 500V | E12: ='[5]Local 201314'!P304 -> 211.12 | F12: 240.68 | G12: ='[5]Local 201314'!Q304 -> 63.96 | H12: 72.91 | I12: ='[5]Local 201314'!R304 -> 34.73 | J12: 39.59 | K12: ='[5]Local 201314'!S304 -> 68.88 | L12: 78.52 | M12: ='[5]Local 201314'!T304 -> 47.41 | N12: 54.05 | O12: ='[5]Local 201314'!U304 -> 30.08 | P12: 34.29 | Q12: ='[5]Local 201314'!Z304 -> 5.87 | R12: 6.69 | U12: =E12-'Megaflex Munic inc'!E12 -> 0 | V12: =F12-'Megaflex Munic inc'!F12 -> 0 | W12: =G12-'Megaflex Munic inc'!G12 -> 0 | X12: =H12-'Megaflex Munic inc'!H12 -> 0 | Y12: =I12-'Megaflex Munic inc'!I12 -> 0 | Z12: =J12-'Megaflex Munic inc'!J12 -> 0 | AA12: =K12-'Megaflex Munic inc'!K12 -> 0 | AB12: =L12-'Megaflex Munic inc'!L12 -> 0 | AC12: =M12-'Megaflex Munic inc'!M12 -> 0 | AD12: =N12-'Megaflex Munic inc'!N12 -> 0 | AE12: =O12-'Megaflex Munic inc'!O12 -> 0 | AF12: =P12-'Megaflex Munic inc'!P12 -> 0
D13: ≥ 500V & < 66kV | E13: ='[5]Local 201314'!P305 -> 208.18 | F13: 237.33 | G13: ='[5]Local 201314'!Q305 -> 63.07 | H13: 71.9 | I13: ='[5]Local 201314'!R305 -> 34.25 | J13: 39.05 | K13: ='[5]Local 201314'!S305 -> 67.92 | L13: 77.43 | M13: ='[5]Local 201314'!T305 -> 46.74 | N13: 53.28 | O13: ='[5]Local 201314'!U305 -> 29.65 | P13: 33.8 | Q13: ='[5]Local 201314'!Z305 -> 5.38 | R13: 6.13 | U13: =E13-'Megaflex Munic inc'!E13 -> 0 | V13: =F13-'Megaflex Munic inc'!F13 -> 0 | W13: =G13-'Megaflex Munic inc'!G13 -> 0 | X13: =H13-'Megaflex Munic inc'!H13 -> 0 | Y13: =I13-'Megaflex Munic inc'!I13 -> 0 | Z13: =J13-'Megaflex Munic inc'!J13 -> 0 | AA13: =K13-'Megaflex Munic inc'!K13 -> 0 | AB13: =L13-'Megaflex Munic inc'!L13 -> 0 | AC13: =M13-'Megaflex Munic inc'!M13 -> 0 | AD13: =N13-'Megaflex Munic inc'!N13 -> 0 | AE13: =O13-'Megaflex Munic inc'!O13 -> 0 | AF13: =P13-'Megaflex Munic inc'!P13 -> 0
D14: ≥ 66kV & ≤ 132kV | E14: ='[5]Local 201314'!P306 -> 201.56 | F14: 229.78 | G14: ='[5]Local 201314'!Q306 -> 61.06 | H14: 69.61 | I14: ='[5]Local 201314'!R306 -> 33.15 | J14: 37.79 | K14: ='[5]Local 201314'!S306 -> 65.75 | L14: 74.96 | M14: ='[5]Local 201314'!T306 -> 45.25 | N14: 51.59 | O14: ='[5]Local 201314'!U306 -> 28.7 | P14: 32.72 | Q14: ='[5]Local 201314'!Z306 -> 5.22 | R14: 5.95 | U14: =E14-'Megaflex Munic inc'!E14 -> 0 | V14: =F14-'Megaflex Munic inc'!F14 -> 0 | W14: =G14-'Megaflex Munic inc'!G14 -> 0 | X14: =H14-'Megaflex Munic inc'!H14 -> 0 | Y14: =I14-'Megaflex Munic inc'!I14 -> 0 | Z14: =J14-'Megaflex Munic inc'!J14 -> 0 | AA14: =K14-'Megaflex Munic inc'!K14 -> 0 | AB14: =L14-'Megaflex Munic inc'!L14 -> 0 | AC14: =M14-'Megaflex Munic inc'!M14 -> 0 | AD14: =N14-'Megaflex Munic inc'!N14 -> 0 | AE14: =O14-'Megaflex Munic inc'!O14 -> 0 | AF14: =P14-'Megaflex Munic inc'!P14 -> 0
D15: > 132kV* | E15: ='[5]Local 201314'!P307 -> 190 | F15: 216.6 | G15: ='[5]Local 201314'!Q307 -> 57.56 | H15: 65.62 | I15: ='[5]Local 201314'!R307 -> 31.25 | J15: 35.63 | K15: ='[5]Local 201314'!S307 -> 61.97 | L15: 70.65 | M15: ='[5]Local 201314'!T307 -> 42.66 | N15: 48.63 | O15: ='[5]Local 201314'!U307 -> 27.06 | P15: 30.85 | Q15: ='[5]Local 201314'!Z307 -> 6.62 | R15: 7.55 | U15: =E15-'Megaflex Munic inc'!E15 -> 0 | V15: =F15-'Megaflex Munic inc'!F15 -> 0 | W15: =G15-'Megaflex Munic inc'!G15 -> 0 | X15: =H15-'Megaflex Munic inc'!H15 -> 0 | Y15: =I15-'Megaflex Munic inc'!I15 -> 0 | Z15: =J15-'Megaflex Munic inc'!J15 -> 0 | AA15: =K15-'Megaflex Munic inc'!K15 -> 0 | AB15: =L15-'Megaflex Munic inc'!L15 -> 0 | AC15: =M15-'Megaflex Munic inc'!M15 -> 0 | AD15: =N15-'Megaflex Munic inc'!N15 -> 0 | AE15: =O15-'Megaflex Munic inc'!O15 -> 0 | AF15: =P15-'Megaflex Munic inc'!P15 -> 0
C16: > 600km and ≤ 900km | D16: < 500V | E16: ='[5]Local 201314'!P308 -> 213.23 | F16: 243.08 | G16: ='[5]Local 201314'!Q308 -> 64.59 | H16: 73.63 | I16: ='[5]Local 201314'!R308 -> 35.07 | J16: 39.98 | K16: ='[5]Local 201314'!S308 -> 69.55 | L16: 79.29 | M16: ='[5]Local 201314'!T308 -> 47.87 | N16: 54.57 | O16: ='[5]Local 201314'!U308 -> 30.37 | P16: 34.62 | Q16: ='[5]Local 201314'!Z308 -> 5.94 | R16: 6.77 | U16: =E16-'Megaflex Munic inc'!E16 -> 0 | V16: =F16-'Megaflex Munic inc'!F16 -> 0 | W16: =G16-'Megaflex Munic inc'!G16 -> 0 | X16: =H16-'Megaflex Munic inc'!H16 -> 0 | Y16: =I16-'Megaflex Munic inc'!I16 -> 0 | Z16: =J16-'Megaflex Munic inc'!J16 -> 0 | AA16: =K16-'Megaflex Munic inc'!K16 -> 0 | AB16: =L16-'Megaflex Munic inc'!L16 -> 0 | AC16: =M16-'Megaflex Munic inc'!M16 -> 0 | AD16: =N16-'Megaflex Munic inc'!N16 -> 0 | AE16: =O16-'Megaflex Munic inc'!O16 -> 0 | AF16: =P16-'Megaflex Munic inc'!P16 -> 0
D17: ≥ 500V & < 66kV | E17: ='[5]Local 201314'!P309 -> 210.27 | F17: 239.71 | G17: ='[5]Local 201314'!Q309 -> 63.7 | H17: 72.62 | I17: ='[5]Local 201314'!R309 -> 34.59 | J17: 39.43 | K17: ='[5]Local 201314'!S309 -> 68.6 | L17: 78.2 | M17: ='[5]Local 201314'!T309 -> 47.2 | N17: 53.81 | O17: ='[5]Local 201314'!U309 -> 29.95 | P17: 34.14 | Q17: ='[5]Local 201314'!Z309 -> 5.42 | R17: 6.18 | U17: =E17-'Megaflex Munic inc'!E17 -> 0 | V17: =F17-'Megaflex Munic inc'!F17 -> 0 | W17: =G17-'Megaflex Munic inc'!G17 -> 0 | X17: =H17-'Megaflex Munic inc'!H17 -> 0 | Y17: =I17-'Megaflex Munic inc'!I17 -> 0 | Z17: =J17-'Megaflex Munic inc'!J17 -> 0 | AA17: =K17-'Megaflex Munic inc'!K17 -> 0 | AB17: =L17-'Megaflex Munic inc'!L17 -> 0 | AC17: =M17-'Megaflex Munic inc'!M17 -> 0 | AD17: =N17-'Megaflex Munic inc'!N17 -> 0 | AE17: =O17-'Megaflex Munic inc'!O17 -> 0 | AF17: =P17-'Megaflex Munic inc'!P17 -> 0
D18: ≥ 66kV & ≤ 132kV | E18: ='[5]Local 201314'!P310 -> 203.62 | F18: 232.13 | G18: ='[5]Local 201314'!Q310 -> 61.68 | H18: 70.32 | I18: ='[5]Local 201314'!R310 -> 33.49 | J18: 38.18 | K18: ='[5]Local 201314'!S310 -> 66.41 | L18: 75.71 | M18: ='[5]Local 201314'!T310 -> 45.71 | N18: 52.11 | O18: ='[5]Local 201314'!U310 -> 28.99 | P18: 33.05 | Q18: ='[5]Local 201314'!Z310 -> 5.27 | R18: 6.01 | U18: =E18-'Megaflex Munic inc'!E18 -> 0 | V18: =F18-'Megaflex Munic inc'!F18 -> 0 | W18: =G18-'Megaflex Munic inc'!G18 -> 0 | X18: =H18-'Megaflex Munic inc'!H18 -> 0 | Y18: =I18-'Megaflex Munic inc'!I18 -> 0 | Z18: =J18-'Megaflex Munic inc'!J18 -> 0 | AA18: =K18-'Megaflex Munic inc'!K18 -> 0 | AB18: =L18-'Megaflex Munic inc'!L18 -> 0 | AC18: =M18-'Megaflex Munic inc'!M18 -> 0 | AD18: =N18-'Megaflex Munic inc'!N18 -> 0 | AE18: =O18-'Megaflex Munic inc'!O18 -> 0 | AF18: =P18-'Megaflex Munic inc'!P18 -> 0
D19: > 132kV* | E19: ='[5]Local 201314'!P311 -> 191.91 | F19: 218.78 | G19: ='[5]Local 201314'!Q311 -> 58.14 | H19: 66.28 | I19: ='[5]Local 201314'!R311 -> 31.57 | J19: 35.99 | K19: ='[5]Local 201314'!S311 -> 62.61 | L19: 71.38 | M19: ='[5]Local 201314'!T311 -> 43.09 | N19: 49.12 | O19: ='[5]Local 201314'!U311 -> 27.34 | P19: 31.17 | Q19: ='[5]Local 201314'!Z311 -> 6.71 | R19: 7.65 | U19: =E19-'Megaflex Munic inc'!E19 -> 0 | V19: =F19-'Megaflex Munic inc'!F19 -> 0 | W19: =G19-'Megaflex Munic inc'!G19 -> 0 | X19: =H19-'Megaflex Munic inc'!H19 -> 0 | Y19: =I19-'Megaflex Munic inc'!I19 -> 0 | Z19: =J19-'Megaflex Munic inc'!J19 -> 0 | AA19: =K19-'Megaflex Munic inc'!K19 -> 0 | AB19: =L19-'Megaflex Munic inc'!L19 -> 0 | AC19: =M19-'Megaflex Munic inc'!M19 -> 0 | AD19: =N19-'Megaflex Munic inc'!N19 -> 0 | AE19: =O19-'Megaflex Munic inc'!O19 -> 0 | AF19: =P19-'Megaflex Munic inc'!P19 -> 0
C20: > 900km | D20: < 500V | E20: ='[5]Local 201314'!P312 -> 215.37 | F20: 245.52 | G20: ='[5]Local 201314'!Q312 -> 65.25 | H20: 74.39 | I20: ='[5]Local 201314'!R312 -> 35.43 | J20: 40.39 | K20: ='[5]Local 201314'!S312 -> 70.26 | L20: 80.1 | M20: ='[5]Local 201314'!T312 -> 48.35 | N20: 55.12 | O20: ='[5]Local 201314'!U312 -> 30.68 | P20: 34.98 | Q20: ='[5]Local 201314'!Z312 -> 5.97 | R20: 6.81 | U20: =E20-'Megaflex Munic inc'!E20 -> 0 | V20: =F20-'Megaflex Munic inc'!F20 -> 0 | W20: =G20-'Megaflex Munic inc'!G20 -> 0 | X20: =H20-'Megaflex Munic inc'!H20 -> 0 | Y20: =I20-'Megaflex Munic inc'!I20 -> 0 | Z20: =J20-'Megaflex Munic inc'!J20 -> 0 | AA20: =K20-'Megaflex Munic inc'!K20 -> 0 | AB20: =L20-'Megaflex Munic inc'!L20 -> 0 | AC20: =M20-'Megaflex Munic inc'!M20 -> 0 | AD20: =N20-'Megaflex Munic inc'!N20 -> 0 | AE20: =O20-'Megaflex Munic inc'!O20 -> 0 | AF20: =P20-'Megaflex Munic inc'!P20 -> 0
D21: ≥ 500V & < 66kV | E21: ='[5]Local 201314'!P313 -> 212.37 | F21: 242.1 | G21: ='[5]Local 201314'!Q313 -> 64.33 | H21: 73.34 | I21: ='[5]Local 201314'!R313 -> 34.93 | J21: 39.82 | K21: ='[5]Local 201314'!S313 -> 69.27 | L21: 78.97 | M21: ='[5]Local 201314'!T313 -> 47.67 | N21: 54.34 | O21: ='[5]Local 201314'!U313 -> 30.24 | P21: 34.47 | Q21: ='[5]Local 201314'!Z313 -> 5.48 | R21: 6.25 | U21: =E21-'Megaflex Munic inc'!E21 -> 0 | V21: =F21-'Megaflex Munic inc'!F21 -> 0 | W21: =G21-'Megaflex Munic inc'!G21 -> 0 | X21: =H21-'Megaflex Munic inc'!H21 -> 0 | Y21: =I21-'Megaflex Munic inc'!I21 -> 0 | Z21: =J21-'Megaflex Munic inc'!J21 -> 0 | AA21: =K21-'Megaflex Munic inc'!K21 -> 0 | AB21: =L21-'Megaflex Munic inc'!L21 -> 0 | AC21: =M21-'Megaflex Munic inc'!M21 -> 0 | AD21: =N21-'Megaflex Munic inc'!N21 -> 0 | AE21: =O21-'Megaflex Munic inc'!O21 -> 0 | AF21: =P21-'Megaflex Munic inc'!P21 -> 0
D22: ≥ 66kV & ≤ 132kV | E22: ='[5]Local 201314'!P314 -> 205.66 | F22: 234.45 | G22: ='[5]Local 201314'!Q314 -> 62.3 | H22: 71.02 | I22: ='[5]Local 201314'!R314 -> 33.83 | J22: 38.57 | K22: ='[5]Local 201314'!S314 -> 67.08 | L22: 76.47 | M22: ='[5]Local 201314'!T314 -> 46.17 | N22: 52.63 | O22: ='[5]Local 201314'!U314 -> 29.29 | P22: 33.39 | Q22: ='[5]Local 201314'!Z314 -> 5.3 | R22: 6.04 | U22: =E22-'Megaflex Munic inc'!E22 -> 0 | V22: =F22-'Megaflex Munic inc'!F22 -> 0 | W22: =G22-'Megaflex Munic inc'!G22 -> 0 | X22: =H22-'Megaflex Munic inc'!H22 -> 0 | Y22: =I22-'Megaflex Munic inc'!I22 -> 0 | Z22: =J22-'Megaflex Munic inc'!J22 -> 0 | AA22: =K22-'Megaflex Munic inc'!K22 -> 0 | AB22: =L22-'Megaflex Munic inc'!L22 -> 0 | AC22: =M22-'Megaflex Munic inc'!M22 -> 0 | AD22: =N22-'Megaflex Munic inc'!N22 -> 0 | AE22: =O22-'Megaflex Munic inc'!O22 -> 0 | AF22: =P22-'Megaflex Munic inc'!P22 -> 0
D23: > 132kV* | E23: ='[5]Local 201314'!P315 -> 193.8 | F23: 220.93 | G23: ='[5]Local 201314'!Q315 -> 58.74 | H23: 66.96 | I23: ='[5]Local 201314'!R315 -> 31.92 | J23: 36.39 | K23: ='[5]Local 201314'!S315 -> 63.25 | L23: 72.11 | M23: ='[5]Local 201314'!T315 -> 43.54 | N23: 49.64 | O23: ='[5]Local 201314'!U315 -> 27.64 | P23: 31.51 | Q23: ='[5]Local 201314'!Z315 -> 6.76 | R23: 7.71 | U23: =E23-'Megaflex Munic inc'!E23 -> 0 | V23: =F23-'Megaflex Munic inc'!F23 -> 0 | W23: =G23-'Megaflex Munic inc'!G23 -> 0 | X23: =H23-'Megaflex Munic inc'!H23 -> 0 | Y23: =I23-'Megaflex Munic inc'!I23 -> 0 | Z23: =J23-'Megaflex Munic inc'!J23 -> 0 | AA23: =K23-'Megaflex Munic inc'!K23 -> 0 | AB23: =L23-'Megaflex Munic inc'!L23 -> 0 | AC23: =M23-'Megaflex Munic inc'!M23 -> 0 | AD23: =N23-'Megaflex Munic inc'!N23 -> 0 | AE23: =O23-'Megaflex Munic inc'!O23 -> 0 | AF23: =P23-'Megaflex Munic inc'!P23 -> 0
D24: * 132 kV or Transmission connected
C25: Distribution network charges
E26: Network access charge [R/kVA/m] | G26: Network demand charge [R/kVA/m] | I26: Urban low voltage subsidy charge [R/kVA/m]
N27: Reliability service charge [c/kWh]
C28: Voltage | F28: VAT incl | H28: VAT incl | J28: VAT incl | L28: Voltage | O28: VAT incl
C29: < 500V | E29: ='[5]Local 201314'!AA300 -> 11.63 | F29: =ROUND(E29 * (1 + VAT), 2) -> 13.26 | G29: ='[5]Local 201314'!AB300 -> 22.05 | H29: =ROUND(G29 * (1 + VAT), 2) -> 25.14 | I29: ='[5]Local 201314'!AN300 -> 0 | J29: =ROUND(I29 * (1 + VAT), 2) -> 0 | L29: < 500V | N29: ='[5]Local 201314'!Y300 -> 0.27 | O29: =ROUND(N29 * (1 + VAT), 2) -> 0.31
C30: ≥ 500V & < 66kV | E30: ='[5]Local 201314'!AA301 -> 10.67 | F30: =ROUND(E30 * (1 + VAT), 2) -> 12.16 | G30: ='[5]Local 201314'!AB301 -> 20.23 | H30: =ROUND(G30 * (1 + VAT), 2) -> 23.06 | I30: ='[5]Local 201314'!AN301 -> 0 | J30: =ROUND(I30 * (1 + VAT), 2) -> 0 | L30: ≥ 500V & < 66kV | N30: ='[5]Local 201314'!Y301 -> 0.26 | O30: =ROUND(N30 * (1 + VAT), 2) -> 0.3
C31: ≥ 66kV & ≤ 132kV | E31: ='[5]Local 201314'!AA302 -> 3.81 | F31: =ROUND(E31 * (1 + VAT), 2) -> 4.34 | G31: ='[5]Local 201314'!AB302 -> 7.05 | H31: =ROUND(G31 * (1 + VAT), 2) -> 8.04 | I31: ='[5]Local 201314'!AN302 -> 9.34 | J31: =ROUND(I31 * (1 + VAT), 2) -> 10.65 | L31: ≥ 66kV & ≤ 132kV | N31: ='[5]Local 201314'!Y302 -> 0.25 | O31: =ROUND(N31 * (1 + VAT), 2) -> 0.29
C32: > 132kV / Transmission connected | E32: ='[5]Local 201314'!AA303 -> 0 | F32: =ROUND(E32 * (1 + VAT), 2) -> 0 | G32: ='[5]Local 201314'!AB303 -> 0 | H32: =ROUND(G32 * (1 + VAT), 2) -> 0 | I32: ='[5]Local 201314'!AN303 -> 9.34 | J32: =ROUND(I32 * (1 + VAT), 2) -> 10.65 | L32: > 132kV / Transmission connected | N32: ='[5]Local 201314'!Y303 -> 0.23 | O32: =ROUND(N32 * (1 + VAT), 2) -> 0.26
C34: Customer categories | E34: Service charge [R/account/day] | G34: Administration charge [R/POD/day] | L34: Reactive energy charge [c/kVArh]
F36: VAT incl | H36: VAT incl | L36: High season | N36: Low season
C37: ≤ 100 kVA | E37: ='Miniflex Munic inc'!E29 -> 9.45 | F37: ='Miniflex inc'!F29 -> 10.82 | G37: ='Miniflex Munic inc'!G29 -> 2.07 | H37: ='Miniflex inc'!H29 -> 2.37 | M37: VAT incl | O37: VAT incl
C38: > 100 kVA & ≤ 500 kVA | E38: ='Miniflex Munic inc'!E30 -> 43.18 | F38: ='Miniflex inc'!F30 -> 49.45 | G38: ='Miniflex Munic inc'!G30 -> 12.1 | H38: ='Miniflex inc'!H30 -> 13.86 | L38: ='[5]Local 201314'!$V$300 -> 9.35 | M38: =ROUND(L38 * (1 + VAT), 2) -> 10.66 | N38: 0 | O38: =ROUND(N38 * (1 + VAT), 2) -> 0
C39: > 500 kVA & ≤ 1 MVA | E39: ='Miniflex Munic inc'!E31 -> 132.88 | F39: ='Miniflex inc'!F31 -> 152.19 | G39: ='Miniflex Munic inc'!G31 -> 24.06 | H39: ='Miniflex inc'!H31 -> 27.55
C40: > 1 MVA | E40: ='Miniflex Munic inc'!E32 -> 132.88 | F40: ='Miniflex inc'!F32 -> 152.19 | G40: ='Miniflex Munic inc'!G32 -> 59.89 | H40: ='Miniflex inc'!H32 -> 68.59
C41: Key customers | E41: ='Miniflex Munic inc'!E33 -> 2603.95 | F41: =ROUND(E41 * (1 + VAT), 2) -> 2968.5 | G41: ='Miniflex Munic inc'!G33 -> 83.16 | H41: =ROUND(G41 * (1 + VAT), 2) -> 94.8
C44: Electrification and rural network subsidy charge [c/kWh]
C46: All seasons
D47: VAT incl
C48: ='[5]Local 201314'!$AO$300+'[5]Local 201314'!$AM$300 -> 5.17 | D48: =ROUND(C48 * (1 + VAT), 2) -> 5.89
C51: Active energy charge excluding losses [c/kWh]
C52: High demand season [Jun - Aug] | I52: Low demand season [Sep - May]
C53: Peak | E53: Standard | G53: Off Peak | I53: Peak | K53: Standard | M53: Off Peak
D54: VAT incl | F54: VAT incl | H54: VAT incl | J54: VAT incl | L54: VAT incl | N54: VAT incl
C55: =ROUND(E11/('Loss Factors'!$I$5), 2) -> 186.14 | D55: =ROUND(C55 * (1 + VAT), 2) -> 212.2 | E55: =ROUND(G11/('Loss Factors'!$I$5), 2) -> 56.39 | F55: =ROUND(E55 * (1 + VAT), 2) -> 64.28 | G55: =ROUND(I11/('Loss Factors'!$I$5), 2) -> 30.62 | H55: =ROUND(G55 * (1 + VAT), 2) -> 34.91 | I55: =ROUND(K11/('Loss Factors'!$I$5), 2) -> 60.72 | J55: =ROUND(I55 * (1 + VAT), 2) -> 69.22 | K55: =ROUND(M11/('Loss Factors'!$I$5), 2) -> 41.79 | L55: =ROUND(K55 * (1 + VAT), 2) -> 47.64 | M55: =ROUND(O11/('Loss Factors'!$I$5), 2) -> 26.52 | N55: =ROUND(M55 * (1 + VAT), 2) -> 30.23
C57: Active energy charge excluding losses and enviromental levy [c/kWh]
C58: High demand season [Jun - Aug] | I58: Low demand season [Sep - May]
C59: Peak | E59: Standard | G59: Off Peak | I59: Peak | K59: Standard | M59: Off Peak
D60: VAT incl | F60: VAT incl | H60: VAT incl | J60: VAT incl | L60: VAT incl | N60: VAT incl
C61: =C55-ROUND('Env levy'!$C$8,2) -> 182.65 | D61: =ROUND(C61 * (1 + VAT), 2) -> 208.22 | E61: =E55-ROUND('Env levy'!$C$8,2) -> 52.9 | F61: =ROUND(E61 * (1 + VAT), 2) -> 60.31 | G61: =G55-ROUND('Env levy'!$C$8,2) -> 27.13 | H61: =ROUND(G61 * (1 + VAT), 2) -> 30.93 | I61: =I55-ROUND('Env levy'!$C$8,2) -> 57.23 | J61: =ROUND(I61 * (1 + VAT), 2) -> 65.24 | K61: =K55-ROUND('Env levy'!$C$8,2) -> 38.3 | L61: =ROUND(K61 * (1 + VAT), 2) -> 43.66 | M61: =M55-ROUND('Env levy'!$C$8,2) -> 23.03 | N61: =ROUND(M61 * (1 + VAT), 2) -> 26.25

Sheet Megaflex inc
R1: =SUM(E8:E23,G8:G23,I8:I23,K8:K23,M8:M23,O8:O23,Q8:Q23,#REF!,#REF!,#REF!,#REF!,#REF!,#REF!,#REF!) - '[5]Non Local 201314'!$AL$247 -> 
B2: =Menu!$B$6 -> Megaflex tariff | M2: =Menu!$B$4 -> Non-local authority | AA2: =SUM(E8:O23,Q8:Q23,#REF!,#REF!,#REF!,#REF!,C26:E26,G26) ->  | AB2: check value
E4: Active energy charge [c/kWh] | Q4: Transmission network charges [R/kVA/m]
C5: Transmission zone | E5: High demand season [Jun - Aug] | K5: Low demand season [Sep - May]
D6: Voltage | E6: Peak | G6: Standard | I6: Off Peak | K6: Peak | M6: Standard | O6: Off Peak
F7: VAT incl | H7: VAT incl | J7: VAT incl | L7: VAT incl | N7: VAT incl | P7: VAT incl | R7: VAT incl
C8: ≤ 300km | D8: < 500V | E8: ='[5]Non Local 201314'!P247 -> 204.55 | F8: =ROUND(E8 * (1 + VAT), 2) -> 233.19 | G8: ='[5]Non Local 201314'!Q247 -> 62.23 | H8: =ROUND(G8 * (1 + VAT), 2) -> 70.94 | I8: ='[5]Non Local 201314'!R247 -> 33.97 | J8: =ROUND(I8 * (1 + VAT), 2) -> 38.73 | K8: ='[5]Non Local 201314'!S247 -> 66.98 | L8: =ROUND(K8 * (1 + VAT), 2) -> 76.36 | M8: ='[5]Non Local 201314'!T247 -> 46.22 | N8: =ROUND(M8 * (1 + VAT), 2) -> 52.69 | O8: ='[5]Non Local 201314'!U247 -> 29.46 | P8: =ROUND(O8 * (1 + VAT), 2) -> 33.58 | Q8: ='[5]Non Local 201314'!Z247 -> 5.85 | R8: =ROUND(Q8 * (1 + VAT), 2) -> 6.67
D9: ≥ 500V & < 66kV | E9: ='[5]Non Local 201314'!P248 -> 201.33 | F9: 229.52 | G9: ='[5]Non Local 201314'!Q248 -> 60.99 | H9: 69.53 | I9: ='[5]Non Local 201314'!R248 -> 33.12 | J9: 37.76 | K9: ='[5]Non Local 201314'!S248 -> 65.68 | L9: 74.88 | M9: ='[5]Non Local 201314'!T248 -> 45.2 | N9: 51.53 | O9: ='[5]Non Local 201314'!U248 -> 28.68 | P9: 32.7 | Q9: ='[5]Non Local 201314'!Z248 -> 5.35 | R9: 6.1
D10: ≥ 66kV & ≤ 132kV | E10: ='[5]Non Local 201314'!P249 -> 194.96 | F10: 222.25 | G10: ='[5]Non Local 201314'!Q249 -> 59.06 | H10: 67.33 | I10: ='[5]Non Local 201314'!R249 -> 32.07 | J10: 36.56 | K10: ='[5]Non Local 201314'!S249 -> 63.6 | L10: 72.5 | M10: ='[5]Non Local 201314'!T249 -> 43.77 | N10: 49.9 | O10: ='[5]Non Local 201314'!U249 -> 27.77 | P10: 31.66 | Q10: ='[5]Non Local 201314'!Z249 -> 5.21 | R10: 5.94
D11: > 132kV* | E11: ='[5]Non Local 201314'!P250 -> 183.75 | F11: 209.48 | G11: ='[5]Non Local 201314'!Q250 -> 55.66 | H11: 63.45 | I11: ='[5]Non Local 201314'!R250 -> 30.23 | J11: 34.46 | K11: ='[5]Non Local 201314'!S250 -> 59.94 | L11: 68.33 | M11: ='[5]Non Local 201314'!T250 -> 41.25 | N11: 47.03 | O11: ='[5]Non Local 201314'!U250 -> 26.18 | P11: 29.85 | Q11: ='[5]Non Local 201314'!Z250 -> 6.58 | R11: 7.5
C12: > 300km and ≤ 600km | D12: < 500V | E12: ='[5]Non Local 201314'!P251 -> 206.21 | F12: 235.08 | G12: ='[5]Non Local 201314'!Q251 -> 62.48 | H12: 71.23 | I12: ='[5]Non Local 201314'!R251 -> 33.93 | J12: 38.68 | K12: ='[5]Non Local 201314'!S251 -> 67.27 | L12: 76.69 | M12: ='[5]Non Local 201314'!T251 -> 46.31 | N12: 52.79 | O12: ='[5]Non Local 201314'!U251 -> 29.38 | P12: 33.49 | Q12: ='[5]Non Local 201314'!Z251 -> 5.9 | R12: 6.73
D13: ≥ 500V & < 66kV | E13: ='[5]Non Local 201314'!P252 -> 203.34 | F13: 231.81 | G13: ='[5]Non Local 201314'!Q252 -> 61.6 | H13: 70.22 | I13: ='[5]Non Local 201314'!R252 -> 33.45 | J13: 38.13 | K13: ='[5]Non Local 201314'!S252 -> 66.34 | L13: 75.63 | M13: ='[5]Non Local 201314'!T252 -> 45.65 | N13: 52.04 | O13: ='[5]Non Local 201314'!U252 -> 28.96 | P13: 33.01 | Q13: ='[5]Non Local 201314'!Z252 -> 5.4 | R13: 6.16
D14: ≥ 66kV & ≤ 132kV | E14: ='[5]Non Local 201314'!P253 -> 196.88 | F14: 224.44 | G14: ='[5]Non Local 201314'!Q253 -> 59.64 | H14: 67.99 | I14: ='[5]Non Local 201314'!R253 -> 32.38 | J14: 36.91 | K14: ='[5]Non Local 201314'!S253 -> 64.22 | L14: 73.21 | M14: ='[5]Non Local 201314'!T253 -> 44.19 | N14: 50.38 | O14: ='[5]Non Local 201314'!U253 -> 28.04 | P14: 31.97 | Q14: ='[5]Non Local 201314'!Z253 -> 5.25 | R14: 5.99
D15: > 132kV* | E15: ='[5]Non Local 201314'!P254 -> 185.58 | F15: 211.56 | G15: ='[5]Non Local 201314'!Q254 -> 56.22 | H15: 64.09 | I15: ='[5]Non Local 201314'!R254 -> 30.52 | J15: 34.79 | K15: ='[5]Non Local 201314'!S254 -> 60.53 | L15: 69 | M15: ='[5]Non Local 201314'!T254 -> 41.66 | N15: 47.49 | O15: ='[5]Non Local 201314'!U254 -> 26.43 | P15: 30.13 | Q15: ='[5]Non Local 201314'!Z254 -> 6.65 | R15: 7.58
C16: > 600km and ≤ 900km | D16: < 500V | E16: ='[5]Non Local 201314'!P255 -> 208.27 | F16: 237.43 | G16: ='[5]Non Local 201314'!Q255 -> 63.08 | H16: 71.91 | I16: ='[5]Non Local 201314'!R255 -> 34.25 | J16: 39.05 | K16: ='[5]Non Local 201314'!S255 -> 67.94 | L16: 77.45 | M16: ='[5]Non Local 201314'!T255 -> 46.76 | N16: 53.31 | O16: ='[5]Non Local 201314'!U255 -> 29.66 | P16: 33.81 | Q16: ='[5]Non Local 201314'!Z255 -> 5.97 | R16: 6.81
D17: ≥ 500V & < 66kV | E17: ='[5]Non Local 201314'!P256 -> 205.38 | F17: 234.13 | G17: ='[5]Non Local 201314'!Q256 -> 62.22 | H17: 70.93 | I17: ='[5]Non Local 201314'!R256 -> 33.79 | J17: 38.52 | K17: ='[5]Non Local 201314'!S256 -> 67 | L17: 76.38 | M17: ='[5]Non Local 201314'!T256 -> 46.11 | N17: 52.57 | O17: ='[5]Non Local 201314'!U256 -> 29.25 | P17: 33.35 | Q17: ='[5]Non Local 201314'!Z256 -> 5.44 | R17: 6.2
D18: ≥ 66kV & ≤ 132kV | E18: ='[5]Non Local 201314'!P257 -> 198.88 | F18: 226.72 | G18: ='[5]Non Local 201314'!Q257 -> 60.25 | H18: 68.69 | I18: ='[5]Non Local 201314'!R257 -> 32.71 | J18: 37.29 | K18: ='[5]Non Local 201314'!S257 -> 64.87 | L18: 73.95 | M18: ='[5]Non Local 201314'!T257 -> 44.65 | N18: 50.9 | O18: ='[5]Non Local 201314'!U257 -> 28.32 | P18: 32.28 | Q18: ='[5]Non Local 201314'!Z257 -> 5.29 | R18: 6.03
D19: > 132kV* | E19: ='[5]Non Local 201314'!P258 -> 187.45 | F19: 213.69 | G19: ='[5]Non Local 201314'!Q258 -> 56.78 | H19: 64.73 | I19: ='[5]Non Local 201314'!R258 -> 30.84 | J19: 35.16 | K19: ='[5]Non Local 201314'!S258 -> 61.15 | L19: 69.71 | M19: ='[5]Non Local 201314'!T258 -> 42.08 | N19: 47.97 | O19: ='[5]Non Local 201314'!U258 -> 26.7 | P19: 30.44 | Q19: ='[5]Non Local 201314'!Z258 -> 6.74 | R19: 7.68
C20: > 900km | D20: < 500V | E20: ='[5]Non Local 201314'!P259 -> 210.36 | F20: 239.81 | G20: ='[5]Non Local 201314'!Q259 -> 63.74 | H20: 72.66 | I20: ='[5]Non Local 201314'!R259 -> 34.61 | J20: 39.46 | K20: ='[5]Non Local 201314'!S259 -> 68.63 | L20: 78.24 | M20: ='[5]Non Local 201314'!T259 -> 47.23 | N20: 53.84 | O20: ='[5]Non Local 201314'!U259 -> 29.97 | P20: 34.17 | Q20: ='[5]Non Local 201314'!Z259 -> 5.99 | R20: 6.83
D21: ≥ 500V & < 66kV | E21: ='[5]Non Local 201314'!P260 -> 207.43 | F21: 236.47 | G21: ='[5]Non Local 201314'!Q260 -> 62.83 | H21: 71.63 | I21: ='[5]Non Local 201314'!R260 -> 34.11 | J21: 38.89 | K21: ='[5]Non Local 201314'!S260 -> 67.66 | L21: 77.13 | M21: ='[5]Non Local 201314'!T260 -> 46.56 | N21: 53.08 | O21: ='[5]Non Local 201314'!U260 -> 29.54 | P21: 33.68 | Q21: ='[5]Non Local 201314'!Z260 -> 5.51 | R21: 6.28
D22: ≥ 66kV & ≤ 132kV | E22: ='[5]Non Local 201314'!P261 -> 200.88 | F22: 229 | G22: ='[5]Non Local 201314'!Q261 -> 60.85 | H22: 69.37 | I22: ='[5]Non Local 201314'!R261 -> 33.04 | J22: 37.67 | K22: ='[5]Non Local 201314'!S261 -> 65.52 | L22: 74.69 | M22: ='[5]Non Local 201314'!T261 -> 45.1 | N22: 51.41 | O22: ='[5]Non Local 201314'!U261 -> 28.61 | P22: 32.62 | Q22: ='[5]Non Local 201314'!Z261 -> 5.32 | R22: 6.06
D23: > 132kV* | E23: ='[5]Non Local 201314'!P262 -> 189.29 | F23: 215.79 | G23: ='[5]Non Local 201314'!Q262 -> 57.37 | H23: 65.4 | I23: ='[5]Non Local 201314'!R262 -> 31.17 | J23: 35.53 | K23: ='[5]Non Local 201314'!S262 -> 61.78 | L23: 70.43 | M23: ='[5]Non Local 201314'!T262 -> 42.53 | N23: 48.48 | O23: ='[5]Non Local 201314'!U262 -> 27 | P23: 30.78 | Q23: ='[5]Non Local 201314'!Z262 -> 6.79 | R23: 7.74
D24: * 132 kV or Transmission connected
C26: Distribution network charges
E27: Network access charge [R/kVA/m] | G27: Network demand charge [R/kVA/m] | I27: Urban low voltage subsidy charge [R/kVA/m]
N28: Reliability service charge [c/kWh]
C29: Voltage | F29: VAT incl | H29: VAT incl | J29: VAT incl | L29: Voltage | O29: VAT incl
C30: < 500V | E30: ='[5]Non Local 201314'!AA247 -> 11.63 | F30: =ROUND(E30 * (1 + VAT), 2) -> 13.26 | G30: ='[5]Non Local 201314'!AB247 -> 22.05 | H30: =ROUND(G30 * (1 + VAT), 2) -> 25.14 | I30: ='[5]Non Local 201314'!AN247 -> 0 | J30: =ROUND(I30 * (1 + VAT), 2) -> 0 | L30: < 500V | N30: ='[5]Non Local 201314'!Y247 -> 0.27 | O30: =ROUND(N30 * (1 + VAT), 2) -> 0.31
C31: ≥ 500V & < 66kV | E31: ='[5]Non Local 201314'!AA248 -> 10.67 | F31: =ROUND(E31 * (1 + VAT), 2) -> 12.16 | G31: ='[5]Non Local 201314'!AB248 -> 20.23 | H31: =ROUND(G31 * (1 + VAT), 2) -> 23.06 | I31: ='[5]Non Local 201314'!AN248 -> 0 | J31: =ROUND(I31 * (1 + VAT), 2) -> 0 | L31: ≥ 500V & < 66kV | N31: ='[5]Non Local 201314'!Y248 -> 0.26 | O31: =ROUND(N31 * (1 + VAT), 2) -> 0.3
C32: ≥ 66kV & ≤ 132kV | E32: ='[5]Non Local 201314'!AA249 -> 3.81 | F32: =ROUND(E32 * (1 + VAT), 2) -> 4.34 | G32: ='[5]Non Local 201314'!AB249 -> 7.05 | H32: =ROUND(G32 * (1 + VAT), 2) -> 8.04 | I32: ='[5]Non Local 201314'!AN249 -> 9.39 | J32: =ROUND(I32 * (1 + VAT), 2) -> 10.7 | L32: ≥ 66kV & ≤ 132kV | N32: ='[5]Non Local 201314'!Y249 -> 0.25 | O32: =ROUND(N32 * (1 + VAT), 2) -> 0.29
C33: > 132kV / Transmission connected | E33: ='[5]Non Local 201314'!AA250 -> 0 | F33: =ROUND(E33 * (1 + VAT), 2) -> 0 | G33: ='[5]Non Local 201314'!AB250 -> 0 | H33: =ROUND(G33 * (1 + VAT), 2) -> 0 | I33: ='[5]Non Local 201314'!AN250 -> 9.39 | J33: =ROUND(I33 * (1 + VAT), 2) -> 10.7 | L33: > 132kV / Transmission connected | N33: ='[5]Non Local 201314'!Y250 -> 0.23 | O33: =ROUND(N33 * (1 + VAT), 2) -> 0.26
C36: Customer categories | E36: Service charge [R/account/day] | G36: Administration charge [R/POD/day] | L36: Reactive energy charge [c/kVArh]
L37: High season | N37: Low season
F38: VAT incl | H38: VAT incl | M38: VAT incl | O38: VAT incl
C39: > 1 MVA | E39: ='[5]Non Local 201314'!$N$247 -> 133.5 | F39: =ROUND(E39 * (1 + VAT), 2) -> 152.19 | G39: ='[5]Non Local 201314'!$I$247 -> 60.17 | H39: =ROUND(G39 * (1 + VAT), 2) -> 68.59 | L39: ='[5]Non Local 201314'!$V$247 -> 9.4 | M39: =ROUND(L39 * (1 + VAT), 2) -> 10.72 | N39: 0 | O39: =ROUND(N39 * (1 + VAT), 2) -> 0
C40: Key customers | E40: ='[5]Non Local 201314'!$O$247 -> 2616.06 | F40: =ROUND(E40 * (1 + VAT), 2) -> 2982.31 | G40: ='[5]Non Local 201314'!$J$247 -> 83.55 | H40: =ROUND(G40 * (1 + VAT), 2) -> 95.25
C42: Electrification and rural network subsidy charge [c/kWh] | E42: Affordability subsidy charge [c/kWh] payable by non-local authority tariffs
C44: All seasons | E44: All seasons
D45: VAT incl | F45: VAT incl
C46: ='[5]Non Local 201314'!$AO$247+'[5]Non Local 201314'!$AM$247 -> 5.2 | D46: =ROUND(C46 * (1 + VAT), 2) -> 5.93 | E46: ='[5]Non Local 201314'!$AP$247 -> 2.07 | F46: =ROUND(E46 * (1 + VAT), 2) -> 2.36

Sheet Megaflex Munic inc
R1: =SUM(E8:E23,G8:G23,I8:I23,K8:K23,M8:M23,O8:O23,Q8:Q23,#REF!,#REF!,#REF!,#REF!,#REF!,#REF!,#REF!) - '[5]Local 201314'!$AL$179 -> 
B2: =Menu!$B$6 -> Megaflex tariff | M2: =Menu!$C$4 -> Local authority | AA2: =SUM(#REF!,#REF!,#REF!,#REF!,#REF!,#REF!,#REF!,#REF!) ->  | AB2: check value
E4: Active energy charge [c/kWh] | Q4: Transmission network charges [R/kVA/m]
C5: Transmission zone | E5: High demand season [Jun - Aug] | K5: Low demand season [Sep - May]
D6: Voltage | E6: Peak | G6: Standard | I6: Off Peak | K6: Peak | M6: Standard | O6: Off Peak
F7: VAT incl | H7: VAT incl | J7: VAT incl | L7: VAT incl | N7: VAT incl | P7: VAT incl | R7: VAT incl
C8: ≤ 300km | D8: < 500V | E8: ='[5]Local 201314'!P179 -> 209.42 | F8: =ROUND(E8 * (1 + VAT), 2) -> 238.74 | G8: ='[5]Local 201314'!Q179 -> 63.72 | H8: =ROUND(G8 * (1 + VAT), 2) -> 72.64 | I8: ='[5]Local 201314'!R179 -> 34.78 | J8: =ROUND(I8 * (1 + VAT), 2) -> 39.65 | K8: ='[5]Local 201314'!S179 -> 68.57 | L8: =ROUND(K8 * (1 + VAT), 2) -> 78.17 | M8: ='[5]Local 201314'!T179 -> 47.32 | N8: =ROUND(M8 * (1 + VAT), 2) -> 53.94 | O8: ='[5]Local 201314'!U179 -> 30.16 | P8: =ROUND(O8 * (1 + VAT), 2) -> 34.38 | Q8: ='[5]Local 201314'!Z179 -> 5.83 | R8: =ROUND(Q8 * (1 + VAT), 2) -> 6.65
D9: ≥ 500V & < 66kV | E9: ='[5]Local 201314'!P180 -> 206.12 | F9: 234.98 | G9: ='[5]Local 201314'!Q180 -> 62.45 | H9: 71.19 | I9: ='[5]Local 201314'!R180 -> 33.91 | J9: 38.66 | K9: ='[5]Local 201314'!S180 -> 67.24 | L9: 76.65 | M9: ='[5]Local 201314'!T180 -> 46.28 | N9: 52.76 | O9: ='[5]Local 201314'!U180 -> 29.36 | P9: 33.47 | Q9: ='[5]Local 201314'!Z180 -> 5.32 | R9: 6.06
D10: ≥ 66kV & ≤ 132kV | E10: ='[5]Local 201314'!P181 -> 199.61 | F10: 227.56 | G10: ='[5]Local 201314'!Q181 -> 60.47 | H10: 68.94 | I10: ='[5]Local 201314'!R181 -> 32.83 | J10: 37.43 | K10: ='[5]Local 201314'!S181 -> 65.11 | L10: 74.23 | M10: ='[5]Local 201314'!T181 -> 44.82 | N10: 51.09 | O10: ='[5]Local 201314'!U181 -> 28.43 | P10: 32.41 | Q10: ='[5]Local 201314'!Z181 -> 5.18 | R10: 5.91
D11: > 132kV* | E11: ='[5]Local 201314'!P182 -> 188.13 | F11: 214.47 | G11: ='[5]Local 201314'!Q182 -> 56.99 | H11: 64.97 | I11: ='[5]Local 201314'!R182 -> 30.95 | J11: 35.28 | K11: ='[5]Local 201314'!S182 -> 61.37 | L11: 69.96 | M11: ='[5]Local 201314'!T182 -> 42.24 | N11: 48.15 | O11: ='[5]Local 201314'!U182 -> 26.8 | P11: 30.55 | Q11: ='[5]Local 201314'!Z182 -> 6.55 | R11: 7.47
C12: > 300km and ≤ 600km | D12: < 500V | E12: ='[5]Local 201314'!P183 -> 211.12 | F12: 240.68 | G12: ='[5]Local 201314'!Q183 -> 63.96 | H12: 72.91 | I12: ='[5]Local 201314'!R183 -> 34.73 | J12: 39.59 | K12: ='[5]Local 201314'!S183 -> 68.88 | L12: 78.52 | M12: ='[5]Local 201314'!T183 -> 47.41 | N12: 54.05 | O12: ='[5]Local 201314'!U183 -> 30.08 | P12: 34.29 | Q12: ='[5]Local 201314'!Z183 -> 5.87 | R12: 6.69
D13: ≥ 500V & < 66kV | E13: ='[5]Local 201314'!P184 -> 208.18 | F13: 237.33 | G13: ='[5]Local 201314'!Q184 -> 63.07 | H13: 71.9 | I13: ='[5]Local 201314'!R184 -> 34.25 | J13: 39.05 | K13: ='[5]Local 201314'!S184 -> 67.92 | L13: 77.43 | M13: ='[5]Local 201314'!T184 -> 46.74 | N13: 53.28 | O13: ='[5]Local 201314'!U184 -> 29.65 | P13: 33.8 | Q13: ='[5]Local 201314'!Z184 -> 5.38 | R13: 6.13
D14: ≥ 66kV & ≤ 132kV | E14: ='[5]Local 201314'!P185 -> 201.56 | F14: 229.78 | G14: ='[5]Local 201314'!Q185 -> 61.06 | H14: 69.61 | I14: ='[5]Local 201314'!R185 -> 33.15 | J14: 37.79 | K14: ='[5]Local 201314'!S185 -> 65.75 | L14: 74.96 | M14: ='[5]Local 201314'!T185 -> 45.25 | N14: 51.59 | O14: ='[5]Local 201314'!U185 -> 28.7 | P14: 32.72 | Q14: ='[5]Local 201314'!Z185 -> 5.22 | R14: 5.95
D15: > 132kV* | E15: ='[5]Local 201314'!P186 -> 190 | F15: 216.6 | G15: ='[5]Local 201314'!Q186 -> 57.56 | H15: 65.62 | I15: ='[5]Local 201314'!R186 -> 31.25 | J15: 35.63 | K15: ='[5]Local 201314'!S186 -> 61.97 | L15: 70.65 | M15: ='[5]Local 201314'!T186 -> 42.66 | N15: 48.63 | O15: ='[5]Local 201314'!U186 -> 27.06 | P15: 30.85 | Q15: ='[5]Local 201314'!Z186 -> 6.62 | R15: 7.55
C16: > 600km and ≤ 900km | D16: < 500V | E16: ='[5]Local 201314'!P187 -> 213.23 | F16: 243.08 | G16: ='[5]Local 201314'!Q187 -> 64.59 | H16: 73.63 | I16: ='[5]Local 201314'!R187 -> 35.07 | J16: 39.98 | K16: ='[5]Local 201314'!S187 -> 69.55 | L16: 79.29 | M16: ='[5]Local 201314'!T187 -> 47.87 | N16: 54.57 | O16: ='[5]Local 201314'!U187 -> 30.37 | P16: 34.62 | Q16: ='[5]Local 201314'!Z187 -> 5.94 | R16: 6.77
D17: ≥ 500V & < 66kV | E17: ='[5]Local 201314'!P188 -> 210.27 | F17: 239.71 | G17: ='[5]Local 201314'!Q188 -> 63.7 | H17: 72.62 | I17: ='[5]Local 201314'!R188 -> 34.59 | J17: 39.43 | K17: ='[5]Local 201314'!S188 -> 68.6 | L17: 78.2 | M17: ='[5]Local 201314'!T188 -> 47.2 | N17: 53.81 | O17: ='[5]Local 201314'!U188 -> 29.95 | P17: 34.14 | Q17: ='[5]Local 201314'!Z188 -> 5.42 | R17: 6.18
D18: ≥ 66kV & ≤ 132kV | E18: ='[5]Local 201314'!P189 -> 203.62 | F18: 232.13 | G18: ='[5]Local 201314'!Q189 -> 61.68 | H18: 70.32 | I18: ='[5]Local 201314'!R189 -> 33.49 | J18: 38.18 | K18: ='[5]Local 201314'!S189 -> 66.41 | L18: 75.71 | M18: ='[5]Local 201314'!T189 -> 45.71 | N18: 52.11 | O18: ='[5]Local 201314'!U189 -> 28.99 | P18: 33.05 | Q18: ='[5]Local 201314'!Z189 -> 5.27 | R18: 6.01
D19: > 132kV* | E19: ='[5]Local 201314'!P190 -> 191.91 | F19: 218.78 | G19: ='[5]Local 201314'!Q190 -> 58.14 | H19: 66.28 | I19: ='[5]Local 201314'!R190 -> 31.57 | J19: 35.99 | K19: ='[5]Local 201314'!S190 -> 62.61 | L19: 71.38 | M19: ='[5]Local 201314'!T190 -> 43.09 | N19: 49.12 | O19: ='[5]Local 201314'!U190 -> 27.34 | P19: 31.17 | Q19: ='[5]Local 201314'!Z190 -> 6.71 | R19: 7.65
C20: > 900km | D20: < 500V | E20: ='[5]Local 201314'!P191 -> 215.37 | F20: 245.52 | G20: ='[5]Local 201314'!Q191 -> 65.25 | H20: 74.39 | I20: ='[5]Local 201314'!R191 -> 35.43 | J20: 40.39 | K20: ='[5]Local 201314'!S191 -> 70.26 | L20: 80.1 | M20: ='[5]Local 201314'!T191 -> 48.35 | N20: 55.12 | O20: ='[5]Local 201314'!U191 -> 30.68 | P20: 34.98 | Q20: ='[5]Local 201314'!Z191 -> 5.97 | R20: 6.81
D21: ≥ 500V & < 66kV | E21: ='[5]Local 201314'!P192 -> 212.37 | F21: 242.1 | G21: ='[5]Local 201314'!Q192 -> 64.33 | H21: 73.34 | I21: ='[5]Local 201314'!R192 -> 34.93 | J21: 39.82 | K21: ='[5]Local 201314'!S192 -> 69.27 | L21: 78.97 | M21: ='[5]Local 201314'!T192 -> 47.67 | N21: 54.34 | O21: ='[5]Local 201314'!U192 -> 30.24 | P21: 34.47 | Q21: ='[5]Local 201314'!Z192 -> 5.48 | R21: 6.25
D22: ≥ 66kV & ≤ 132kV | E22: ='[5]Local 201314'!P193 -> 205.66 | F22: 234.45 | G22: ='[5]Local 201314'!Q193 -> 62.3 | H22: 71.02 | I22: ='[5]Local 201314'!R193 -> 33.83 | J22: 38.57 | K22: ='[5]Local 201314'!S193 -> 67.08 | L22: 76.47 | M22: ='[5]Local 201314'!T193 -> 46.17 | N22: 52.63 | O22: ='[5]Local 201314'!U193 -> 29.29 | P22: 33.39 | Q22: ='[5]Local 201314'!Z193 -> 5.3 | R22: 6.04
D23: > 132kV* | E23: ='[5]Local 201314'!P194 -> 193.8 | F23: 220.93 | G23: ='[5]Local 201314'!Q194 -> 58.74 | H23: 66.96 | I23: ='[5]Local 201314'!R194 -> 31.92 | J23: 36.39 | K23: ='[5]Local 201314'!S194 -> 63.25 | L23: 72.11 | M23: ='[5]Local 201314'!T194 -> 43.54 | N23: 49.64 | O23: ='[5]Local 201314'!U194 -> 27.64 | P23: 31.51 | Q23: ='[5]Local 201314'!Z194 -> 6.76 | R23: 7.71
D24: * 132 kV or Transmission connected
C26: Distribution network charges
E27: Network access charge [R/kVA/m] | G27: Network demand charge [R/kVA/m] | I27: Urban low voltage subsidy charge [R/kVA/m]
N28: Reliability service charge [c/kWh]
C29: Voltage | F29: VAT incl | H29: VAT incl | J29: VAT incl | L29: Voltage | O29: VAT incl
C30: < 500V | E30: ='[5]Local 201314'!AA179 -> 11.63 | F30: =ROUND(E30 * (1 + VAT), 2) -> 13.26 | G30: ='[5]Local 201314'!AB179 -> 22.05 | H30: =ROUND(G30 * (1 + VAT), 2) -> 25.14 | I30: ='[5]Local 201314'!AN179 -> 0 | J30: =ROUND(I30 * (1 + VAT), 2) -> 0 | L30: < 500V | N30: ='[5]Local 201314'!Y179 -> 0.27 | O30: =ROUND(N30 * (1 + VAT), 2) -> 0.31
C31: ≥ 500V & < 66kV | E31: ='[5]Local 201314'!AA180 -> 10.67 | F31: =ROUND(E31 * (1 + VAT), 2) -> 12.16 | G31: ='[5]Local 201314'!AB180 -> 20.23 | H31: =ROUND(G31 * (1 + VAT), 2) -> 23.06 | I31: ='[5]Local 201314'!AN180 -> 0 | J31: =ROUND(I31 * (1 + VAT), 2) -> 0 | L31: ≥ 500V & < 66kV | N31: ='[5]Local 201314'!Y180 -> 0.26 | O31: =ROUND(N31 * (1 + VAT), 2) -> 0.3
C32: ≥ 66kV & ≤ 132kV | E32: ='[5]Local 201314'!AA181 -> 3.81 | F32: =ROUND(E32 * (1 + VAT), 2) -> 4.34 | G32: ='[5]Local 201314'!AB181 -> 7.05 | H32: =ROUND(G32 * (1 + VAT), 2) -> 8.04 | I32: ='[5]Local 201314'!AN181 -> 9.39 | J32: =ROUND(I32 * (1 + VAT), 2) -> 10.7 | L32: ≥ 66kV & ≤ 132kV | N32: ='[5]Local 201314'!Y181 -> 0.25 | O32: =ROUND(N32 * (1 + VAT), 2) -> 0.29
C33: > 132kV / Transmission connected | E33: ='[5]Local 201314'!AA182 -> 0 | F33: =ROUND(E33 * (1 + VAT), 2) -> 0 | G33: ='[5]Local 201314'!AB182 -> 0 | H33: =ROUND(G33 * (1 + VAT), 2) -> 0 | I33: ='[5]Local 201314'!AN182 -> 9.39 | J33: =ROUND(I33 * (1 + VAT), 2) -> 10.7 | L33: > 132kV / Transmission connected | N33: ='[5]Local 201314'!Y182 -> 0.23 | O33: =ROUND(N33 * (1 + VAT), 2) -> 0.26
C36: Customer categories | E36: Service charge [R/account/day] | G36: Administration charge [R/POD/day]
L37: Reactive energy charge [c/kVArh]
F38: VAT incl | H38: VAT incl | L38: High season | N38: Low season
C39: >1 MVA | E39: ='[5]Local 201314'!$N$179 -> 132.88 | F39: =ROUND(E39 * (1 + VAT), 2) -> 151.48 | G39: ='[5]Local 201314'!$I$179 -> 59.89 | H39: =ROUND(G39 * (1 + VAT), 2) -> 68.27 | M39: VAT incl | O39: VAT incl
C40: Key customers | E40: ='[5]Local 201314'!$O$179 -> 2603.95 | F40: =ROUND(E40 * (1 + VAT), 2) -> 2968.5 | G40: ='[5]Local 201314'!$J$179 -> 83.16 | H40: =ROUND(G40 * (1 + VAT), 2) -> 94.8 | L40: ='[5]Local 201314'!$V$179 -> 9.35 | M40: =ROUND(L40 * (1 + VAT), 2) -> 10.66 | N40: 0 | O40: =ROUND(N40 * (1 + VAT), 2) -> 0
C43: Electrification and rural network subsidy charge [c/kWh]
C45: All seasons
D46: VAT incl
C47: ='[5]Local 201314'!$AO$179+'[5]Local 201314'!$AM$179 -> 5.17 | D47: =ROUND(C47 * (1 + VAT), 2) -> 5.89

Sheet Nightsave Large inc
N1: =SUM(E8:E23,G8:G23,I8:I23,K8:K23,M8:M23,#REF!,#REF!,#REF!,#REF!,#REF!,#REF!)-SUM('[5]Non Local 201314'!$AL$263) -> 
C2: Nightsave Urban Large tariff | L2: =Menu!B4 -> Non-local authority | AB2: check value
E4: Active energy charge [c/kWh] | I4: Energy demand charge [R/kVA/m] | M4: Transmission network charges [R/kVA/m]
C5: Transmission zone | E5: High demand season [Jun - Aug] | G5: Low demand season [Sep - May] | I5: High demand season [Jun - Aug] | K5: Low demand season [Sep - May]
D6: Voltage
F7: VAT incl | H7: VAT incl | J7: VAT incl | L7: VAT incl | N7: VAT incl
C8: ≤ 300km | D8: < 500V | E8: ='[5]Non Local 201314'!P263 -> 50.52 | F8: =ROUND(E8 * (1 + VAT), 2) -> 57.59 | G8: ='[5]Non Local 201314'!S263 -> 39.28 | H8: =ROUND(G8 * (1 + VAT), 2) -> 44.78 | I8: ='[5]Non Local 201314'!AE263 -> 153.71 | J8: =ROUND(I8 * (1 + VAT), 2) -> 175.23 | K8: ='[5]Non Local 201314'!AF263 -> 21.48 | L8: =ROUND(K8 * (1 + VAT), 2) -> 24.49 | M8: ='[5]Non Local 201314'!Z263 -> 5.85 | N8: =ROUND(M8 * (1 + VAT), 2) -> 6.67
D9: ≥ 500V & < 66kV | E9: ='[5]Non Local 201314'!P264 -> 47.84 | F9: 54.54 | G9: ='[5]Non Local 201314'!S264 -> 37.34 | H9: 42.57 | I9: ='[5]Non Local 201314'!AE264 -> 148.78 | J9: 169.61 | K9: ='[5]Non Local 201314'!AF264 -> 20.8 | L9: 23.71 | M9: ='[5]Non Local 201314'!Z264 -> 5.35 | N9: 6.1
D10: ≥ 66kV & ≤ 132kV | E10: ='[5]Non Local 201314'!P265 -> 47.49 | F10: 54.14 | G10: ='[5]Non Local 201314'!S265 -> 36.89 | H10: 42.05 | I10: ='[5]Non Local 201314'!AE265 -> 143.36 | J10: 163.43 | K10: ='[5]Non Local 201314'!AF265 -> 20.04 | L10: 22.85 | M10: ='[5]Non Local 201314'!Z265 -> 5.21 | N10: 5.94
D11: > 132kV* | E11: ='[5]Non Local 201314'!P266 -> 44.43 | F11: 50.65 | G11: ='[5]Non Local 201314'!S266 -> 34.55 | H11: 39.39 | I11: ='[5]Non Local 201314'!AE266 -> 138.3 | J11: 157.66 | K11: ='[5]Non Local 201314'!AF266 -> 19.32 | L11: 22.02 | M11: ='[5]Non Local 201314'!Z266 -> 6.58 | N11: 7.5
C12: > 300km and ≤ 600km | D12: < 500V | E12: ='[5]Non Local 201314'!P267 -> 51.19 | F12: 58.36 | G12: ='[5]Non Local 201314'!S267 -> 39.7 | H12: 45.26 | I12: ='[5]Non Local 201314'!AE267 -> 155.31 | J12: 177.05 | K12: ='[5]Non Local 201314'!AF267 -> 21.69 | L12: 24.73 | M12: ='[5]Non Local 201314'!Z267 -> 5.9 | N12: 6.73
D13: ≥ 500V & < 66kV | E13: ='[5]Non Local 201314'!P268 -> 48.84 | F13: 55.68 | G13: ='[5]Non Local 201314'!S268 -> 38.1 | H13: 43.43 | I13: ='[5]Non Local 201314'!AE268 -> 150.29 | J13: 171.33 | K13: ='[5]Non Local 201314'!AF268 -> 20.98 | L13: 23.92 | M13: ='[5]Non Local 201314'!Z268 -> 5.4 | N13: 6.16
D14: ≥ 66kV & ≤ 132kV | E14: ='[5]Non Local 201314'!P269 -> 48.48 | F14: 55.27 | G14: ='[5]Non Local 201314'!S269 -> 37.64 | H14: 42.91 | I14: ='[5]Non Local 201314'!AE269 -> 144.79 | J14: 165.06 | K14: ='[5]Non Local 201314'!AF269 -> 20.23 | L14: 23.06 | M14: ='[5]Non Local 201314'!Z269 -> 5.25 | N14: 5.99
D15: > 132kV* | E15: ='[5]Non Local 201314'!P270 -> 45.35 | F15: 51.7 | G15: ='[5]Non Local 201314'!S270 -> 35.25 | H15: 40.19 | I15: ='[5]Non Local 201314'!AE270 -> 139.7 | J15: 159.26 | K15: ='[5]Non Local 201314'!AF270 -> 19.51 | L15: 22.24 | M15: ='[5]Non Local 201314'!Z270 -> 6.65 | N15: 7.58
C16: > 600km and ≤ 900km | D16: < 500V | E16: ='[5]Non Local 201314'!P271 -> 51.68 | F16: 58.92 | G16: ='[5]Non Local 201314'!S271 -> 40.09 | H16: 45.7 | I16: ='[5]Non Local 201314'!AE271 -> 156.89 | J16: 178.85 | K16: ='[5]Non Local 201314'!AF271 -> 21.92 | L16: 24.99 | M16: ='[5]Non Local 201314'!Z271 -> 5.97 | N16: 6.81
D17: ≥ 500V & < 66kV | E17: ='[5]Non Local 201314'!P272 -> 49.33 | F17: 56.24 | G17: ='[5]Non Local 201314'!S272 -> 38.49 | H17: 43.88 | I17: ='[5]Non Local 201314'!AE272 -> 151.8 | J17: 173.05 | K17: ='[5]Non Local 201314'!AF272 -> 21.21 | L17: 24.18 | M17: ='[5]Non Local 201314'!Z272 -> 5.44 | N17: 6.2
D18: ≥ 66kV & ≤ 132kV | E18: ='[5]Non Local 201314'!P273 -> 48.96 | F18: 55.81 | G18: ='[5]Non Local 201314'!S273 -> 38.02 | H18: 43.34 | I18: ='[5]Non Local 201314'!AE273 -> 146.24 | J18: 166.71 | K18: ='[5]Non Local 201314'!AF273 -> 20.43 | L18: 23.29 | M18: ='[5]Non Local 201314'!Z273 -> 5.29 | N18: 6.03
D19: > 132kV* | E19: ='[5]Non Local 201314'!P274 -> 45.8 | F19: 52.21 | G19: ='[5]Non Local 201314'!S274 -> 35.61 | H19: 40.6 | I19: ='[5]Non Local 201314'!AE274 -> 141.1 | J19: 160.85 | K19: ='[5]Non Local 201314'!AF274 -> 19.7 | L19: 22.46 | M19: ='[5]Non Local 201314'!Z274 -> 6.74 | N19: 7.68
C20: > 900km | D20: < 500V | E20: ='[5]Non Local 201314'!P275 -> 52.22 | F20: 59.53 | G20: ='[5]Non Local 201314'!S275 -> 40.5 | H20: 46.17 | I20: ='[5]Non Local 201314'!AE275 -> 158.42 | J20: 180.6 | K20: ='[5]Non Local 201314'!AF275 -> 22.13 | L20: 25.23 | M20: ='[5]Non Local 201314'!Z275 -> 5.99 | N20: 6.83
D21: ≥ 500V & < 66kV | E21: ='[5]Non Local 201314'!P276 -> 49.81 | F21: 56.78 | G21: ='[5]Non Local 201314'!S276 -> 38.86 | H21: 44.3 | I21: ='[5]Non Local 201314'!AE276 -> 153.32 | J21: 174.78 | K21: ='[5]Non Local 201314'!AF276 -> 21.4 | L21: 24.4 | M21: ='[5]Non Local 201314'!Z276 -> 5.51 | N21: 6.28
D22: ≥ 66kV & ≤ 132kV | E22: ='[5]Non Local 201314'!P277 -> 49.46 | F22: 56.38 | G22: ='[5]Non Local 201314'!S277 -> 38.4 | H22: 43.78 | I22: ='[5]Non Local 201314'!AE277 -> 147.73 | J22: 168.41 | K22: ='[5]Non Local 201314'!AF277 -> 20.64 | L22: 23.53 | M22: ='[5]Non Local 201314'!Z277 -> 5.32 | N22: 6.06
D23: > 132kV* | E23: ='[5]Non Local 201314'!P278 -> 46.29 | F23: 52.77 | G23: ='[5]Non Local 201314'!S278 -> 36 | H23: 41.04 | I23: ='[5]Non Local 201314'!AE278 -> 142.53 | J23: 162.48 | K23: ='[5]Non Local 201314'!AF278 -> 19.9 | L23: 22.69 | M23: ='[5]Non Local 201314'!Z278 -> 6.79 | N23: 7.74
D24: * 132 kV or Transmission connected
C26: Distribution network charges
E27: Network access charge [R/kVA/m] | G27: Network demand charge [R/kVA/m] | I27: Urban low voltage subsidy charge [R/kVA/m]
M28: Reliability service charge [c/kWh]
C29: Voltage | F29: VAT incl | H29: VAT incl | J29: VAT incl | L29: Voltage | N29: VAT incl
C30: < 500V | E30: ='[5]Non Local 201314'!AA263 -> 11.63 | F30: =ROUND(E30 * (1 + VAT), 2) -> 13.26 | G30: ='[5]Non Local 201314'!AB263 -> 22.05 | H30: =ROUND(G30 * (1 + VAT), 2) -> 25.14 | I30: ='[5]Non Local 201314'!AN247 -> 0 | J30: =ROUND(I30 * (1 + VAT), 2) -> 0 | L30: < 500V | M30: ='[5]Non Local 201314'!Y267 -> 0.27 | N30: =ROUND(M30 * (1 + VAT), 2) -> 0.31
C31: ≥ 500V & < 66kV | E31: ='[5]Non Local 201314'!AA264 -> 10.67 | F31: =ROUND(E31 * (1 + VAT), 2) -> 12.16 | G31: ='[5]Non Local 201314'!AB264 -> 20.23 | H31: =ROUND(G31 * (1 + VAT), 2) -> 23.06 | I31: ='[5]Non Local 201314'!AN248 -> 0 | J31: =ROUND(I31 * (1 + VAT), 2) -> 0 | L31: ≥ 500V & < 66kV | M31: ='[5]Non Local 201314'!Y268 -> 0.26 | N31: =ROUND(M31 * (1 + VAT), 2) -> 0.3
C32: ≥ 66kV & ≤ 132kV | E32: ='[5]Non Local 201314'!AA265 -> 3.81 | F32: =ROUND(E32 * (1 + VAT), 2) -> 4.34 | G32: ='[5]Non Local 201314'!AB265 -> 7.05 | H32: =ROUND(G32 * (1 + VAT), 2) -> 8.04 | I32: ='[5]Non Local 201314'!AN249 -> 9.39 | J32: =ROUND(I32 * (1 + VAT), 2) -> 10.7 | L32: ≥ 66kV & ≤ 132kV | M32: ='[5]Non Local 201314'!Y269 -> 0.25 | N32: =ROUND(M32 * (1 + VAT), 2) -> 0.29
C33: > 132kV / Transmission connected | E33: ='[5]Non Local 201314'!AA266 -> 0 | F33: =ROUND(E33 * (1 + VAT), 2) -> 0 | G33: ='[5]Non Local 201314'!AB266 -> 0 | H33: =ROUND(G33 * (1 + VAT), 2) -> 0 | I33: ='[5]Non Local 201314'!AN250 -> 9.39 | J33: =ROUND(I33 * (1 + VAT), 2) -> 10.7 | L33: > 132kV / Transmission connected | M33: ='[5]Non Local 201314'!Y270 -> 0.23 | N33: =ROUND(M33 * (1 + VAT), 2) -> 0.26
C36: Customer categories | D36: Service charge [R/account/day] | F36: Administration charge [R/POD/day]
E38: VAT incl | G38: VAT incl
C39: >1 MVA | D39: ='[5]Non Local 201314'!N263 -> 133.5 | E39: =ROUND(D39 * (1 + VAT), 2) -> 152.19 | F39: ='[5]Non Local 201314'!I263 -> 60.17 | G39: =ROUND(F39 * (1 + VAT), 2) -> 68.59
C40: Key customers | D40: ='[5]Non Local 201314'!O263 -> 2616.06 | E40: =ROUND(D40 * (1 + VAT), 2) -> 2982.31 | F40: ='[5]Non Local 201314'!J263 -> 83.55 | G40: =ROUND(F40 * (1 + VAT), 2) -> 95.25
C43: Electrification and rural network subsidy charge [c/kWh] | E43: Affordability subsidy charge [c/kWh] payable by non-local authority tariffs
C45: All seasons | E45: All seasons
D46: VAT incl | F46: VAT incl
C47: ='[5]Non Local 201314'!$AO$263+'[5]Non Local 201314'!$AM$263 -> 5.2 | D47: =ROUND(C47 * (1 + VAT), 2) -> 5.93 | E47: ='[5]Non Local 201314'!$AP$263 -> 2.07 | F47: =ROUND(E47 * (1 + VAT), 2) -> 2.36

Sheet Nightsave Large Munic inc
N1: =SUM(E8:E23,G8:G23,I8:I23,K8:K23,M8:M23,#REF!,#REF!,#REF!,#REF!,#REF!,#REF!) - '[5]Local 201314'!$AL$195 -> 
B2: Nightsave Urban Large tariff | M2: Local authority | AA2: =SUM(#REF!,#REF!,#REF!,#REF!,#REF!,#REF!,#REF!,#REF!) ->  | AB2: check value
E4: Active energy charge [c/kWh] | I4: Energy demand charge [R/kVA/m] | M4: Transmission network charges [R/kVA/m]
C5: Transmission zone | E5: High demand season [Jun - Aug] | G5: Low demand season [Sep - May] | I5: High demand season [Jun - Aug] | K5: Low demand season [Sep - May]
D6: Voltage
F7: VAT incl | H7: VAT incl | J7: VAT incl | L7: VAT incl | N7: VAT incl
C8: ≤ 300km | D8: < 500V | E8: ='[5]Local 201314'!P195 -> 51.72 | F8: =ROUND(E8 * (1 + VAT), 2) -> 58.96 | G8: ='[5]Local 201314'!S195 -> 40.22 | H8: =ROUND(G8 * (1 + VAT), 2) -> 45.85 | I8: ='[5]Local 201314'!AE195 -> 154.43 | J8: =ROUND(I8 * (1 + VAT), 2) -> 176.05 | K8: ='[5]Local 201314'!AF195 -> 21.58 | L8: =ROUND(K8 * (1 + VAT), 2) -> 24.6 | M8: ='[5]Local 201314'!Z195 -> 5.83 | N8: =ROUND(M8 * (1 + VAT), 2) -> 6.65
D9: ≥ 500V & < 66kV | E9: ='[5]Local 201314'!P196 -> 48.98 | F9: 55.84 | G9: ='[5]Local 201314'!S196 -> 38.23 | H9: 43.58 | I9: ='[5]Local 201314'!AE196 -> 149.47 | J9: 170.4 | K9: ='[5]Local 201314'!AF196 -> 20.9 | L9: 23.83 | M9: ='[5]Local 201314'!Z196 -> 5.32 | N9: 6.06
D10: ≥ 66kV & ≤ 132kV | E10: ='[5]Local 201314'!P197 -> 48.62 | F10: 55.43 | G10: ='[5]Local 201314'!S197 -> 37.76 | H10: 43.05 | I10: ='[5]Local 201314'!AE197 -> 144.03 | J10: 164.19 | K10: ='[5]Local 201314'!AF197 -> 20.13 | L10: 22.95 | M10: ='[5]Local 201314'!Z197 -> 5.18 | N10: 5.91
D11: > 132kV* | E11: ='[5]Local 201314'!P198 -> 45.48 | F11: 51.85 | G11: ='[5]Local 201314'!S198 -> 35.37 | H11: 40.32 | I11: ='[5]Local 201314'!AE198 -> 138.94 | J11: 158.39 | K11: ='[5]Local 201314'!AF198 -> 19.41 | L11: 22.13 | M11: ='[5]Local 201314'!Z198 -> 6.55 | N11: 7.47
C12: > 300km and ≤ 600km | D12: < 500V | E12: ='[5]Local 201314'!P199 -> 52.41 | F12: 59.75 | G12: ='[5]Local 201314'!S199 -> 40.65 | H12: 46.34 | I12: ='[5]Local 201314'!AE199 -> 156.03 | J12: 177.87 | K12: ='[5]Local 201314'!AF199 -> 21.79 | L12: 24.84 | M12: ='[5]Local 201314'!Z199 -> 5.87 | N12: 6.69
D13: ≥ 500V & < 66kV | E13: ='[5]Local 201314'!P200 -> 50 | F13: 57 | G13: ='[5]Local 201314'!S200 -> 39.01 | H13: 44.47 | I13: ='[5]Local 201314'!AE200 -> 150.98 | J13: 172.12 | K13: ='[5]Local 201314'!AF200 -> 21.08 | L13: 24.03 | M13: ='[5]Local 201314'!Z200 -> 5.38 | N13: 6.13
D14: ≥ 66kV & ≤ 132kV | E14: ='[5]Local 201314'!P201 -> 49.63 | F14: 56.58 | G14: ='[5]Local 201314'!S201 -> 38.54 | H14: 43.94 | I14: ='[5]Local 201314'!AE201 -> 145.47 | J14: 165.84 | K14: ='[5]Local 201314'!AF201 -> 20.33 | L14: 23.18 | M14: ='[5]Local 201314'!Z201 -> 5.22 | N14: 5.95
D15: > 132kV* | E15: ='[5]Local 201314'!P202 -> 46.43 | F15: 52.93 | G15: ='[5]Local 201314'!S202 -> 36.09 | H15: 41.14 | I15: ='[5]Local 201314'!AE202 -> 140.35 | J15: 160 | K15: ='[5]Local 201314'!AF202 -> 19.6 | L15: 22.34 | M15: ='[5]Local 201314'!Z202 -> 6.62 | N15: 7.55
C16: > 600km and ≤ 900km | D16: < 500V | E16: ='[5]Local 201314'!P203 -> 52.91 | F16: 60.32 | G16: ='[5]Local 201314'!S203 -> 41.04 | H16: 46.79 | I16: ='[5]Local 201314'!AE203 -> 157.62 | J16: 179.69 | K16: ='[5]Local 201314'!AF203 -> 22.02 | L16: 25.1 | M16: ='[5]Local 201314'!Z203 -> 5.94 | N16: 6.77
D17: ≥ 500V & < 66kV | E17: ='[5]Local 201314'!P204 -> 50.5 | F17: 57.57 | G17: ='[5]Local 201314'!S204 -> 39.41 | H17: 44.93 | I17: ='[5]Local 201314'!AE204 -> 152.51 | J17: 173.86 | K17: ='[5]Local 201314'!AF204 -> 21.31 | L17: 24.29 | M17: ='[5]Local 201314'!Z204 -> 5.42 | N17: 6.18
D18: ≥ 66kV & ≤ 132kV | E18: ='[5]Local 201314'!P205 -> 50.13 | F18: 57.15 | G18: ='[5]Local 201314'!S205 -> 38.93 | H18: 44.38 | I18: ='[5]Local 201314'!AE205 -> 146.92 | J18: 167.49 | K18: ='[5]Local 201314'!AF205 -> 20.52 | L18: 23.39 | M18: ='[5]Local 201314'!Z205 -> 5.27 | N18: 6.01
D19: > 132kV* | E19: ='[5]Local 201314'!P206 -> 46.89 | F19: 53.45 | G19: ='[5]Local 201314'!S206 -> 36.45 | H19: 41.55 | I19: ='[5]Local 201314'!AE206 -> 141.76 | J19: 161.61 | K19: ='[5]Local 201314'!AF206 -> 19.8 | L19: 22.57 | M19: ='[5]Local 201314'!Z206 -> 6.71 | N19: 7.65
C20: > 900km | D20: < 500V | E20: ='[5]Local 201314'!P207 -> 53.46 | F20: 60.94 | G20: ='[5]Local 201314'!S207 -> 41.46 | H20: 47.26 | I20: ='[5]Local 201314'!AE207 -> 159.16 | J20: 181.44 | K20: ='[5]Local 201314'!AF207 -> 22.24 | L20: 25.35 | M20: ='[5]Local 201314'!Z207 -> 5.97 | N20: 6.81
D21: ≥ 500V & < 66kV | E21: ='[5]Local 201314'!P208 -> 51 | F21: 58.14 | G21: ='[5]Local 201314'!S208 -> 39.79 | H21: 45.36 | I21: ='[5]Local 201314'!AE208 -> 154.03 | J21: 175.59 | K21: ='[5]Local 201314'!AF208 -> 21.5 | L21: 24.51 | M21: ='[5]Local 201314'!Z208 -> 5.48 | N21: 6.25
D22: ≥ 66kV & ≤ 132kV | E22: ='[5]Local 201314'!P209 -> 50.63 | F22: 57.72 | G22: ='[5]Local 201314'!S209 -> 39.31 | H22: 44.81 | I22: ='[5]Local 201314'!AE209 -> 148.41 | J22: 169.19 | K22: ='[5]Local 201314'!AF209 -> 20.74 | L22: 23.64 | M22: ='[5]Local 201314'!Z209 -> 5.3 | N22: 6.04
D23: > 132kV* | E23: ='[5]Local 201314'!P210 -> 47.4 | F23: 54.04 | G23: ='[5]Local 201314'!S210 -> 36.86 | H23: 42.02 | I23: ='[5]Local 201314'!AE210 -> 143.2 | J23: 163.25 | K23: ='[5]Local 201314'!AF210 -> 19.99 | L23: 22.79 | M23: ='[5]Local 201314'!Z210 -> 6.76 | N23: 7.71
D24: * 132 kV or Transmission connected
C26: Distribution network charges
E27: Network access charge [R/kVA/m] | G27: Network demand charge [R/kVA/m] | I27: Urban low voltage subsidy charge [R/kVA/m]
M28: Reliability service charge [c/kWh]
C29: Voltage | F29: VAT incl | H29: VAT incl | J29: VAT incl | L29: Voltage | N29: VAT incl
C30: < 500V | E30: ='[5]Local 201314'!AA195 -> 11.63 | F30: =ROUND(E30 * (1 + VAT), 2) -> 13.26 | G30: ='[5]Local 201314'!AB195 -> 22.05 | H30: =ROUND(G30 * (1 + VAT), 2) -> 25.14 | I30: ='[5]Local 201314'!AN195 -> 0 | J30: =ROUND(I30 * (1 + VAT), 2) -> 0 | L30: < 500V | M30: ='[5]Local 201314'!Y195 -> 0.27 | N30: =ROUND(M30 * (1 + VAT), 2) -> 0.31
C31: ≥ 500V & < 66kV | E31: ='[5]Local 201314'!AA196 -> 10.67 | F31: =ROUND(E31 * (1 + VAT), 2) -> 12.16 | G31: ='[5]Local 201314'!AB196 -> 20.23 | H31: =ROUND(G31 * (1 + VAT), 2) -> 23.06 | I31: ='[5]Local 201314'!AN196 -> 0 | J31: =ROUND(I31 * (1 + VAT), 2) -> 0 | L31: ≥ 500V & < 66kV | M31: ='[5]Local 201314'!Y196 -> 0.26 | N31: =ROUND(M31 * (1 + VAT), 2) -> 0.3
C32: ≥ 66kV & ≤ 132kV | E32: ='[5]Local 201314'!AA197 -> 3.81 | F32: =ROUND(E32 * (1 + VAT), 2) -> 4.34 | G32: ='[5]Local 201314'!AB197 -> 7.05 | H32: =ROUND(G32 * (1 + VAT), 2) -> 8.04 | I32: ='[5]Local 201314'!AN197 -> 9.39 | J32: =ROUND(I32 * (1 + VAT), 2) -> 10.7 | L32: ≥ 66kV & ≤ 132kV | M32: ='[5]Local 201314'!Y197 -> 0.25 | N32: =ROUND(M32 * (1 + VAT), 2) -> 0.29
C33: > 132kV / Transmission connected | E33: ='[5]Local 201314'!AA198 -> 0 | F33: =ROUND(E33 * (1 + VAT), 2) -> 0 | G33: ='[5]Local 201314'!AB198 -> 0 | H33: =ROUND(G33 * (1 + VAT), 2) -> 0 | I33: ='[5]Local 201314'!AN198 -> 9.39 | J33: =ROUND(I33 * (1 + VAT), 2) -> 10.7 | L33: > 132kV / Transmission connected | M33: ='[5]Local 201314'!Y198 -> 0.23 | N33: =ROUND(M33 * (1 + VAT), 2) -> 0.26
C36: Customer categories | D36: Service charge [R/account/day] | F36: Administration charge [R/POD/day]
E38: VAT incl | G38: VAT incl
C39: >1 MVA | D39: ='[5]Local 201314'!$N$195 -> 132.88 | E39: =ROUND(D39 * (1 + VAT), 2) -> 151.48 | F39: ='[5]Local 201314'!$I$195 -> 59.89 | G39: =ROUND(F39 * (1 + VAT), 2) -> 68.27
C40: Key customers | D40: ='[5]Local 201314'!$O$195 -> 2603.95 | E40: =ROUND(D40 * (1 + VAT), 2) -> 2968.5 | F40: ='[5]Local 201314'!$J$195 -> 83.16 | G40: =ROUND(F40 * (1 + VAT), 2) -> 94.8
C43: Electrification and rural network subsidy charge [c/kWh]
C45: All seasons
D46: VAT incl
C47: ='[5]Local 201314'!$AO$195+'[5]Local 201314'!$AM$195 -> 5.17 | D47: =ROUND(C47 * (1 + VAT), 2) -> 5.89

Sheet Miniflex inc
R1: =SUM(E8:E23,G8:G23,I8:I23,K8:K23,M8:M23,O8:O23,Q8:Q23,#REF!,#REF!,#REF!,M32,K32) - '[5]Non Local 201314'!$AL$279 -> 
B2: Miniflex tariff | O2: Non-local authority | AA2: =SUM(#REF!,#REF!,#REF!,#REF!,#REF!,#REF!) ->  | AB2: check value
E4: Active energy charge [c/kWh] | Q4: Network access charges [R/kVA/m]
C5: Transmission zone | E5: High demand season [Jun - Aug] | K5: Low demand season [Sep - May]
D6: Voltage | E6: Peak | G6: Standard | I6: Off Peak | K6: Peak | M6: Standard | O6: Off Peak
F7: VAT incl | H7: VAT incl | J7: VAT incl | L7: VAT incl | N7: VAT incl | P7: VAT incl | R7: VAT incl | AB7: nac test
C8: ≤ 300km | D8: < 500V | E8: ='[5]Non Local 201314'!P279 -> 204.55 | F8: =ROUND(E8 * (1 + VAT), 2) -> 233.19 | G8: ='[5]Non Local 201314'!Q279 -> 62.23 | H8: =ROUND(G8 * (1 + VAT), 2) -> 70.94 | I8: ='[5]Non Local 201314'!R279 -> 33.97 | J8: =ROUND(I8 * (1 + VAT), 2) -> 38.73 | K8: ='[5]Non Local 201314'!S279 -> 66.98 | L8: =ROUND(K8 * (1 + VAT), 2) -> 76.36 | M8: ='[5]Non Local 201314'!T279 -> 46.22 | N8: =ROUND(M8 * (1 + VAT), 2) -> 52.69 | O8: ='[5]Non Local 201314'!U279 -> 29.46 | P8: =ROUND(O8 * (1 + VAT), 2) -> 33.58 | Q8: ='[5]Non Local 201314'!AA279 -> 17.46 | R8: =ROUND(Q8 * (1 + VAT), 2) -> 19.9 | AB8: =Q8 - SUM('Megaflex inc'!Q8,'Megaflex inc'!#REF!) -> 
D9: ≥ 500V & < 66kV | E9: ='[5]Non Local 201314'!P280 -> 201.33 | F9: 229.52 | G9: ='[5]Non Local 201314'!Q280 -> 60.99 | H9: 69.53 | I9: ='[5]Non Local 201314'!R280 -> 33.12 | J9: 37.76 | K9: ='[5]Non Local 201314'!S280 -> 65.68 | L9: 74.88 | M9: ='[5]Non Local 201314'!T280 -> 45.2 | N9: 51.53 | O9: ='[5]Non Local 201314'!U280 -> 28.68 | P9: 32.7 | Q9: ='[5]Non Local 201314'!AA280 -> 16 | R9: 18.24 | AB9: =Q9 - SUM('Megaflex inc'!Q9,'Megaflex inc'!#REF!) -> 
D10: ≥ 66kV & ≤ 132kV | E10: ='[5]Non Local 201314'!P281 -> 194.96 | F10: 222.25 | G10: ='[5]Non Local 201314'!Q281 -> 59.06 | H10: 67.33 | I10: ='[5]Non Local 201314'!R281 -> 32.07 | J10: 36.56 | K10: ='[5]Non Local 201314'!S281 -> 63.6 | L10: 72.5 | M10: ='[5]Non Local 201314'!T281 -> 43.77 | N10: 49.9 | O10: ='[5]Non Local 201314'!U281 -> 27.77 | P10: 31.66 | Q10: ='[5]Non Local 201314'!AA281 -> 8.99 | R10: 10.25 | AB10: =Q10 - SUM('Megaflex inc'!Q10,'Megaflex inc'!#REF!) -> 
D11: > 132kV* | E11: ='[5]Non Local 201314'!P282 -> 183.75 | F11: 209.48 | G11: ='[5]Non Local 201314'!Q282 -> 55.66 | H11: 63.45 | I11: ='[5]Non Local 201314'!R282 -> 30.23 | J11: 34.46 | K11: ='[5]Non Local 201314'!S282 -> 59.94 | L11: 68.33 | M11: ='[5]Non Local 201314'!T282 -> 41.25 | N11: 47.03 | O11: ='[5]Non Local 201314'!U282 -> 26.18 | P11: 29.85 | Q11: ='[5]Non Local 201314'!AA282 -> 6.55 | R11: 7.47 | AB11: =Q11 - SUM('Megaflex inc'!Q11,'Megaflex inc'!#REF!) -> 
C12: > 300km and ≤ 600km | D12: < 500V | E12: ='[5]Non Local 201314'!P283 -> 206.21 | F12: 235.08 | G12: ='[5]Non Local 201314'!Q283 -> 62.48 | H12: 71.23 | I12: ='[5]Non Local 201314'!R283 -> 33.93 | J12: 38.68 | K12: ='[5]Non Local 201314'!S283 -> 67.27 | L12: 76.69 | M12: ='[5]Non Local 201314'!T283 -> 46.31 | N12: 52.79 | O12: ='[5]Non Local 201314'!U283 -> 29.38 | P12: 33.49 | Q12: ='[5]Non Local 201314'!AA283 -> 17.5 | R12: 19.95 | AB12: =Q12 - SUM('Megaflex inc'!Q12,'Megaflex inc'!#REF!) -> 
D13: ≥ 500V & < 66kV | E13: ='[5]Non Local 201314'!P284 -> 203.34 | F13: 231.81 | G13: ='[5]Non Local 201314'!Q284 -> 61.6 | H13: 70.22 | I13: ='[5]Non Local 201314'!R284 -> 33.45 | J13: 38.13 | K13: ='[5]Non Local 201314'!S284 -> 66.34 | L13: 75.63 | M13: ='[5]Non Local 201314'!T284 -> 45.65 | N13: 52.04 | O13: ='[5]Non Local 201314'!U284 -> 28.96 | P13: 33.01 | Q13: ='[5]Non Local 201314'!AA284 -> 16.05 | R13: 18.3 | AB13: =Q13 - SUM('Megaflex inc'!Q13,'Megaflex inc'!#REF!) -> 
D14: ≥ 66kV & ≤ 132kV | E14: ='[5]Non Local 201314'!P285 -> 196.88 | F14: 224.44 | G14: ='[5]Non Local 201314'!Q285 -> 59.64 | H14: 67.99 | I14: ='[5]Non Local 201314'!R285 -> 32.38 | J14: 36.91 | K14: ='[5]Non Local 201314'!S285 -> 64.22 | L14: 73.21 | M14: ='[5]Non Local 201314'!T285 -> 44.19 | N14: 50.38 | O14: ='[5]Non Local 201314'!U285 -> 28.04 | P14: 31.97 | Q14: ='[5]Non Local 201314'!AA285 -> 9.03 | R14: 10.29 | AB14: =Q14 - SUM('Megaflex inc'!Q14,'Megaflex inc'!#REF!) -> 
D15: > 132kV* | E15: ='[5]Non Local 201314'!P286 -> 185.58 | F15: 211.56 | G15: ='[5]Non Local 201314'!Q286 -> 56.22 | H15: 64.09 | I15: ='[5]Non Local 201314'!R286 -> 30.52 | J15: 34.79 | K15: ='[5]Non Local 201314'!S286 -> 60.53 | L15: 69 | M15: ='[5]Non Local 201314'!T286 -> 41.66 | N15: 47.49 | O15: ='[5]Non Local 201314'!U286 -> 26.43 | P15: 30.13 | Q15: ='[5]Non Local 201314'!AA286 -> 6.62 | R15: 7.55 | AB15: =Q15 - SUM('Megaflex inc'!Q15,'Megaflex inc'!#REF!) -> 
C16: > 600km and ≤ 900km | D16: < 500V | E16: ='[5]Non Local 201314'!P287 -> 208.27 | F16: 237.43 | G16: ='[5]Non Local 201314'!Q287 -> 63.08 | H16: 71.91 | I16: ='[5]Non Local 201314'!R287 -> 34.25 | J16: 39.05 | K16: ='[5]Non Local 201314'!S287 -> 67.94 | L16: 77.45 | M16: ='[5]Non Local 201314'!T287 -> 46.76 | N16: 53.31 | O16: ='[5]Non Local 201314'!U287 -> 29.66 | P16: 33.81 | Q16: ='[5]Non Local 201314'!AA287 -> 17.58 | R16: 20.04 | AB16: =Q16 - SUM('Megaflex inc'!Q16,'Megaflex inc'!#REF!) -> 
D17: ≥ 500V & < 66kV | E17: ='[5]Non Local 201314'!P288 -> 205.38 | F17: 234.13 | G17: ='[5]Non Local 201314'!Q288 -> 62.22 | H17: 70.93 | I17: ='[5]Non Local 201314'!R288 -> 33.79 | J17: 38.52 | K17: ='[5]Non Local 201314'!S288 -> 67 | L17: 76.38 | M17: ='[5]Non Local 201314'!T288 -> 46.11 | N17: 52.57 | O17: ='[5]Non Local 201314'!U288 -> 29.25 | P17: 33.35 | Q17: ='[5]Non Local 201314'!AA288 -> 16.09 | R17: 18.34 | AB17: =Q17 - SUM('Megaflex inc'!Q17,'Megaflex inc'!#REF!) -> 
D18: ≥ 66kV & ≤ 132kV | E18: ='[5]Non Local 201314'!P289 -> 198.88 | F18: 226.72 | G18: ='[5]Non Local 201314'!Q289 -> 60.25 | H18: 68.69 | I18: ='[5]Non Local 201314'!R289 -> 32.71 | J18: 37.29 | K18: ='[5]Non Local 201314'!S289 -> 64.87 | L18: 73.95 | M18: ='[5]Non Local 201314'!T289 -> 44.65 | N18: 50.9 | O18: ='[5]Non Local 201314'!U289 -> 28.32 | P18: 32.28 | Q18: ='[5]Non Local 201314'!AA289 -> 9.07 | R18: 10.34 | AB18: =Q18 - SUM('Megaflex inc'!Q18,'Megaflex inc'!#REF!) -> 
D19: > 132kV* | E19: ='[5]Non Local 201314'!P290 -> 187.45 | F19: 213.69 | G19: ='[5]Non Local 201314'!Q290 -> 56.78 | H19: 64.73 | I19: ='[5]Non Local 201314'!R290 -> 30.84 | J19: 35.16 | K19: ='[5]Non Local 201314'!S290 -> 61.15 | L19: 69.71 | M19: ='[5]Non Local 201314'!T290 -> 42.08 | N19: 47.97 | O19: ='[5]Non Local 201314'!U290 -> 26.7 | P19: 30.44 | Q19: ='[5]Non Local 201314'!AA290 -> 6.71 | R19: 7.65 | AB19: =Q19 - SUM('Megaflex inc'!Q19,'Megaflex inc'!#REF!) -> 
C20: > 900km | D20: < 500V | E20: ='[5]Non Local 201314'!P291 -> 210.36 | F20: 239.81 | G20: ='[5]Non Local 201314'!Q291 -> 63.74 | H20: 72.66 | I20: ='[5]Non Local 201314'!R291 -> 34.61 | J20: 39.46 | K20: ='[5]Non Local 201314'!S291 -> 68.63 | L20: 78.24 | M20: ='[5]Non Local 201314'!T291 -> 47.23 | N20: 53.84 | O20: ='[5]Non Local 201314'!U291 -> 29.97 | P20: 34.17 | Q20: ='[5]Non Local 201314'!AA291 -> 17.6 | R20: 20.06 | AB20: =Q20 - SUM('Megaflex inc'!Q20,'Megaflex inc'!#REF!) -> 
D21: ≥ 500V & < 66kV | E21: ='[5]Non Local 201314'!P292 -> 207.43 | F21: 236.47 | G21: ='[5]Non Local 201314'!Q292 -> 62.83 | H21: 71.63 | I21: ='[5]Non Local 201314'!R292 -> 34.11 | J21: 38.89 | K21: ='[5]Non Local 201314'!S292 -> 67.66 | L21: 77.13 | M21: ='[5]Non Local 201314'!T292 -> 46.56 | N21: 53.08 | O21: ='[5]Non Local 201314'!U292 -> 29.54 | P21: 33.68 | Q21: ='[5]Non Local 201314'!AA292 -> 16.16 | R21: 18.42 | AB21: =Q21 - SUM('Megaflex inc'!Q21,'Megaflex inc'!#REF!) -> 
D22: ≥ 66kV & ≤ 132kV | E22: ='[5]Non Local 201314'!P293 -> 200.88 | F22: 229 | G22: ='[5]Non Local 201314'!Q293 -> 60.85 | H22: 69.37 | I22: ='[5]Non Local 201314'!R293 -> 33.04 | J22: 37.67 | K22: ='[5]Non Local 201314'!S293 -> 65.52 | L22: 74.69 | M22: ='[5]Non Local 201314'!T293 -> 45.1 | N22: 51.41 | O22: ='[5]Non Local 201314'!U293 -> 28.61 | P22: 32.62 | Q22: ='[5]Non Local 201314'!AA293 -> 9.11 | R22: 10.39 | AB22: =Q22 - SUM('Megaflex inc'!Q22,'Megaflex inc'!#REF!) -> 
D23: > 132kV* | E23: ='[5]Non Local 201314'!P294 -> 189.29 | F23: 215.79 | G23: ='[5]Non Local 201314'!Q294 -> 57.37 | H23: 65.4 | I23: ='[5]Non Local 201314'!R294 -> 31.17 | J23: 35.53 | K23: ='[5]Non Local 201314'!S294 -> 61.78 | L23: 70.43 | M23: ='[5]Non Local 201314'!T294 -> 42.53 | N23: 48.48 | O23: ='[5]Non Local 201314'!U294 -> 27 | P23: 30.78 | Q23: ='[5]Non Local 201314'!AA294 -> 6.76 | R23: 7.71 | AB23: =Q23 - SUM('Megaflex inc'!Q23,'Megaflex inc'!#REF!) -> 
D24: * 132 kV or Transmission connected
C26: Customer categories | E26: Service charge [R/account/day] | G26: Administration charge [R/POD/day]
F28: VAT incl | H28: VAT incl | K28: Reliability service charge [c/kWh] | M28: Network demand charge [c/kWh] [Peak & Standard] | P28: Urban low voltage subsidy charge [R/kVA/m]
C29: ≤ 100 kVA | E29: ='[5]Non Local 201314'!$K$279 -> 9.49 | F29: =ROUND(E29 * (1 + VAT), 2) -> 10.82 | G29: ='[5]Non Local 201314'!$F$279 -> 2.08 | H29: =ROUND(G29 * (1 + VAT), 2) -> 2.37 | J29: Voltage | L29: VAT incl | N29: VAT incl | R29: VAT incl
C30: > 100 kVA & ≤ 500 kVA | E30: ='[5]Non Local 201314'!$L$279 -> 43.38 | F30: =ROUND(E30 * (1 + VAT), 2) -> 49.45 | G30: ='[5]Non Local 201314'!$G$279 -> 12.16 | H30: =ROUND(G30 * (1 + VAT), 2) -> 13.86 | J30: < 500V | K30: ='[5]Non Local 201314'!Y279 -> 0.27 | L30: =ROUND(K30 * (1 + VAT), 2) -> 0.31 | M30: ='[5]Non Local 201314'!AR279 -> 10.8 | N30: =ROUND(M30 * (1 + VAT), 2) -> 12.31 | P30: < 500V | Q30: ='[5]Non Local 201314'!AN279 -> 0 | R30: =ROUND(Q30 * (1 + VAT), 2) -> 0
C31: > 500 kVA & ≤ 1 MVA | E31: ='[5]Non Local 201314'!$M$279 -> 133.5 | F31: =ROUND(E31 * (1 + VAT), 2) -> 152.19 | G31: ='[5]Non Local 201314'!$H$279 -> 24.17 | H31: =ROUND(G31 * (1 + VAT), 2) -> 27.55 | J31: ≥ 500V & < 66kV | K31: ='[5]Non Local 201314'!Y280 -> 0.26 | L31: =ROUND(K31 * (1 + VAT), 2) -> 0.3 | M31: ='[5]Non Local 201314'!AR280 -> 4.53 | N31: =ROUND(M31 * (1 + VAT), 2) -> 5.16 | P31: ≥ 500V & < 66kV | Q31: ='[5]Non Local 201314'!AN280 -> 0 | R31: =ROUND(Q31 * (1 + VAT), 2) -> 0
C32: > 1 MVA | E32: ='[5]Non Local 201314'!$N$279 -> 133.5 | F32: =ROUND(E32 * (1 + VAT), 2) -> 152.19 | G32: ='[5]Non Local 201314'!$I$279 -> 60.17 | H32: =ROUND(G32 * (1 + VAT), 2) -> 68.59 | J32: ≥ 66kV & ≤ 132kV | K32: ='[5]Non Local 201314'!Y281 -> 0.25 | L32: =ROUND(K32 * (1 + VAT), 2) -> 0.29 | M32: ='[5]Non Local 201314'!AR281 -> 1.57 | N32: =ROUND(M32 * (1 + VAT), 2) -> 1.79 | P32: ≥ 66kV & ≤ 132kV | Q32: ='[5]Non Local 201314'!AN281 -> 9.39 | R32: =ROUND(Q32 * (1 + VAT), 2) -> 10.7
C33: Key customers | E33: ='[5]Non Local 201314'!$O$279 -> 2616.06 | F33: =ROUND(E33 * (1 + VAT), 2) -> 2982.31 | G33: ='[5]Non Local 201314'!$J$279 -> 83.55 | H33: =ROUND(G33 * (1 + VAT), 2) -> 95.25 | J33: > 132kV / Transmission connected | K33: ='[5]Non Local 201314'!Y282 -> 0.23 | L33: =ROUND(K33 * (1 + VAT), 2) -> 0.26 | M33: ='[5]Non Local 201314'!AR282 -> 0 | N33: =ROUND(M33 * (1 + VAT), 2) -> 0 | P33: > 132kV / Transmission connected | Q33: ='[5]Non Local 201314'!AN282 -> 9.39 | R33: =ROUND(Q33 * (1 + VAT), 2) -> 10.7
C36: Electrification and rural network subsidy charge [c/kWh] | E36: Affordability subsidy charge [c/kWh] payable by non-local authority tariffs | J36: Reactive energy charge [c/kVArh]
C38: All seasons | E38: All seasons | J38: High season | L38: Low season
D39: VAT incl | F39: VAT incl | K39: VAT incl | M39: VAT incl
C40: ='[5]Non Local 201314'!AO279+'[5]Non Local 201314'!AM279 -> 5.2 | D40: =ROUND(C40 * (1 + VAT), 2) -> 5.93 | E40: ='[5]Non Local 201314'!AP279 -> 2.07 | F40: =ROUND(E40 * (1 + VAT), 2) -> 2.36 | J40: ='[5]Non Local 201314'!$V$279 -> 4.1 | K40: =ROUND(J40 * (1 + VAT), 2) -> 4.67 | L40: 0 | M40: =ROUND(L40 * (1 + VAT), 2) -> 0

Sheet Miniflex Munic inc
R1: =SUM(E8:E23,G8:G23,I8:I23,K8:K23,M8:M23,O8:O23,Q8:Q23,M32,E29:E33,G29:G33,#REF!,#REF!) - '[5]Local 201314'!$AL$211 -> 
B2: Miniflex tariff | M2: Local authority | AA2: =SUM(#REF!,#REF!,#REF!,#REF!,#REF!,#REF!) ->  | AB2: check value
E4: Active energy charge [c/kWh] | Q4: Network access charges [R/kVA/m]
C5: Transmission zone | E5: High demand season [Jun - Aug] | K5: Low demand season [Sep - May]
D6: Voltage | E6: Peak | G6: Standard | I6: Off Peak | K6: Peak | M6: Standard | O6: Off Peak
F7: VAT incl | H7: VAT incl | J7: VAT incl | L7: VAT incl | N7: VAT incl | P7: VAT incl | R7: VAT incl | AB7: nac test
C8: ≤ 300km | D8: < 500V | E8: ='[5]Local 201314'!P211 -> 209.42 | F8: =ROUND(E8 * (1 + VAT), 2) -> 238.74 | G8: ='[5]Local 201314'!Q211 -> 63.72 | H8: =ROUND(G8 * (1 + VAT), 2) -> 72.64 | I8: ='[5]Local 201314'!R211 -> 34.78 | J8: =ROUND(I8 * (1 + VAT), 2) -> 39.65 | K8: ='[5]Local 201314'!S211 -> 68.57 | L8: =ROUND(K8 * (1 + VAT), 2) -> 78.17 | M8: ='[5]Local 201314'!T211 -> 47.32 | N8: =ROUND(M8 * (1 + VAT), 2) -> 53.94 | O8: ='[5]Local 201314'!U211 -> 30.16 | P8: =ROUND(O8 * (1 + VAT), 2) -> 34.38 | Q8: ='[5]Local 201314'!AA211 -> 17.46 | R8: =ROUND(Q8 * (1 + VAT), 2) -> 19.9 | AB8: =Q8 - SUM('Megaflex Munic inc'!Q8,'Megaflex Munic inc'!#REF!) -> 
D9: ≥ 500V & < 66kV | E9: ='[5]Local 201314'!P212 -> 206.12 | F9: 234.98 | G9: ='[5]Local 201314'!Q212 -> 62.45 | H9: 71.19 | I9: ='[5]Local 201314'!R212 -> 33.91 | J9: 38.66 | K9: ='[5]Local 201314'!S212 -> 67.24 | L9: 76.65 | M9: ='[5]Local 201314'!T212 -> 46.28 | N9: 52.76 | O9: ='[5]Local 201314'!U212 -> 29.36 | P9: 33.47 | Q9: ='[5]Local 201314'!AA212 -> 16 | R9: 18.24 | AB9: =Q9 - SUM('Megaflex Munic inc'!Q9,'Megaflex Munic inc'!#REF!) -> 
D10: ≥ 66kV & ≤ 132kV | E10: ='[5]Local 201314'!P213 -> 199.61 | F10: 227.56 | G10: ='[5]Local 201314'!Q213 -> 60.47 | H10: 68.94 | I10: ='[5]Local 201314'!R213 -> 32.83 | J10: 37.43 | K10: ='[5]Local 201314'!S213 -> 65.11 | L10: 74.23 | M10: ='[5]Local 201314'!T213 -> 44.82 | N10: 51.09 | O10: ='[5]Local 201314'!U213 -> 28.43 | P10: 32.41 | Q10: ='[5]Local 201314'!AA213 -> 8.99 | R10: 10.25 | AB10: =Q10 - SUM('Megaflex Munic inc'!Q10,'Megaflex Munic inc'!#REF!) -> 
D11: > 132kV* | E11: ='[5]Local 201314'!P214 -> 188.13 | F11: 214.47 | G11: ='[5]Local 201314'!Q214 -> 56.99 | H11: 64.97 | I11: ='[5]Local 201314'!R214 -> 30.95 | J11: 35.28 | K11: ='[5]Local 201314'!S214 -> 61.37 | L11: 69.96 | M11: ='[5]Local 201314'!T214 -> 42.24 | N11: 48.15 | O11: ='[5]Local 201314'!U214 -> 26.8 | P11: 30.55 | Q11: ='[5]Local 201314'!AA214 -> 6.55 | R11: 7.47 | AB11: =Q11 - SUM('Megaflex Munic inc'!Q11,'Megaflex Munic inc'!#REF!) -> 
C12: > 300km and ≤ 600km | D12: < 500V | E12: ='[5]Local 201314'!P215 -> 211.12 | F12: 240.68 | G12: ='[5]Local 201314'!Q215 -> 63.96 | H12: 72.91 | I12: ='[5]Local 201314'!R215 -> 34.73 | J12: 39.59 | K12: ='[5]Local 201314'!S215 -> 68.88 | L12: 78.52 | M12: ='[5]Local 201314'!T215 -> 47.41 | N12: 54.05 | O12: ='[5]Local 201314'!U215 -> 30.08 | P12: 34.29 | Q12: ='[5]Local 201314'!AA215 -> 17.5 | R12: 19.95 | AB12: =Q12 - SUM('Megaflex Munic inc'!Q12,'Megaflex Munic inc'!#REF!) -> 
D13: ≥ 500V & < 66kV | E13: ='[5]Local 201314'!P216 -> 208.18 | F13: 237.33 | G13: ='[5]Local 201314'!Q216 -> 63.07 | H13: 71.9 | I13: ='[5]Local 201314'!R216 -> 34.25 | J13: 39.05 | K13: ='[5]Local 201314'!S216 -> 67.92 | L13: 77.43 | M13: ='[5]Local 201314'!T216 -> 46.74 | N13: 53.28 | O13: ='[5]Local 201314'!U216 -> 29.65 | P13: 33.8 | Q13: ='[5]Local 201314'!AA216 -> 16.05 | R13: 18.3 | AB13: =Q13 - SUM('Megaflex Munic inc'!Q13,'Megaflex Munic inc'!#REF!) -> 
D14: ≥ 66kV & ≤ 132kV | E14: ='[5]Local 201314'!P217 -> 201.56 | F14: 229.78 | G14: ='[5]Local 201314'!Q217 -> 61.06 | H14: 69.61 | I14: ='[5]Local 201314'!R217 -> 33.15 | J14: 37.79 | K14: ='[5]Local 201314'!S217 -> 65.75 | L14: 74.96 | M14: ='[5]Local 201314'!T217 -> 45.25 | N14: 51.59 | O14: ='[5]Local 201314'!U217 -> 28.7 | P14: 32.72 | Q14: ='[5]Local 201314'!AA217 -> 9.03 | R14: 10.29 | AB14: =Q14 - SUM('Megaflex Munic inc'!Q14,'Megaflex Munic inc'!#REF!) -> 
D15: > 132kV* | E15: ='[5]Local 201314'!P218 -> 190 | F15: 216.6 | G15: ='[5]Local 201314'!Q218 -> 57.56 | H15: 65.62 | I15: ='[5]Local 201314'!R218 -> 31.25 | J15: 35.63 | K15: ='[5]Local 201314'!S218 -> 61.97 | L15: 70.65 | M15: ='[5]Local 201314'!T218 -> 42.66 | N15: 48.63 | O15: ='[5]Local 201314'!U218 -> 27.06 | P15: 30.85 | Q15: ='[5]Local 201314'!AA218 -> 6.62 | R15: 7.55 | AB15: =Q15 - SUM('Megaflex Munic inc'!Q15,'Megaflex Munic inc'!#REF!) -> 
C16: > 600km and ≤ 900km | D16: < 500V | E16: ='[5]Local 201314'!P219 -> 213.23 | F16: 243.08 | G16: ='[5]Local 201314'!Q219 -> 64.59 | H16: 73.63 | I16: ='[5]Local 201314'!R219 -> 35.07 | J16: 39.98 | K16: ='[5]Local 201314'!S219 -> 69.55 | L16: 79.29 | M16: ='[5]Local 201314'!T219 -> 47.87 | N16: 54.57 | O16: ='[5]Local 201314'!U219 -> 30.37 | P16: 34.62 | Q16: ='[5]Local 201314'!AA219 -> 17.58 | R16: 20.04 | AB16: =Q16 - SUM('Megaflex Munic inc'!Q16,'Megaflex Munic inc'!#REF!) -> 
D17: ≥ 500V & < 66kV | E17: ='[5]Local 201314'!P220 -> 210.27 | F17: 239.71 | G17: ='[5]Local 201314'!Q220 -> 63.7 | H17: 72.62 | I17: ='[5]Local 201314'!R220 -> 34.59 | J17: 39.43 | K17: ='[5]Local 201314'!S220 -> 68.6 | L17: 78.2 | M17: ='[5]Local 201314'!T220 -> 47.2 | N17: 53.81 | O17: ='[5]Local 201314'!U220 -> 29.95 | P17: 34.14 | Q17: ='[5]Local 201314'!AA220 -> 16.09 | R17: 18.34 | AB17: =Q17 - SUM('Megaflex Munic inc'!Q17,'Megaflex Munic inc'!#REF!) -> 
D18: ≥ 66kV & ≤ 132kV | E18: ='[5]Local 201314'!P221 -> 203.62 | F18: 232.13 | G18: ='[5]Local 201314'!Q221 -> 61.68 | H18: 70.32 | I18: ='[5]Local 201314'!R221 -> 33.49 | J18: 38.18 | K18: ='[5]Local 201314'!S221 -> 66.41 | L18: 75.71 | M18: ='[5]Local 201314'!T221 -> 45.71 | N18: 52.11 | O18: ='[5]Local 201314'!U221 -> 28.99 | P18: 33.05 | Q18: ='[5]Local 201314'!AA221 -> 9.07 | R18: 10.34 | AB18: =Q18 - SUM('Megaflex Munic inc'!Q18,'Megaflex Munic inc'!#REF!) -> 
D19: > 132kV* | E19: ='[5]Local 201314'!P222 -> 191.91 | F19: 218.78 | G19: ='[5]Local 201314'!Q222 -> 58.14 | H19: 66.28 | I19: ='[5]Local 201314'!R222 -> 31.57 | J19: 35.99 | K19: ='[5]Local 201314'!S222 -> 62.61 | L19: 71.38 | M19: ='[5]Local 201314'!T222 -> 43.09 | N19: 49.12 | O19: ='[5]Local 201314'!U222 -> 27.34 | P19: 31.17 | Q19: ='[5]Local 201314'!AA222 -> 6.71 | R19: 7.65 | AB19: =Q19 - SUM('Megaflex Munic inc'!Q19,'Megaflex Munic inc'!#REF!) -> 
C20: > 900km | D20: < 500V | E20: ='[5]Local 201314'!P223 -> 215.37 | F20: 245.52 | G20: ='[5]Local 201314'!Q223 -> 65.25 | H20: 74.39 | I20: ='[5]Local 201314'!R223 -> 35.43 | J20: 40.39 | K20: ='[5]Local 201314'!S223 -> 70.26 | L20: 80.1 | M20: ='[5]Local 201314'!T223 -> 48.35 | N20: 55.12 | O20: ='[5]Local 201314'!U223 -> 30.68 | P20: 34.98 | Q20: ='[5]Local 201314'!AA223 -> 17.6 | R20: 20.06 | AB20: =Q20 - SUM('Megaflex Munic inc'!Q20,'Megaflex Munic inc'!#REF!) -> 
D21: ≥ 500V & < 66kV | E21: ='[5]Local 201314'!P224 -> 212.37 | F21: 242.1 | G21: ='[5]Local 201314'!Q224 -> 64.33 | H21: 73.34 | I21: ='[5]Local 201314'!R224 -> 34.93 | J21: 39.82 | K21: ='[5]Local 201314'!S224 -> 69.27 | L21: 78.97 | M21: ='[5]Local 201314'!T224 -> 47.67 | N21: 54.34 | O21: ='[5]Local 201314'!U224 -> 30.24 | P21: 34.47 | Q21: ='[5]Local 201314'!AA224 -> 16.16 | R21: 18.42 | AB21: =Q21 - SUM('Megaflex Munic inc'!Q21,'Megaflex Munic inc'!#REF!) -> 
D22: ≥ 66kV & ≤ 132kV | E22: ='[5]Local 201314'!P225 -> 205.66 | F22: 234.45 | G22: ='[5]Local 201314'!Q225 -> 62.3 | H22: 71.02 | I22: ='[5]Local 201314'!R225 -> 33.83 | J22: 38.57 | K22: ='[5]Local 201314'!S225 -> 67.08 | L22: 76.47 | M22: ='[5]Local 201314'!T225 -> 46.17 | N22: 52.63 | O22: ='[5]Local 201314'!U225 -> 29.29 | P22: 33.39 | Q22: ='[5]Local 201314'!AA225 -> 9.11 | R22: 10.39 | AB22: =Q22 - SUM('Megaflex Munic inc'!Q22,'Megaflex Munic inc'!#REF!) -> 
D23: > 132kV* | E23: ='[5]Local 201314'!P226 -> 193.8 | F23: 220.93 | G23: ='[5]Local 201314'!Q226 -> 58.74 | H23: 66.96 | I23: ='[5]Local 201314'!R226 -> 31.92 | J23: 36.39 | K23: ='[5]Local 201314'!S226 -> 63.25 | L23: 72.11 | M23: ='[5]Local 201314'!T226 -> 43.54 | N23: 49.64 | O23: ='[5]Local 201314'!U226 -> 27.64 | P23: 31.51 | Q23: ='[5]Local 201314'!AA226 -> 6.76 | R23: 7.71 | AB23: =Q23 - SUM('Megaflex Munic inc'!Q23,'Megaflex Munic inc'!#REF!) -> 
D24: * 132 kV or Transmission connected
C26: Cusomer categories | E26: Service charge [R/account/day] | G26: Administration charge [R/POD/day]
F28: VAT incl | H28: VAT incl | K28: Reliability service charge [c/kWh] | M28: Network demand charge [c/kWh] [Peak & Standard] | P28: Urban low voltage subsidy charge [R/kVA/m]
C29: ≤ 100 kVA | E29: ='[5]Local 201314'!$K$211 -> 9.45 | F29: =ROUND(E29 * (1 + VAT), 2) -> 10.77 | G29: ='[5]Local 201314'!$F$211 -> 2.07 | H29: =ROUND(G29 * (1 + VAT), 2) -> 2.36 | J29: Voltage | L29: VAT incl | N29: VAT incl | R29: VAT incl
C30: > 100 kVA & ≤ 500 kVA | E30: ='[5]Local 201314'!$L$211 -> 43.18 | F30: =ROUND(E30 * (1 + VAT), 2) -> 49.23 | G30: ='[5]Local 201314'!$G$211 -> 12.1 | H30: =ROUND(G30 * (1 + VAT), 2) -> 13.79 | J30: < 500V | K30: ='[5]Local 201314'!Y211 -> 0.27 | L30: =ROUND(K30 * (1 + VAT), 2) -> 0.31 | M30: ='[5]Local 201314'!AR211 -> 10.8 | N30: =ROUND(M30 * (1 + VAT), 2) -> 12.31 | P30: < 500V | Q30: ='[5]Local 201314'!AN211 -> 0 | R30: =ROUND(Q30 * (1 + VAT), 2) -> 0
C31: > 500 kVA & ≤ 1 MVA | E31: ='[5]Local 201314'!$M$211 -> 132.88 | F31: =ROUND(E31 * (1 + VAT), 2) -> 151.48 | G31: ='[5]Local 201314'!$H$211 -> 24.06 | H31: =ROUND(G31 * (1 + VAT), 2) -> 27.43 | J31: ≥ 500V & < 66kV | K31: ='[5]Local 201314'!Y212 -> 0.26 | L31: =ROUND(K31 * (1 + VAT), 2) -> 0.3 | M31: ='[5]Local 201314'!AR212 -> 4.53 | N31: =ROUND(M31 * (1 + VAT), 2) -> 5.16 | P31: ≥ 500V & < 66kV | Q31: ='[5]Local 201314'!AN212 -> 0 | R31: =ROUND(Q31 * (1 + VAT), 2) -> 0
C32: > 1 MVA | E32: ='[5]Local 201314'!$N$211 -> 132.88 | F32: =ROUND(E32 * (1 + VAT), 2) -> 151.48 | G32: ='[5]Local 201314'!$I$211 -> 59.89 | H32: =ROUND(G32 * (1 + VAT), 2) -> 68.27 | J32: ≥ 66kV & ≤ 132kV | K32: ='[5]Local 201314'!Y213 -> 0.25 | L32: =ROUND(K32 * (1 + VAT), 2) -> 0.29 | M32: ='[5]Local 201314'!AR213 -> 1.57 | N32: =ROUND(M32 * (1 + VAT), 2) -> 1.79 | P32: ≥ 66kV & ≤ 132kV | Q32: ='[5]Local 201314'!AN213 -> 9.34 | R32: =ROUND(Q32 * (1 + VAT), 2) -> 10.65
C33: Key customers | E33: ='[5]Local 201314'!$O$211 -> 2603.95 | F33: =ROUND(E33 * (1 + VAT), 2) -> 2968.5 | G33: ='[5]Local 201314'!$J$211 -> 83.16 | H33: =ROUND(G33 * (1 + VAT), 2) -> 94.8 | J33: > 132kV / Transmission connected | K33: ='[5]Local 201314'!Y214 -> 0.23 | L33: =ROUND(K33 * (1 + VAT), 2) -> 0.26 | M33: ='[5]Local 201314'!AR214 -> 0 | N33: =ROUND(M33 * (1 + VAT), 2) -> 0 | P33: > 132kV / Transmission connected | Q33: ='[5]Local 201314'!AN214 -> 9.34 | R33: =ROUND(Q33 * (1 + VAT), 2) -> 10.65
C36: Electrification and rural network subsidy charge [c/kWh] | J36: Reactive energy charge [c/kVArh]
C38: All seasons | J38: High season | L38: Low season
D39: VAT incl | K39: VAT incl | M39: VAT incl
C40: ='[5]Local 201314'!$AO$211+'[5]Local 201314'!$AM$211 -> 5.17 | D40: =ROUND(C40 * (1 + VAT), 2) -> 5.89 | J40: ='[5]Local 201314'!$V$211 -> 4.09 | K40: =ROUND(J40 * (1 + VAT), 2) -> 4.66 | L40: 0 | M40: =ROUND(L40 * (1 + VAT), 2) -> 0

Sheet Nightsave Small inc
N1: =SUM(E8:E23,G8:G23,I8:I23,K8:K23,M8:M23,#REF!,#REF!,D39:D41,F39:F41,E30:E33,G30:G33) - '[5]Non Local 201314'!$AL$295 -> 
B2: Nightsave Urban Small tariff | M2: Non-local authority | AA2: =SUM(#REF!,#REF!,#REF!,#REF!,#REF!,#REF!,#REF!,#REF!,#REF!) ->  | AB2: check value
E4: Active energy charge [c/kWh] | I4: Energy demand charge [R/kVA/m] | M4: Transmission network charges [R/kVA/m]
C5: Transmission zone | E5: High demand season [Jun - Aug] | G5: Low demand season [Sep - May] | I5: High demand season [Jun - Aug] | K5: Low demand season [Sep - May]
D6: Voltage
F7: VAT incl | H7: VAT incl | J7: VAT incl | L7: VAT incl | N7: VAT incl
C8: ≤ 300km | D8: < 500V | E8: ='[5]Non Local 201314'!P295 -> 50.52 | F8: =ROUND(E8 * (1 + VAT), 2) -> 57.59 | G8: ='[5]Non Local 201314'!S295 -> 39.28 | H8: =ROUND(G8 * (1 + VAT), 2) -> 44.78 | I8: ='[5]Non Local 201314'!AE295 -> 107.95 | J8: =ROUND(I8 * (1 + VAT), 2) -> 123.06 | K8: ='[5]Non Local 201314'!AF295 -> 13.91 | L8: =ROUND(K8 * (1 + VAT), 2) -> 15.86 | M8: ='[5]Non Local 201314'!Z295 -> 5.85 | N8: =ROUND(M8 * (1 + VAT), 2) -> 6.67
D9: ≥ 500V & < 66kV | E9: ='[5]Non Local 201314'!P296 -> 47.84 | F9: 54.54 | G9: ='[5]Non Local 201314'!S296 -> 37.34 | H9: 42.57 | I9: ='[5]Non Local 201314'!AE296 -> 104.48 | J9: 119.11 | K9: ='[5]Non Local 201314'!AF296 -> 13.44 | L9: 15.32 | M9: ='[5]Non Local 201314'!Z296 -> 5.35 | N9: 6.1
D10: ≥ 66kV & ≤ 132kV | E10: ='[5]Non Local 201314'!P297 -> 47.49 | F10: 54.14 | G10: ='[5]Non Local 201314'!S297 -> 36.89 | H10: 42.05 | I10: ='[5]Non Local 201314'!AE297 -> 100.64 | J10: 114.73 | K10: ='[5]Non Local 201314'!AF297 -> 12.94 | L10: 14.75 | M10: ='[5]Non Local 201314'!Z297 -> 5.21 | N10: 5.94
D11: > 132kV* | E11: ='[5]Non Local 201314'!P298 -> 44.43 | F11: 50.65 | G11: ='[5]Non Local 201314'!S298 -> 34.55 | H11: 39.39 | I11: ='[5]Non Local 201314'!AE298 -> 97.12 | J11: 110.72 | K11: ='[5]Non Local 201314'!AF298 -> 12.49 | L11: 14.24 | M11: ='[5]Non Local 201314'!Z298 -> 6.58 | N11: 7.5
C12: > 300km and ≤ 600km | D12: < 500V | E12: ='[5]Non Local 201314'!P299 -> 51.19 | F12: 58.36 | G12: ='[5]Non Local 201314'!S299 -> 39.7 | H12: 45.26 | I12: ='[5]Non Local 201314'!AE299 -> 109.06 | J12: 124.33 | K12: ='[5]Non Local 201314'!AF299 -> 14.03 | L12: 15.99 | M12: ='[5]Non Local 201314'!Z299 -> 5.9 | N12: 6.73
D13: ≥ 500V & < 66kV | E13: ='[5]Non Local 201314'!P300 -> 48.84 | F13: 55.68 | G13: ='[5]Non Local 201314'!S300 -> 38.1 | H13: 43.43 | I13: ='[5]Non Local 201314'!AE300 -> 105.54 | J13: 120.32 | K13: ='[5]Non Local 201314'!AF300 -> 13.57 | L13: 15.47 | M13: ='[5]Non Local 201314'!Z300 -> 5.4 | N13: 6.16
D14: ≥ 66kV & ≤ 132kV | E14: ='[5]Non Local 201314'!P301 -> 48.48 | F14: 55.27 | G14: ='[5]Non Local 201314'!S301 -> 37.64 | H14: 42.91 | I14: ='[5]Non Local 201314'!AE301 -> 101.68 | J14: 115.92 | K14: ='[5]Non Local 201314'!AF301 -> 13.08 | L14: 14.91 | M14: ='[5]Non Local 201314'!Z301 -> 5.25 | N14: 5.99
D15: > 132kV* | E15: ='[5]Non Local 201314'!P302 -> 45.35 | F15: 51.7 | G15: ='[5]Non Local 201314'!S302 -> 35.25 | H15: 40.19 | I15: ='[5]Non Local 201314'!AE302 -> 98.09 | J15: 111.82 | K15: ='[5]Non Local 201314'!AF302 -> 12.62 | L15: 14.39 | M15: ='[5]Non Local 201314'!Z302 -> 6.65 | N15: 7.58
C16: > 600km and ≤ 900km | D16: < 500V | E16: ='[5]Non Local 201314'!P303 -> 51.68 | F16: 58.92 | G16: ='[5]Non Local 201314'!S303 -> 40.09 | H16: 45.7 | I16: ='[5]Non Local 201314'!AE303 -> 110.13 | J16: 125.55 | K16: ='[5]Non Local 201314'!AF303 -> 14.16 | L16: 16.14 | M16: ='[5]Non Local 201314'!Z303 -> 5.97 | N16: 6.81
D17: ≥ 500V & < 66kV | E17: ='[5]Non Local 201314'!P304 -> 49.33 | F17: 56.24 | G17: ='[5]Non Local 201314'!S304 -> 38.49 | H17: 43.88 | I17: ='[5]Non Local 201314'!AE304 -> 106.61 | J17: 121.54 | K17: ='[5]Non Local 201314'!AF304 -> 13.71 | L17: 15.63 | M17: ='[5]Non Local 201314'!Z304 -> 5.44 | N17: 6.2
D18: ≥ 66kV & ≤ 132kV | E18: ='[5]Non Local 201314'!P305 -> 48.96 | F18: 55.81 | G18: ='[5]Non Local 201314'!S305 -> 38.02 | H18: 43.34 | I18: ='[5]Non Local 201314'!AE305 -> 102.69 | J18: 117.07 | K18: ='[5]Non Local 201314'!AF305 -> 13.21 | L18: 15.06 | M18: ='[5]Non Local 201314'!Z305 -> 5.29 | N18: 6.03
D19: > 132kV* | E19: ='[5]Non Local 201314'!P306 -> 45.8 | F19: 52.21 | G19: ='[5]Non Local 201314'!S306 -> 35.61 | H19: 40.6 | I19: ='[5]Non Local 201314'!AE306 -> 99.06 | J19: 112.93 | K19: ='[5]Non Local 201314'!AF306 -> 12.74 | L19: 14.52 | M19: ='[5]Non Local 201314'!Z306 -> 6.74 | N19: 7.68
C20: > 900km | D20: < 500V | E20: ='[5]Non Local 201314'!P307 -> 52.22 | F20: 59.53 | G20: ='[5]Non Local 201314'!S307 -> 40.5 | H20: 46.17 | I20: ='[5]Non Local 201314'!AE307 -> 111.25 | J20: 126.83 | K20: ='[5]Non Local 201314'!AF307 -> 14.31 | L20: 16.31 | M20: ='[5]Non Local 201314'!Z307 -> 5.99 | N20: 6.83
D21: ≥ 500V & < 66kV | E21: ='[5]Non Local 201314'!P308 -> 49.81 | F21: 56.78 | G21: ='[5]Non Local 201314'!S308 -> 38.86 | H21: 44.3 | I21: ='[5]Non Local 201314'!AE308 -> 107.66 | J21: 122.73 | K21: ='[5]Non Local 201314'!AF308 -> 13.85 | L21: 15.79 | M21: ='[5]Non Local 201314'!Z308 -> 5.51 | N21: 6.28
D22: ≥ 66kV & ≤ 132kV | E22: ='[5]Non Local 201314'!P309 -> 49.46 | F22: 56.38 | G22: ='[5]Non Local 201314'!S309 -> 38.4 | H22: 43.78 | I22: ='[5]Non Local 201314'!AE309 -> 103.74 | J22: 118.26 | K22: ='[5]Non Local 201314'!AF309 -> 13.35 | L22: 15.22 | M22: ='[5]Non Local 201314'!Z309 -> 5.32 | N22: 6.06
D23: > 132kV* | E23: ='[5]Non Local 201314'!P310 -> 46.29 | F23: 52.77 | G23: ='[5]Non Local 201314'!S310 -> 36 | H23: 41.04 | I23: ='[5]Non Local 201314'!AE310 -> 100.09 | J23: 114.1 | K23: ='[5]Non Local 201314'!AF310 -> 12.89 | L23: 14.69 | M23: ='[5]Non Local 201314'!Z310 -> 6.79 | N23: 7.74
D24: * 132 kV or Transmission connected
C26: Distribution network charges
E27: Network access charge [R/kVA/m] | G27: Network demand charge [R/kVA/m] | I27: Urban low voltage subsidy charge [R/kVA/m]
M28: Reliability service charge [c/kWh]
C29: Voltage | F29: VAT incl | H29: VAT incl | J29: VAT incl | L29: Voltage | N29: VAT incl
C30: < 500V | E30: ='[5]Non Local 201314'!AA295 -> 11.63 | F30: =ROUND(E30 * (1 + VAT), 2) -> 13.26 | G30: ='[5]Non Local 201314'!AB295 -> 22.05 | H30: =ROUND(G30 * (1 + VAT), 2) -> 25.14 | I30: ='[5]Non Local 201314'!AN247 -> 0 | J30: =ROUND(I30 * (1 + VAT), 2) -> 0 | L30: < 500V | M30: ='[5]Non Local 201314'!Y295 -> 0.27 | N30: =ROUND(M30 * (1 + VAT), 2) -> 0.31
C31: ≥ 500V & < 66kV | E31: ='[5]Non Local 201314'!AA296 -> 10.67 | F31: =ROUND(E31 * (1 + VAT), 2) -> 12.16 | G31: ='[5]Non Local 201314'!AB296 -> 20.23 | H31: =ROUND(G31 * (1 + VAT), 2) -> 23.06 | I31: ='[5]Non Local 201314'!AN248 -> 0 | J31: =ROUND(I31 * (1 + VAT), 2) -> 0 | L31: ≥ 500V & < 66kV | M31: ='[5]Non Local 201314'!Y296 -> 0.26 | N31: =ROUND(M31 * (1 + VAT), 2) -> 0.3
C32: ≥ 66kV & ≤ 132kV | E32: ='[5]Non Local 201314'!AA297 -> 3.81 | F32: =ROUND(E32 * (1 + VAT), 2) -> 4.34 | G32: ='[5]Non Local 201314'!AB297 -> 7.05 | H32: =ROUND(G32 * (1 + VAT), 2) -> 8.04 | I32: ='[5]Non Local 201314'!AN249 -> 9.39 | J32: =ROUND(I32 * (1 + VAT), 2) -> 10.7 | L32: ≥ 66kV & ≤ 132kV | M32: ='[5]Non Local 201314'!Y297 -> 0.25 | N32: =ROUND(M32 * (1 + VAT), 2) -> 0.29
C33: > 132kV / Transmission connected | E33: ='[5]Non Local 201314'!AA298 -> 0 | F33: =ROUND(E33 * (1 + VAT), 2) -> 0 | G33: ='[5]Non Local 201314'!AB298 -> 0 | H33: =ROUND(G33 * (1 + VAT), 2) -> 0 | I33: ='[5]Non Local 201314'!AN250 -> 9.39 | J33: =ROUND(I33 * (1 + VAT), 2) -> 10.7 | L33: > 132kV / Transmission connected | M33: ='[5]Non Local 201314'!Y298 -> 0.23 | N33: =ROUND(M33 * (1 + VAT), 2) -> 0.26
C36: Customer categories | D36: Service charge [R/account/day] | F36: Administration charge [R/POD/day]
E38: VAT incl | G38: VAT incl
C39: ≤ 100 kVA | D39: ='[5]Non Local 201314'!$K$295 -> 9.49 | E39: =ROUND(D39 * (1 + VAT), 2) -> 10.82 | F39: ='[5]Non Local 201314'!$F$295 -> 2.08 | G39: =ROUND(F39 * (1 + VAT), 2) -> 2.37
C40: > 100 kVA & ≤ 500 kVA | D40: ='[5]Non Local 201314'!$L$295 -> 43.38 | E40: =ROUND(D40 * (1 + VAT), 2) -> 49.45 | F40: ='[5]Non Local 201314'!$G$295 -> 12.16 | G40: =ROUND(F40 * (1 + VAT), 2) -> 13.86
C41: > 500 kVA & ≤ 1 MVA | D41: ='[5]Non Local 201314'!$M$295 -> 133.5 | E41: =ROUND(D41 * (1 + VAT), 2) -> 152.19 | F41: ='[5]Non Local 201314'!$H$295 -> 24.17 | G41: =ROUND(F41 * (1 + VAT), 2) -> 27.55
C42: Key customers | D42: ='[5]Non Local 201314'!$O$295 -> 2616.06 | E42: =ROUND(D42 * (1 + VAT), 2) -> 2982.31 | F42: ='[5]Non Local 201314'!$J$295 -> 83.55 | G42: =ROUND(F42 * (1 + VAT), 2) -> 95.25
C44: Electrification and rural network subsidy charge [c/kWh] | E44: Affordability subsidy charge [c/kWh] payable by non-local authority tariffs
E46: All seasons
D47: VAT incl | F47: VAT incl
C48: ='[5]Non Local 201314'!AO295+'[5]Non Local 201314'!AM295 -> 5.2 | D48: =ROUND(C48 * (1 + VAT), 2) -> 5.93 | E48: ='[5]Non Local 201314'!AP295 -> 2.07 | F48: =ROUND(E48 * (1 + VAT), 2) -> 2.36

Sheet Nightsave Small Munic inc
N1: =SUM(E8:E23,G8:G23,I8:I23,K8:K23,M8:M23,#REF!,#REF!,D39:D41,F39:F41,E30:E33,G30:G33) - '[5]Local 201314'!$AL$227 -> 
B2: Nightsave Urban Small tariff | M2: Local authority | AA2: =SUM(#REF!,#REF!,#REF!,#REF!,#REF!,#REF!,#REF!,#REF!,#REF!) ->  | AB2: check value
E4: Active energy charge [c/kWh] | I4: Energy demand charge [R/kVA/m] | M4: Transmission network charges [R/kVA/m]
C5: Transmission zone | E5: High demand season [Jun - Aug] | G5: Low demand season [Sep - May] | I5: High demand season [Jun - Aug] | K5: Low demand season [Sep - May]
D6: Voltage
F7: VAT incl | H7: VAT incl | J7: VAT incl | L7: VAT incl | N7: VAT incl
C8: ≤ 300km | D8: < 500V | E8: ='[5]Local 201314'!P227 -> 51.72 | F8: =ROUND(E8 * (1 + VAT), 2) -> 58.96 | G8: ='[5]Local 201314'!S227 -> 40.22 | H8: =ROUND(G8 * (1 + VAT), 2) -> 45.85 | I8: ='[5]Local 201314'!AE227 -> 108.45 | J8: =ROUND(I8 * (1 + VAT), 2) -> 123.63 | K8: ='[5]Local 201314'!AF227 -> 13.98 | L8: =ROUND(K8 * (1 + VAT), 2) -> 15.94 | M8: ='[5]Local 201314'!Z227 -> 5.83 | N8: =ROUND(M8 * (1 + VAT), 2) -> 6.65
D9: ≥ 500V & < 66kV | E9: ='[5]Local 201314'!P228 -> 48.98 | F9: 55.84 | G9: ='[5]Local 201314'!S228 -> 38.23 | H9: 43.58 | I9: ='[5]Local 201314'!AE228 -> 104.97 | J9: 119.67 | K9: ='[5]Local 201314'!AF228 -> 13.5 | L9: 15.39 | M9: ='[5]Local 201314'!Z228 -> 5.32 | N9: 6.06
D10: ≥ 66kV & ≤ 132kV | E10: ='[5]Local 201314'!P229 -> 48.62 | F10: 55.43 | G10: ='[5]Local 201314'!S229 -> 37.76 | H10: 43.05 | I10: ='[5]Local 201314'!AE229 -> 101.11 | J10: 115.27 | K10: ='[5]Local 201314'!AF229 -> 13 | L10: 14.82 | M10: ='[5]Local 201314'!Z229 -> 5.18 | N10: 5.91
D11: > 132kV* | E11: ='[5]Local 201314'!P230 -> 45.48 | F11: 51.85 | G11: ='[5]Local 201314'!S230 -> 35.37 | H11: 40.32 | I11: ='[5]Local 201314'!AE230 -> 97.57 | J11: 111.23 | K11: ='[5]Local 201314'!AF230 -> 12.55 | L11: 14.31 | M11: ='[5]Local 201314'!Z230 -> 6.55 | N11: 7.47
C12: > 300km and ≤ 600km | D12: < 500V | E12: ='[5]Local 201314'!P231 -> 52.41 | F12: 59.75 | G12: ='[5]Local 201314'!S231 -> 40.65 | H12: 46.34 | I12: ='[5]Local 201314'!AE231 -> 109.57 | J12: 124.91 | K12: ='[5]Local 201314'!AF231 -> 14.09 | L12: 16.06 | M12: ='[5]Local 201314'!Z231 -> 5.87 | N12: 6.69
D13: ≥ 500V & < 66kV | E13: ='[5]Local 201314'!P232 -> 50 | F13: 57 | G13: ='[5]Local 201314'!S232 -> 39.01 | H13: 44.47 | I13: ='[5]Local 201314'!AE232 -> 106.03 | J13: 120.87 | K13: ='[5]Local 201314'!AF232 -> 13.63 | L13: 15.54 | M13: ='[5]Local 201314'!Z232 -> 5.38 | N13: 6.13
D14: ≥ 66kV & ≤ 132kV | E14: ='[5]Local 201314'!P233 -> 49.63 | F14: 56.58 | G14: ='[5]Local 201314'!S233 -> 38.54 | H14: 43.94 | I14: ='[5]Local 201314'!AE233 -> 102.16 | J14: 116.46 | K14: ='[5]Local 201314'!AF233 -> 13.14 | L14: 14.98 | M14: ='[5]Local 201314'!Z233 -> 5.22 | N14: 5.95
D15: > 132kV* | E15: ='[5]Local 201314'!P234 -> 46.43 | F15: 52.93 | G15: ='[5]Local 201314'!S234 -> 36.09 | H15: 41.14 | I15: ='[5]Local 201314'!AE234 -> 98.55 | J15: 112.35 | K15: ='[5]Local 201314'!AF234 -> 12.68 | L15: 14.46 | M15: ='[5]Local 201314'!Z234 -> 6.62 | N15: 7.55
C16: > 600km and ≤ 900km | D16: < 500V | E16: ='[5]Local 201314'!P235 -> 52.91 | F16: 60.32 | G16: ='[5]Local 201314'!S235 -> 41.04 | H16: 46.79 | I16: ='[5]Local 201314'!AE235 -> 110.65 | J16: 126.14 | K16: ='[5]Local 201314'!AF235 -> 14.22 | L16: 16.21 | M16: ='[5]Local 201314'!Z235 -> 5.94 | N16: 6.77
D17: ≥ 500V & < 66kV | E17: ='[5]Local 201314'!P236 -> 50.5 | F17: 57.57 | G17: ='[5]Local 201314'!S236 -> 39.41 | H17: 44.93 | I17: ='[5]Local 201314'!AE236 -> 107.1 | J17: 122.09 | K17: ='[5]Local 201314'!AF236 -> 13.77 | L17: 15.7 | M17: ='[5]Local 201314'!Z236 -> 5.42 | N17: 6.18
D18: ≥ 66kV & ≤ 132kV | E18: ='[5]Local 201314'!P237 -> 50.13 | F18: 57.15 | G18: ='[5]Local 201314'!S237 -> 38.93 | H18: 44.38 | I18: ='[5]Local 201314'!AE237 -> 103.17 | J18: 117.61 | K18: ='[5]Local 201314'!AF237 -> 13.27 | L18: 15.13 | M18: ='[5]Local 201314'!Z237 -> 5.27 | N18: 6.01
D19: > 132kV* | E19: ='[5]Local 201314'!P238 -> 46.89 | F19: 53.45 | G19: ='[5]Local 201314'!S238 -> 36.45 | H19: 41.55 | I19: ='[5]Local 201314'!AE238 -> 99.52 | J19: 113.45 | K19: ='[5]Local 201314'!AF238 -> 12.8 | L19: 14.59 | M19: ='[5]Local 201314'!Z238 -> 6.71 | N19: 7.65
C20: > 900km | D20: < 500V | E20: ='[5]Local 201314'!P239 -> 53.46 | F20: 60.94 | G20: ='[5]Local 201314'!S239 -> 41.46 | H20: 47.26 | I20: ='[5]Local 201314'!AE239 -> 111.77 | J20: 127.42 | K20: ='[5]Local 201314'!AF239 -> 14.37 | L20: 16.38 | M20: ='[5]Local 201314'!Z239 -> 5.97 | N20: 6.81
D21: ≥ 500V & < 66kV | E21: ='[5]Local 201314'!P240 -> 51 | F21: 58.14 | G21: ='[5]Local 201314'!S240 -> 39.79 | H21: 45.36 | I21: ='[5]Local 201314'!AE240 -> 108.16 | J21: 123.3 | K21: ='[5]Local 201314'!AF240 -> 13.91 | L21: 15.86 | M21: ='[5]Local 201314'!Z240 -> 5.48 | N21: 6.25
D22: ≥ 66kV & ≤ 132kV | E22: ='[5]Local 201314'!P241 -> 50.63 | F22: 57.72 | G22: ='[5]Local 201314'!S241 -> 39.31 | H22: 44.81 | I22: ='[5]Local 201314'!AE241 -> 104.22 | J22: 118.81 | K22: ='[5]Local 201314'!AF241 -> 13.41 | L22: 15.29 | M22: ='[5]Local 201314'!Z241 -> 5.3 | N22: 6.04
D23: > 132kV* | E23: ='[5]Local 201314'!P242 -> 47.4 | F23: 54.04 | G23: ='[5]Local 201314'!S242 -> 36.86 | H23: 42.02 | I23: ='[5]Local 201314'!AE242 -> 100.56 | J23: 114.64 | K23: ='[5]Local 201314'!AF242 -> 12.95 | L23: 14.76 | M23: ='[5]Local 201314'!Z242 -> 6.76 | N23: 7.71
D24: * 132 kV or Transmission connected
C26: Distribution network charges
E27: Network access charge [R/kVA/m] | G27: Network demand charge [R/kVA/m] | I27: Urban low voltage subsidy charge [R/kVA/m]
M28: Reliability service charge [c/kWh]
C29: Voltage | F29: VAT incl | H29: VAT incl | J29: VAT incl | L29: Voltage | N29: VAT incl
C30: < 500V | E30: ='[5]Local 201314'!AA227 -> 11.63 | F30: =ROUND(E30 * (1 + VAT), 2) -> 13.26 | G30: ='[5]Local 201314'!AB227 -> 22.05 | H30: =ROUND(G30 * (1 + VAT), 2) -> 25.14 | I30: ='[5]Local 201314'!AN227 -> 0 | J30: =ROUND(I30 * (1 + VAT), 2) -> 0 | L30: < 500V | M30: ='[5]Local 201314'!Y227 -> 0.27 | N30: =ROUND(M30 * (1 + VAT), 2) -> 0.31
C31: ≥ 500V & < 66kV | E31: ='[5]Local 201314'!AA228 -> 10.67 | F31: =ROUND(E31 * (1 + VAT), 2) -> 12.16 | G31: ='[5]Local 201314'!AB228 -> 20.23 | H31: =ROUND(G31 * (1 + VAT), 2) -> 23.06 | I31: ='[5]Local 201314'!AN228 -> 0 | J31: =ROUND(I31 * (1 + VAT), 2) -> 0 | L31: ≥ 500V & < 66kV | M31: ='[5]Local 201314'!Y228 -> 0.26 | N31: =ROUND(M31 * (1 + VAT), 2) -> 0.3
C32: ≥ 66kV & ≤ 132kV | E32: ='[5]Local 201314'!AA229 -> 3.81 | F32: =ROUND(E32 * (1 + VAT), 2) -> 4.34 | G32: ='[5]Local 201314'!AB229 -> 7.05 | H32: =ROUND(G32 * (1 + VAT), 2) -> 8.04 | I32: ='[5]Local 201314'!AN229 -> 9.39 | J32: =ROUND(I32 * (1 + VAT), 2) -> 10.7 | L32: ≥ 66kV & ≤ 132kV | M32: ='[5]Local 201314'!Y229 -> 0.25 | N32: =ROUND(M32 * (1 + VAT), 2) -> 0.29
C33: > 132kV / Transmission connected | E33: ='[5]Local 201314'!AA230 -> 0 | F33: =ROUND(E33 * (1 + VAT), 2) -> 0 | G33: ='[5]Local 201314'!AB230 -> 0 | H33: =ROUND(G33 * (1 + VAT), 2) -> 0 | I33: ='[5]Local 201314'!AN230 -> 9.39 | J33: =ROUND(I33 * (1 + VAT), 2) -> 10.7 | L33: > 132kV / Transmission connected | M33: ='[5]Local 201314'!Y230 -> 0.23 | N33: =ROUND(M33 * (1 + VAT), 2) -> 0.26
D36: Service charge [R/account/day] | F36: Administration charge [R/POD/day]
C37: Customer categories
E38: VAT incl | G38: VAT incl
C39: ≤ 100 kVA | D39: ='[5]Local 201314'!$K$227 -> 9.45 | E39: =ROUND(D39 * (1 + VAT), 2) -> 10.77 | F39: ='[5]Local 201314'!$F$227 -> 2.07 | G39: =ROUND(F39 * (1 + VAT), 2) -> 2.36
C40: > 100 kVA & ≤ 500 kVA | D40: ='[5]Local 201314'!$L$227 -> 43.18 | E40: =ROUND(D40 * (1 + VAT), 2) -> 49.23 | F40: ='[5]Local 201314'!$G$227 -> 12.1 | G40: =ROUND(F40 * (1 + VAT), 2) -> 13.79
C41: > 500 kVA & ≤ 1 MVA | D41: ='[5]Local 201314'!$M$227 -> 132.88 | E41: =ROUND(D41 * (1 + VAT), 2) -> 151.48 | F41: ='[5]Local 201314'!$H$227 -> 24.06 | G41: =ROUND(F41 * (1 + VAT), 2) -> 27.43
C42: Key customers | D42: ='[5]Local 201314'!$O$227 -> 2603.95 | E42: =ROUND(D42 * (1 + VAT), 2) -> 2968.5 | F42: ='[5]Local 201314'!$J$227 -> 83.16 | G42: =ROUND(F42 * (1 + VAT), 2) -> 94.8
C44: Electrification and rural network subsidy charge [c/kWh]
D47: VAT incl
C48: ='[5]Local 201314'!$AO$227+'[5]Local 201314'!$AM$227 -> 5.17 | D48: =ROUND(C48 * (1 + VAT), 2) -> 5.89

Sheet Ruraflex inc
R1: =SUM(E8:E23,G8:G23,I8:I23,K8:K23,M8:M23,O8:O23,Q8:Q23,#REF!,E29:E33,G29:G33,#REF!,#REF!) - '[5]Non Local 201314'!$AL$311 -> 
B2: Ruraflex tariff | O2: Non-local authority | AA2: =SUM(#REF!,#REF!,#REF!,#REF!,#REF!,#REF!,#REF!,#REF!,#REF!,#REF!,#REF!,#REF!) ->  | AB2: check value
E4: Active energy charge [c/kWh] | Q4: Network access charges [R/kVA/m]
C5: Transmission zone | E5: High demand season [Jun - Aug] | K5: Low demand season [Sep - May]
D6: Voltage | E6: Peak | G6: Standard | I6: Off Peak | K6: Peak | M6: Standard | O6: Off Peak
F7: VAT incl | H7: VAT incl | J7: VAT incl | L7: VAT incl | N7: VAT incl | P7: VAT incl | R7: VAT incl
C8: ≤ 300km | D8: < 500V | E8: ='[5]Non Local 201314'!P311 -> 211.8 | F8: =ROUND(E8 * (1 + VAT), 2) -> 241.45 | G8: ='[5]Non Local 201314'!Q311 -> 64.17 | H8: =ROUND(G8 * (1 + VAT), 2) -> 73.15 | I8: ='[5]Non Local 201314'!R311 -> 34.84 | J8: =ROUND(I8 * (1 + VAT), 2) -> 39.72 | K8: ='[5]Non Local 201314'!S311 -> 69.09 | L8: =ROUND(K8 * (1 + VAT), 2) -> 78.76 | M8: ='[5]Non Local 201314'!T311 -> 47.55 | N8: =ROUND(M8 * (1 + VAT), 2) -> 54.21 | O8: ='[5]Non Local 201314'!U311 -> 30.17 | P8: =ROUND(O8 * (1 + VAT), 2) -> 34.39 | Q8: ='[5]Non Local 201314'!AA311 -> 12.22 | R8: =ROUND(Q8 * (1 + VAT), 2) -> 13.93
D9: ≥ 500V & ≤ 22kV | E9: ='[5]Non Local 201314'!P312 -> 209.7 | F9: 239.06 | G9: ='[5]Non Local 201314'!Q312 -> 63.53 | H9: 72.42 | I9: ='[5]Non Local 201314'!R312 -> 34.49 | J9: 39.32 | K9: ='[5]Non Local 201314'!S312 -> 68.41 | L9: 77.99 | M9: ='[5]Non Local 201314'!T312 -> 47.07 | N9: 53.66 | O9: ='[5]Non Local 201314'!U312 -> 29.86 | P9: 34.04 | Q9: ='[5]Non Local 201314'!AA312 -> 11.2 | R9: 12.77
E10: ='[5]Non Local 201314'!P313 -> 0 | G10: ='[5]Non Local 201314'!Q313 -> 0 | I10: ='[5]Non Local 201314'!R313 -> 0 | K10: ='[5]Non Local 201314'!S313 -> 0 | M10: ='[5]Non Local 201314'!T313 -> 0 | O10: ='[5]Non Local 201314'!U313 -> 0 | Q10: ='[5]Non Local 201314'!AA313 -> 0
E11: ='[5]Non Local 201314'!P314 -> 0 | G11: ='[5]Non Local 201314'!Q314 -> 0 | I11: ='[5]Non Local 201314'!R314 -> 0 | K11: ='[5]Non Local 201314'!S314 -> 0 | M11: ='[5]Non Local 201314'!T314 -> 0 | O11: ='[5]Non Local 201314'!U314 -> 0 | Q11: ='[5]Non Local 201314'!AA314 -> 0
C12: > 300km and ≤ 600km | D12: < 500V | E12: ='[5]Non Local 201314'!P315 -> 213.92 | F12: 243.87 | G12: ='[5]Non Local 201314'!Q315 -> 64.81 | H12: 73.88 | I12: ='[5]Non Local 201314'!R315 -> 35.19 | J12: 40.12 | K12: ='[5]Non Local 201314'!S315 -> 69.78 | L12: 79.55 | M12: ='[5]Non Local 201314'!T315 -> 48.03 | N12: 54.75 | O12: ='[5]Non Local 201314'!U315 -> 30.47 | P12: 34.74 | Q12: ='[5]Non Local 201314'!AA315 -> 12.27 | R12: 13.99
D13: ≥ 500V & ≤ 22kV | E13: ='[5]Non Local 201314'!P316 -> 211.79 | F13: 241.44 | G13: ='[5]Non Local 201314'!Q316 -> 64.16 | H13: 73.14 | I13: ='[5]Non Local 201314'!R316 -> 34.84 | J13: 39.72 | K13: ='[5]Non Local 201314'!S316 -> 69.09 | L13: 78.76 | M13: ='[5]Non Local 201314'!T316 -> 47.54 | N13: 54.2 | O13: ='[5]Non Local 201314'!U316 -> 30.17 | P13: 34.39 | Q13: ='[5]Non Local 201314'!AA316 -> 11.28 | R13: 12.86
E14: ='[5]Non Local 201314'!P317 -> 0 | G14: ='[5]Non Local 201314'!Q317 -> 0 | I14: ='[5]Non Local 201314'!R317 -> 0 | K14: ='[5]Non Local 201314'!S317 -> 0 | M14: ='[5]Non Local 201314'!T317 -> 0 | O14: ='[5]Non Local 201314'!U317 -> 0 | Q14: ='[5]Non Local 201314'!AA317 -> 0
E15: ='[5]Non Local 201314'!P318 -> 0 | G15: ='[5]Non Local 201314'!Q318 -> 0 | I15: ='[5]Non Local 201314'!R318 -> 0 | K15: ='[5]Non Local 201314'!S318 -> 0 | M15: ='[5]Non Local 201314'!T318 -> 0 | O15: ='[5]Non Local 201314'!U318 -> 0 | Q15: ='[5]Non Local 201314'!AA318 -> 0
C16: > 600km and ≤ 900km | D16: < 500V | E16: ='[5]Non Local 201314'!P319 -> 216.06 | F16: 246.31 | G16: ='[5]Non Local 201314'!Q319 -> 65.45 | H16: 74.61 | I16: ='[5]Non Local 201314'!R319 -> 35.54 | J16: 40.52 | K16: ='[5]Non Local 201314'!S319 -> 70.48 | L16: 80.35 | M16: ='[5]Non Local 201314'!T319 -> 48.5 | N16: 55.29 | O16: ='[5]Non Local 201314'!U319 -> 30.78 | P16: 35.09 | Q16: ='[5]Non Local 201314'!AA319 -> 12.33 | R16: 14.06
D17: ≥ 500V & ≤ 22kV | E17: ='[5]Non Local 201314'!P320 -> 213.91 | F17: 243.86 | G17: ='[5]Non Local 201314'!Q320 -> 64.8 | H17: 73.87 | I17: ='[5]Non Local 201314'!R320 -> 35.19 | J17: 40.12 | K17: ='[5]Non Local 201314'!S320 -> 69.78 | L17: 79.55 | M17: ='[5]Non Local 201314'!T320 -> 48.03 | N17: 54.75 | O17: ='[5]Non Local 201314'!U320 -> 30.47 | P17: 34.74 | Q17: ='[5]Non Local 201314'!AA320 -> 11.32 | R17: 12.9
E18: ='[5]Non Local 201314'!P321 -> 0 | G18: ='[5]Non Local 201314'!Q321 -> 0 | I18: ='[5]Non Local 201314'!R321 -> 0 | K18: ='[5]Non Local 201314'!S321 -> 0 | M18: ='[5]Non Local 201314'!T321 -> 0 | O18: ='[5]Non Local 201314'!U321 -> 0 | Q18: ='[5]Non Local 201314'!AA321 -> 0
E19: ='[5]Non Local 201314'!P322 -> 0 | G19: ='[5]Non Local 201314'!Q322 -> 0 | I19: ='[5]Non Local 201314'!R322 -> 0 | K19: ='[5]Non Local 201314'!S322 -> 0 | M19: ='[5]Non Local 201314'!T322 -> 0 | O19: ='[5]Non Local 201314'!U322 -> 0 | Q19: ='[5]Non Local 201314'!AA322 -> 0
C20: > 900km | D20: < 500V | E20: ='[5]Non Local 201314'!P323 -> 218.21 | F20: 248.76 | G20: ='[5]Non Local 201314'!Q323 -> 66.11 | H20: 75.37 | I20: ='[5]Non Local 201314'!R323 -> 35.89 | J20: 40.91 | K20: ='[5]Non Local 201314'!S323 -> 71.18 | L20: 81.15 | M20: ='[5]Non Local 201314'!T323 -> 48.99 | N20: 55.85 | O20: ='[5]Non Local 201314'!U323 -> 31.08 | P20: 35.43 | Q20: ='[5]Non Local 201314'!AA323 -> 12.38 | R20: 14.11
D21: ≥ 500V & ≤ 22kV | E21: ='[5]Non Local 201314'!P324 -> 216.05 | F21: 246.3 | G21: ='[5]Non Local 201314'!Q324 -> 65.45 | H21: 74.61 | I21: ='[5]Non Local 201314'!R324 -> 35.54 | J21: 40.52 | K21: ='[5]Non Local 201314'!S324 -> 70.48 | L21: 80.35 | M21: ='[5]Non Local 201314'!T324 -> 48.5 | N21: 55.29 | O21: ='[5]Non Local 201314'!U324 -> 30.78 | P21: 35.09 | Q21: ='[5]Non Local 201314'!AA324 -> 11.33 | R21: 12.92
C26: Customer categories | E26: Service charge [R/account/day] | G26: Administration charge [R/POD/day] | L26: Reliability service charge [c/kWh] | N26: Network demand charge [c/kWh] [All time of use periods]
J27: Voltage | M27: VAT incl | O27: VAT incl
F28: VAT incl | H28: VAT incl | J28: < 500V | L28: ='[5]Non Local 201314'!Y311 -> 0.27 | M28: =ROUND(L28 * (1 + VAT), 2) -> 0.31 | N28: ='[5]Non Local 201314'!AR311 -> 17.41 | O28: =ROUND(N28 * (1 + VAT), 2) -> 19.85
C29: ≤ 100 kVA | E29: ='[5]Non Local 201314'!$K$311 -> 12.03 | F29: =ROUND(E29 * (1 + VAT), 2) -> 13.71 | G29: ='[5]Non Local 201314'!$F$311 -> 3.42 | H29: =ROUND(G29 * (1 + VAT), 2) -> 3.9 | J29: ≥ 500V & < 22kV | L29: ='[5]Non Local 201314'!Y312 -> 0.27 | M29: =ROUND(L29 * (1 + VAT), 2) -> 0.31 | N29: ='[5]Non Local 201314'!AR312 -> 15.26 | O29: =ROUND(N29 * (1 + VAT), 2) -> 17.4
C30: > 100 kVA & ≤ 500 kVA | E30: ='[5]Non Local 201314'!$L$311 -> 41.04 | F30: =ROUND(E30 * (1 + VAT), 2) -> 46.79 | G30: ='[5]Non Local 201314'!$G$311 -> 19.02 | H30: =ROUND(G30 * (1 + VAT), 2) -> 21.68
C31: > 500 kVA & ≤ 1 MVA | E31: ='[5]Non Local 201314'!$M$311 -> 126.23 | F31: =ROUND(E31 * (1 + VAT), 2) -> 143.9 | G31: ='[5]Non Local 201314'!$H$311 -> 29.19 | H31: =ROUND(G31 * (1 + VAT), 2) -> 33.28 | J31: Reactive energy charge [c/kVArh]
C32: > 1 MVA | E32: ='[5]Non Local 201314'!$N$311 -> 126.23 | F32: =ROUND(E32 * (1 + VAT), 2) -> 143.9 | G32: ='[5]Non Local 201314'!$I$311 -> 54.18 | H32: =ROUND(G32 * (1 + VAT), 2) -> 61.77 | J32: High season | L32: Low season
C33: Key customers | E33: ='[5]Non Local 201314'!$O$311 -> 2473.98 | F33: =ROUND(E33 * (1 + VAT), 2) -> 2820.34 | G33: ='[5]Non Local 201314'!$J$311 -> 54.18 | H33: =ROUND(G33 * (1 + VAT), 2) -> 61.77 | K33: VAT incl | M33: VAT incl
J34: ='[5]Non Local 201314'!$V$311 -> 5.88 | K34: =ROUND(J34 * (1 + VAT), 2) -> 6.7 | L34: 0 | M34: =ROUND(L34 * (1 + VAT), 2) -> 0

Sheet Ruraflex Munic inc
R1: =SUM(E8:E23,G8:G23,I8:I23,K8:K23,M8:M23,O8:O23,Q8:Q23,#REF!,#REF!,#REF!,#REF!,#REF!) - '[5]Local 201314'!$AL$243 -> 
B2: Ruraflex tariff | O2: Local authority | AA2: =SUM(#REF!,#REF!,#REF!,#REF!,#REF!,#REF!,#REF!,#REF!,#REF!,#REF!,#REF!,#REF!) ->  | AB2: check value
E4: Active energy charge [c/kWh] | Q4: Network access charges [R/kVA/m]
C5: Transmission zone | E5: High demand season [Jun - Aug] | K5: Low demand season [Sep - May]
D6: Voltage | E6: Peak | G6: Standard | I6: Off Peak | K6: Peak | M6: Standard | O6: Off Peak
F7: VAT incl | H7: VAT incl | J7: VAT incl | L7: VAT incl | N7: VAT incl | P7: VAT incl | R7: VAT incl
C8: ≤ 300km | D8: < 500V | E8: ='[5]Local 201314'!P243 -> 216.84 | F8: =ROUND(E8 * (1 + VAT), 2) -> 247.2 | G8: ='[5]Local 201314'!Q243 -> 65.69 | H8: =ROUND(G8 * (1 + VAT), 2) -> 74.89 | I8: ='[5]Local 201314'!R243 -> 35.67 | J8: =ROUND(I8 * (1 + VAT), 2) -> 40.66 | K8: ='[5]Local 201314'!S243 -> 70.74 | L8: =ROUND(K8 * (1 + VAT), 2) -> 80.64 | M8: ='[5]Local 201314'!T243 -> 48.69 | N8: =ROUND(M8 * (1 + VAT), 2) -> 55.51 | O8: ='[5]Local 201314'!U243 -> 30.88 | P8: =ROUND(O8 * (1 + VAT), 2) -> 35.2 | Q8: ='[5]Local 201314'!AA243 -> 12.33 | R8: =ROUND(Q8 * (1 + VAT), 2) -> 14.06
D9: ≥ 500V & ≤ 22kV | E9: ='[5]Local 201314'!P244 -> 214.69 | F9: 244.75 | G9: ='[5]Local 201314'!Q244 -> 65.04 | H9: 74.15 | I9: ='[5]Local 201314'!R244 -> 35.31 | J9: 40.25 | K9: ='[5]Local 201314'!S244 -> 70.04 | L9: 79.85 | M9: ='[5]Local 201314'!T244 -> 48.19 | N9: 54.94 | O9: ='[5]Local 201314'!U244 -> 30.57 | P9: 34.85 | Q9: ='[5]Local 201314'!AA244 -> 11.31 | R9: 12.89
E10: ='[5]Local 201314'!P245 -> 0 | G10: ='[5]Local 201314'!Q245 -> 0 | I10: ='[5]Local 201314'!R245 -> 0 | K10: ='[5]Local 201314'!S245 -> 0 | M10: ='[5]Local 201314'!T245 -> 0 | O10: ='[5]Local 201314'!U245 -> 0 | Q10: ='[5]Local 201314'!AA245 -> 0
E11: ='[5]Local 201314'!P246 -> 0 | G11: ='[5]Local 201314'!Q246 -> 0 | I11: ='[5]Local 201314'!R246 -> 0 | K11: ='[5]Local 201314'!S246 -> 0 | M11: ='[5]Local 201314'!T246 -> 0 | O11: ='[5]Local 201314'!U246 -> 0 | Q11: ='[5]Local 201314'!AA246 -> 0
C12: > 300km and ≤ 600km | D12: < 500V | E12: ='[5]Local 201314'!P247 -> 219.01 | F12: 249.67 | G12: ='[5]Local 201314'!Q247 -> 66.35 | H12: 75.64 | I12: ='[5]Local 201314'!R247 -> 36.02 | J12: 41.06 | K12: ='[5]Local 201314'!S247 -> 71.44 | L12: 81.44 | M12: ='[5]Local 201314'!T247 -> 49.17 | N12: 56.05 | O12: ='[5]Local 201314'!U247 -> 31.2 | P12: 35.57 | Q12: ='[5]Local 201314'!AA247 -> 12.38 | R12: 14.11
D13: ≥ 500V & ≤ 22kV | E13: ='[5]Local 201314'!P248 -> 216.83 | F13: 247.19 | G13: ='[5]Local 201314'!Q248 -> 65.68 | H13: 74.88 | I13: ='[5]Local 201314'!R248 -> 35.67 | J13: 40.66 | K13: ='[5]Local 201314'!S248 -> 70.74 | L13: 80.64 | M13: ='[5]Local 201314'!T248 -> 48.68 | N13: 55.5 | O13: ='[5]Local 201314'!U248 -> 30.88 | P13: 35.2 | Q13: ='[5]Local 201314'!AA248 -> 11.38 | R13: 12.97
E14: ='[5]Local 201314'!P249 -> 0 | G14: ='[5]Local 201314'!Q249 -> 0 | I14: ='[5]Local 201314'!R249 -> 0 | K14: ='[5]Local 201314'!S249 -> 0 | M14: ='[5]Local 201314'!T249 -> 0 | O14: ='[5]Local 201314'!U249 -> 0 | Q14: ='[5]Local 201314'!AA249 -> 0
E15: ='[5]Local 201314'!P250 -> 0 | G15: ='[5]Local 201314'!Q250 -> 0 | I15: ='[5]Local 201314'!R250 -> 0 | K15: ='[5]Local 201314'!S250 -> 0 | M15: ='[5]Local 201314'!T250 -> 0 | O15: ='[5]Local 201314'!U250 -> 0 | Q15: ='[5]Local 201314'!AA250 -> 0
C16: > 600km and ≤ 900km | D16: < 500V | E16: ='[5]Local 201314'!P251 -> 221.2 | F16: 252.17 | G16: ='[5]Local 201314'!Q251 -> 67 | H16: 76.38 | I16: ='[5]Local 201314'!R251 -> 36.39 | J16: 41.48 | K16: ='[5]Local 201314'!S251 -> 72.15 | L16: 82.25 | M16: ='[5]Local 201314'!T251 -> 49.65 | N16: 56.6 | O16: ='[5]Local 201314'!U251 -> 31.51 | P16: 35.92 | Q16: ='[5]Local 201314'!AA251 -> 12.45 | R16: 14.19
D17: ≥ 500V & ≤ 22kV | E17: ='[5]Local 201314'!P252 -> 219 | F17: 249.66 | G17: ='[5]Local 201314'!Q252 -> 66.34 | H17: 75.63 | I17: ='[5]Local 201314'!R252 -> 36.02 | J17: 41.06 | K17: ='[5]Local 201314'!S252 -> 71.44 | L17: 81.44 | M17: ='[5]Local 201314'!T252 -> 49.17 | N17: 56.05 | O17: ='[5]Local 201314'!U252 -> 31.2 | P17: 35.57 | Q17: ='[5]Local 201314'!AA252 -> 11.43 | R17: 13.03
E18: ='[5]Local 201314'!P253 -> 0 | G18: ='[5]Local 201314'!Q253 -> 0 | I18: ='[5]Local 201314'!R253 -> 0 | K18: ='[5]Local 201314'!S253 -> 0 | M18: ='[5]Local 201314'!T253 -> 0 | O18: ='[5]Local 201314'!U253 -> 0 | Q18: ='[5]Local 201314'!AA253 -> 0
E19: ='[5]Local 201314'!P254 -> 0 | G19: ='[5]Local 201314'!Q254 -> 0 | I19: ='[5]Local 201314'!R254 -> 0 | K19: ='[5]Local 201314'!S254 -> 0 | M19: ='[5]Local 201314'!T254 -> 0 | O19: ='[5]Local 201314'!U254 -> 0 | Q19: ='[5]Local 201314'!AA254 -> 0
C20: > 900km | D20: < 500V | E20: ='[5]Local 201314'!P255 -> 223.41 | F20: 254.69 | G20: ='[5]Local 201314'!Q255 -> 67.68 | H20: 77.16 | I20: ='[5]Local 201314'!R255 -> 36.74 | J20: 41.88 | K20: ='[5]Local 201314'!S255 -> 72.87 | L20: 83.07 | M20: ='[5]Local 201314'!T255 -> 50.16 | N20: 57.18 | O20: ='[5]Local 201314'!U255 -> 31.82 | P20: 36.27 | Q20: ='[5]Local 201314'!AA255 -> 12.49 | R20: 14.24
D21: ≥ 500V & ≤ 22kV | E21: ='[5]Local 201314'!P256 -> 221.19 | F21: 252.16 | G21: ='[5]Local 201314'!Q256 -> 67 | H21: 76.38 | I21: ='[5]Local 201314'!R256 -> 36.39 | J21: 41.48 | K21: ='[5]Local 201314'!S256 -> 72.15 | L21: 82.25 | M21: ='[5]Local 201314'!T256 -> 49.65 | N21: 56.6 | O21: ='[5]Local 201314'!U256 -> 31.51 | P21: 35.92 | Q21: ='[5]Local 201314'!AA256 -> 11.44 | R21: 13.04
C26: Customer categories | E26: Service charge [R/account/day] | G26: Administration charge [R/POD/day] | L26: Reliability service charge [c/kWh] | N26: Network demand charge [c/kWh] [All time of use periods]
J27: Voltage | M27: VAT incl | O27: VAT incl
F28: VAT incl | H28: VAT incl | J28: < 500V | L28: ='[5]Local 201314'!Y243 -> 0.27 | M28: =ROUND(L28 * (1 + VAT), 2) -> 0.31 | N28: ='[5]Local 201314'!AR243 -> 17.58 | O28: =ROUND(N28 * (1 + VAT), 2) -> 20.04
C29: ≤ 100 kVA | E29: ='[5]Local 201314'!$K$243 -> 11.98 | F29: =ROUND(E29 * (1 + VAT), 2) -> 13.66 | G29: ='[5]Local 201314'!$F$243 -> 3.41 | H29: =ROUND(G29 * (1 + VAT), 2) -> 3.89 | J29: ≥ 500V & < 22kV | L29: ='[5]Local 201314'!Y244 -> 0.27 | M29: =ROUND(L29 * (1 + VAT), 2) -> 0.31 | N29: ='[5]Local 201314'!AR244 -> 15.4 | O29: =ROUND(N29 * (1 + VAT), 2) -> 17.56
C30: > 100 kVA & ≤ 500 kVA | E30: ='[5]Local 201314'!$L$243 -> 40.85 | F30: =ROUND(E30 * (1 + VAT), 2) -> 46.57 | G30: ='[5]Local 201314'!$G$243 -> 18.93 | H30: =ROUND(G30 * (1 + VAT), 2) -> 21.58
C31: > 500 kVA & ≤ 1 MVA | E31: ='[5]Local 201314'!$M$243 -> 125.65 | F31: =ROUND(E31 * (1 + VAT), 2) -> 143.24 | G31: ='[5]Local 201314'!$H$243 -> 29.06 | H31: =ROUND(G31 * (1 + VAT), 2) -> 33.13 | J31: Reactive energy charge [c/kVArh]
C32: > 1 MVA | E32: ='[5]Local 201314'!$N$243 -> 125.65 | F32: =ROUND(E32 * (1 + VAT), 2) -> 143.24 | G32: ='[5]Local 201314'!$I$243 -> 53.93 | H32: =ROUND(G32 * (1 + VAT), 2) -> 61.48 | J32: High season | L32: Low season
C33: Key customers | E33: ='[5]Local 201314'!$O$243 -> 2462.52 | F33: =ROUND(E33 * (1 + VAT), 2) -> 2807.27 | G33: ='[5]Local 201314'!$J$243 -> 53.93 | H33: =ROUND(G33 * (1 + VAT), 2) -> 61.48 | K33: VAT incl | M33: VAT incl
J34: ='[5]Local 201314'!$V$243 -> 5.85 | K34: =ROUND(J34 * (1 + VAT), 2) -> 6.67 | L34: 0 | M34: =ROUND(L34 * (1 + VAT), 2) -> 0

Sheet Nightsave Rural inc
N1: =SUM(E8:E23,G8:G23,I8:I23,K8:K23,M8:M23,#REF!,#REF!,#REF!) - '[5]Non Local 201314'!$AL$327 -> 
B2: Nightsave Rural tariff | M2: Non-local authority | AA2: =SUM(#REF!,#REF!,#REF!,#REF!,#REF!,#REF!,#REF!,#REF!,#REF!,#REF!,#REF!,#REF!,#REF!,#REF!,#REF!) ->  | AB2: check value
E4: Active energy charge [c/kWh] | I4: Energy demand charges [R/kVA/m] | M4: Network access charges [R/kVA/m]
C5: Transmission zone | E5: High demand season [Jun - Aug] | G5: Low demand season [Sep - May] | I5: High demand season [Jun - Aug] | K5: Low demand season [Sep - May]
D6: Voltage
F7: VAT incl | H7: VAT incl | J7: VAT incl | L7: VAT incl | N7: VAT incl
C8: ≤ 300km | D8: < 500V | E8: ='[5]Non Local 201314'!P327 -> 51.66 | F8: =ROUND(E8 * (1 + VAT), 2) -> 58.89 | G8: ='[5]Non Local 201314'!S327 -> 40.14 | H8: =ROUND(G8 * (1 + VAT), 2) -> 45.76 | I8: ='[5]Non Local 201314'!AE327 -> 173.09 | J8: =ROUND(I8 * (1 + VAT), 2) -> 197.32 | K8: ='[5]Non Local 201314'!AF327 -> 91.61 | L8: =ROUND(K8 * (1 + VAT), 2) -> 104.44 | M8: ='[5]Non Local 201314'!AA327 -> 8.75 | N8: =ROUND(M8 * (1 + VAT), 2) -> 9.98
D9: ≥ 500V & ≤ 22kV | E9: ='[5]Non Local 201314'!P328 -> 51.05 | F9: 58.2 | G9: ='[5]Non Local 201314'!S328 -> 39.69 | H9: 45.25 | I9: ='[5]Non Local 201314'!AE328 -> 167.72 | J9: 191.2 | K9: ='[5]Non Local 201314'!AF328 -> 88.35 | L9: 100.72 | M9: ='[5]Non Local 201314'!AA328 -> 8.04 | N9: 9.17
E10: ='[5]Non Local 201314'!P329 -> 0 | G10: ='[5]Non Local 201314'!S329 -> 0 | I10: ='[5]Non Local 201314'!AE329 -> 0 | K10: ='[5]Non Local 201314'!AF329 -> 0 | M10: ='[5]Non Local 201314'!AA329 -> 0
E11: ='[5]Non Local 201314'!P330 -> 0 | G11: ='[5]Non Local 201314'!S330 -> 0 | I11: ='[5]Non Local 201314'!AE330 -> 0 | K11: ='[5]Non Local 201314'!AF330 -> 0 | M11: ='[5]Non Local 201314'!AA330 -> 0
C12: > 300km and ≤ 600km | D12: < 500V | E12: ='[5]Non Local 201314'!P331 -> 52.17 | F12: 59.47 | G12: ='[5]Non Local 201314'!S331 -> 40.54 | H12: 46.22 | I12: ='[5]Non Local 201314'!AE331 -> 175.18 | J12: 199.71 | K12: ='[5]Non Local 201314'!AF331 -> 92.88 | L12: 105.88 | M12: ='[5]Non Local 201314'!AA331 -> 8.78 | N12: 10.01
D13: ≥ 500V & ≤ 22kV | E13: ='[5]Non Local 201314'!P332 -> 51.57 | F13: 58.79 | G13: ='[5]Non Local 201314'!S332 -> 40.09 | H13: 45.7 | I13: ='[5]Non Local 201314'!AE332 -> 169.78 | J13: 193.55 | K13: ='[5]Non Local 201314'!AF332 -> 89.58 | L13: 102.12 | M13: ='[5]Non Local 201314'!AA332 -> 8.07 | N13: 9.2
E14: ='[5]Non Local 201314'!P333 -> 0 | G14: ='[5]Non Local 201314'!S333 -> 0 | I14: ='[5]Non Local 201314'!AE333 -> 0 | K14: ='[5]Non Local 201314'!AF333 -> 0 | M14: ='[5]Non Local 201314'!AA333 -> 0
E15: ='[5]Non Local 201314'!P334 -> 0 | G15: ='[5]Non Local 201314'!S334 -> 0 | I15: ='[5]Non Local 201314'!AE334 -> 0 | K15: ='[5]Non Local 201314'!AF334 -> 0 | M15: ='[5]Non Local 201314'!AA334 -> 0
C16: > 600km and ≤ 900km | D16: < 500V | E16: ='[5]Non Local 201314'!P335 -> 52.69 | F16: 60.07 | G16: ='[5]Non Local 201314'!S335 -> 40.94 | H16: 46.67 | I16: ='[5]Non Local 201314'!AE335 -> 177.28 | J16: 202.1 | K16: ='[5]Non Local 201314'!AF335 -> 94.13 | L16: 107.31 | M16: ='[5]Non Local 201314'!AA335 -> 8.86 | N16: 10.1
D17: ≥ 500V & ≤ 22kV | E17: ='[5]Non Local 201314'!P336 -> 52.07 | F17: 59.36 | G17: ='[5]Non Local 201314'!S336 -> 40.49 | H17: 46.16 | I17: ='[5]Non Local 201314'!AE336 -> 171.81 | J17: 195.86 | K17: ='[5]Non Local 201314'!AF336 -> 90.82 | L17: 103.53 | M17: ='[5]Non Local 201314'!AA336 -> 8.13 | N17: 9.27
E18: ='[5]Non Local 201314'!P337 -> 0 | G18: ='[5]Non Local 201314'!S337 -> 0 | I18: ='[5]Non Local 201314'!AE337 -> 0 | K18: ='[5]Non Local 201314'!AF337 -> 0 | M18: ='[5]Non Local 201314'!AA337 -> 0
E19: ='[5]Non Local 201314'!P338 -> 0 | G19: ='[5]Non Local 201314'!S338 -> 0 | I19: ='[5]Non Local 201314'!AE338 -> 0 | K19: ='[5]Non Local 201314'!AF338 -> 0 | M19: ='[5]Non Local 201314'!AA338 -> 0
C20: > 900km | D20: < 500V | E20: ='[5]Non Local 201314'!P339 -> 53.21 | F20: 60.66 | G20: ='[5]Non Local 201314'!S339 -> 41.35 | H20: 47.14 | I20: ='[5]Non Local 201314'!AE339 -> 179.43 | J20: 204.55 | K20: ='[5]Non Local 201314'!AF339 -> 95.43 | L20: 108.79 | M20: ='[5]Non Local 201314'!AA339 -> 8.87 | N20: 10.11
D21: ≥ 500V & ≤ 22kV | E21: ='[5]Non Local 201314'!P340 -> 52.58 | F21: 59.94 | G21: ='[5]Non Local 201314'!S340 -> 40.88 | H21: 46.6 | I21: ='[5]Non Local 201314'!AE340 -> 173.91 | J21: 198.26 | K21: ='[5]Non Local 201314'!AF340 -> 92.09 | L21: 104.98 | M21: ='[5]Non Local 201314'!AA340 -> 8.14 | N21: 9.28
C26: Customer categories | E26: Service charge [R/account/day] | G26: Administration charge [R/POD/day]
F28: VAT incl | H28: VAT incl
C29: ≤ 100 kVA | E29: ='[5]Non Local 201314'!$K$327 -> 12.03 | F29: =ROUND(E29 * (1 + VAT), 2) -> 13.71 | G29: ='[5]Non Local 201314'!$F$327 -> 3.42 | H29: =ROUND(G29 * (1 + VAT), 2) -> 3.9
C30: > 100 kVA & ≤ 500 kVA | E30: ='[5]Non Local 201314'!$L$327 -> 41.04 | F30: =ROUND(E30 * (1 + VAT), 2) -> 46.79 | G30: ='[5]Non Local 201314'!$G$327 -> 19.02 | H30: =ROUND(G30 * (1 + VAT), 2) -> 21.68 | K30: Reliability service charge [c/kWh] | M30: Network demand charge [c/kWh] [All time of use periods]
C31: > 500 kVA & ≤ 1 MVA | E31: ='[5]Non Local 201314'!$M$327 -> 126.23 | F31: =ROUND(E31 * (1 + VAT), 2) -> 143.9 | G31: ='[5]Non Local 201314'!$H$327 -> 29.19 | H31: =ROUND(G31 * (1 + VAT), 2) -> 33.28 | J31: Voltage | L31: VAT incl | N31: VAT incl
C32: > 1 MVA | E32: ='[5]Non Local 201314'!$N$327 -> 126.23 | F32: =ROUND(E32 * (1 + VAT), 2) -> 143.9 | G32: ='[5]Non Local 201314'!$I$327 -> 54.18 | H32: =ROUND(G32 * (1 + VAT), 2) -> 61.77 | J32: < 500V | K32: ='[5]Non Local 201314'!Y327 -> 0.27 | L32: =ROUND(K32 * (1 + VAT), 2) -> 0.31 | M32: ='[5]Non Local 201314'!AR327 -> 17.41 | N32: =ROUND(M32 * (1 + VAT), 2) -> 19.85
C33: Key customers | E33: ='[5]Non Local 201314'!$O$327 -> 2473.98 | F33: =ROUND(E33 * (1 + VAT), 2) -> 2820.34 | G33: ='[5]Non Local 201314'!$J$327 -> 54.18 | H33: =ROUND(G33 * (1 + VAT), 2) -> 61.77 | J33: ≥ 500V & ≤ 22kV | K33: ='[5]Non Local 201314'!Y328 -> 0.27 | L33: =ROUND(K33 * (1 + VAT), 2) -> 0.31 | M33: ='[5]Non Local 201314'!AR328 -> 15.26 | N33: =ROUND(M33 * (1 + VAT), 2) -> 17.4

Sheet Nightsave Rural Munic inc
N1: =SUM(E8:E23,G8:G23,I8:I23,K8:K23,M8:M23,#REF!,#REF!,#REF!) - '[5]Local 201314'!$AL$259 -> 
B2: Nightsave Rural tariff | M2: Local authority | AA2: =SUM(#REF!,#REF!,#REF!,#REF!,#REF!,#REF!,#REF!,#REF!,#REF!,#REF!,#REF!,#REF!,#REF!,#REF!,#REF!) ->  | AB2: check value
E4: Active energy charge [c/kWh] | I4: Energy demand charges [R/kVA/m] | M4: Network access charges [R/kVA/m]
C5: Transmission zone | E5: High demand season [Jun - Aug] | G5: Low demand season [Sep - May] | I5: High demand season [Jun - Aug] | K5: Low demand season [Sep - May]
D6: Voltage
F7: VAT incl | H7: VAT incl | J7: VAT incl | L7: VAT incl | N7: VAT incl
C8: ≤ 300km | D8: < 500V | E8: ='[5]Local 201314'!P259 -> 52.89 | F8: =ROUND(E8 * (1 + VAT), 2) -> 60.29 | G8: ='[5]Local 201314'!S259 -> 41.1 | H8: =ROUND(G8 * (1 + VAT), 2) -> 46.85 | I8: ='[5]Local 201314'!AE259 -> 173.09 | J8: =ROUND(I8 * (1 + VAT), 2) -> 197.32 | K8: ='[5]Local 201314'!AF259 -> 91.61 | L8: =ROUND(K8 * (1 + VAT), 2) -> 104.44 | M8: ='[5]Local 201314'!AA259 -> 8.84 | N8: =ROUND(M8 * (1 + VAT), 2) -> 10.08
D9: ≥ 500V & ≤ 22kV | E9: ='[5]Local 201314'!P260 -> 52.27 | F9: 59.59 | G9: ='[5]Local 201314'!S260 -> 40.64 | H9: 46.33 | I9: ='[5]Local 201314'!AE260 -> 167.72 | J9: 191.2 | K9: ='[5]Local 201314'!AF260 -> 88.35 | L9: 100.72 | M9: ='[5]Local 201314'!AA260 -> 8.12 | N9: 9.26
E10: ='[5]Local 201314'!P261 -> 0 | G10: ='[5]Local 201314'!S261 -> 0 | I10: ='[5]Local 201314'!AE261 -> 0 | K10: ='[5]Local 201314'!AF261 -> 0 | M10: ='[5]Local 201314'!AA261 -> 0
E11: ='[5]Local 201314'!P262 -> 0 | G11: ='[5]Local 201314'!S262 -> 0 | I11: ='[5]Local 201314'!AE262 -> 0 | K11: ='[5]Local 201314'!AF262 -> 0 | M11: ='[5]Local 201314'!AA262 -> 0
C12: > 300km and ≤ 600km | D12: < 500V | E12: ='[5]Local 201314'!P263 -> 53.42 | F12: 60.9 | G12: ='[5]Local 201314'!S263 -> 41.51 | H12: 47.32 | I12: ='[5]Local 201314'!AE263 -> 175.18 | J12: 199.71 | K12: ='[5]Local 201314'!AF263 -> 92.88 | L12: 105.88 | M12: ='[5]Local 201314'!AA263 -> 8.86 | N12: 10.1
D13: ≥ 500V & ≤ 22kV | E13: ='[5]Local 201314'!P264 -> 52.79 | F13: 60.18 | G13: ='[5]Local 201314'!S264 -> 41.04 | H13: 46.79 | I13: ='[5]Local 201314'!AE264 -> 169.78 | J13: 193.55 | K13: ='[5]Local 201314'!AF264 -> 89.58 | L13: 102.12 | M13: ='[5]Local 201314'!AA264 -> 8.15 | N13: 9.29
E14: ='[5]Local 201314'!P265 -> 0 | G14: ='[5]Local 201314'!S265 -> 0 | I14: ='[5]Local 201314'!AE265 -> 0 | K14: ='[5]Local 201314'!AF265 -> 0 | M14: ='[5]Local 201314'!AA265 -> 0
E15: ='[5]Local 201314'!P266 -> 0 | G15: ='[5]Local 201314'!S266 -> 0 | I15: ='[5]Local 201314'!AE266 -> 0 | K15: ='[5]Local 201314'!AF266 -> 0 | M15: ='[5]Local 201314'!AA266 -> 0
C16: > 600km and ≤ 900km | D16: < 500V | E16: ='[5]Local 201314'!P267 -> 53.94 | F16: 61.49 | G16: ='[5]Local 201314'!S267 -> 41.91 | H16: 47.78 | I16: ='[5]Local 201314'!AE267 -> 177.28 | J16: 202.1 | K16: ='[5]Local 201314'!AF267 -> 94.13 | L16: 107.31 | M16: ='[5]Local 201314'!AA267 -> 8.94 | N16: 10.19
D17: ≥ 500V & ≤ 22kV | E17: ='[5]Local 201314'!P268 -> 53.31 | F17: 60.77 | G17: ='[5]Local 201314'!S268 -> 41.45 | H17: 47.25 | I17: ='[5]Local 201314'!AE268 -> 171.81 | J17: 195.86 | K17: ='[5]Local 201314'!AF268 -> 90.82 | L17: 103.53 | M17: ='[5]Local 201314'!AA268 -> 8.2 | N17: 9.35
E18: ='[5]Local 201314'!P269 -> 0 | G18: ='[5]Local 201314'!S269 -> 0 | I18: ='[5]Local 201314'!AE269 -> 0 | K18: ='[5]Local 201314'!AF269 -> 0 | M18: ='[5]Local 201314'!AA269 -> 0
E19: ='[5]Local 201314'!P270 -> 0 | G19: ='[5]Local 201314'!S270 -> 0 | I19: ='[5]Local 201314'!AE270 -> 0 | K19: ='[5]Local 201314'!AF270 -> 0 | M19: ='[5]Local 201314'!AA270 -> 0
C20: > 900km | D20: < 500V | E20: ='[5]Local 201314'!P271 -> 54.48 | F20: 62.11 | G20: ='[5]Local 201314'!S271 -> 42.33 | H20: 48.26 | I20: ='[5]Local 201314'!AE271 -> 179.43 | J20: 204.55 | K20: ='[5]Local 201314'!AF271 -> 95.43 | L20: 108.79 | M20: ='[5]Local 201314'!AA271 -> 8.95 | N20: 10.2
D21: ≥ 500V & ≤ 22kV | E21: ='[5]Local 201314'!P272 -> 53.84 | F21: 61.38 | G21: ='[5]Local 201314'!S272 -> 41.85 | H21: 47.71 | I21: ='[5]Local 201314'!AE272 -> 173.91 | J21: 198.26 | K21: ='[5]Local 201314'!AF272 -> 92.09 | L21: 104.98 | M21: ='[5]Local 201314'!AA272 -> 8.21 | N21: 9.36
C26: Customer categories | E26: Service charge [R/account/day] | G26: Administration charge [R/POD/day]
F28: VAT incl | H28: VAT incl
C29: ≤ 100 kVA | E29: ='[5]Local 201314'!$K$259 -> 11.98 | F29: =ROUND(E29 * (1 + VAT), 2) -> 13.66 | G29: ='[5]Local 201314'!$F$259 -> 3.41 | H29: =ROUND(G29 * (1 + VAT), 2) -> 3.89
C30: > 100 kVA & ≤ 500 kVA | E30: ='[5]Local 201314'!$L$259 -> 40.85 | F30: =ROUND(E30 * (1 + VAT), 2) -> 46.57 | G30: ='[5]Local 201314'!$G$259 -> 18.93 | H30: =ROUND(G30 * (1 + VAT), 2) -> 21.58 | K30: Reliability service charge [c/kWh] | M30: Network demand charge [c/kWh] [All time of use periods]
C31: > 500 kVA & ≤ 1 MVA | E31: ='[5]Local 201314'!$M$259 -> 125.65 | F31: =ROUND(E31 * (1 + VAT), 2) -> 143.24 | G31: ='[5]Local 201314'!$H$259 -> 29.06 | H31: =ROUND(G31 * (1 + VAT), 2) -> 33.13 | J31: Voltage | L31: VAT incl | N31: VAT incl
C32: > 1 MVA | E32: ='[5]Local 201314'!$N$259 -> 125.65 | F32: =ROUND(E32 * (1 + VAT), 2) -> 143.24 | G32: ='[5]Local 201314'!$I$259 -> 53.93 | H32: =ROUND(G32 * (1 + VAT), 2) -> 61.48 | J32: < 500V | K32: ='[5]Local 201314'!Y259 -> 0.27 | L32: =ROUND(K32 * (1 + VAT), 2) -> 0.31 | M32: ='[5]Local 201314'!AR259 -> 17.58 | N32: =ROUND(M32 * (1 + VAT), 2) -> 20.04
C33: Key customers | E33: ='[5]Local 201314'!$O$259 -> 2462.52 | F33: =ROUND(E33 * (1 + VAT), 2) -> 2807.27 | G33: ='[5]Local 201314'!$J$259 -> 53.93 | H33: =ROUND(G33 * (1 + VAT), 2) -> 61.48 | J33: ≥ 500V & ≤ 22kV | K33: ='[5]Local 201314'!Y260 -> 0.27 | L33: =ROUND(K33 * (1 + VAT), 2) -> 0.31 | M33: ='[5]Local 201314'!AR260 -> 15.4 | N33: =ROUND(M33 * (1 + VAT), 2) -> 17.56

Sheet Businessrate inc
B2: Businessrate tariffs | L2: Non-local authority
F4: Energy charge [c/kWh] | H4: Reliability service charge [c/kWh] | J4: Network demand charge [c/kWh] | L4: Network access charge [R/POD/day] | N4: Service and administration charge [R/POD/day] | V4: Electrification and rural network subsidy charge [c/kWh] | X4: Affordability subsidy charge [c/kWh] payable by non-local authority tariffs
V6: All seasons | X6: All seasons
G7: VAT incl | I7: VAT incl | K7: VAT incl | M7: VAT incl | O7: VAT incl | W7: VAT incl | Y7: VAT incl
D8: Businessrate 1 | F8: ='[5]Non Local 201314'!P407 -> 70.04 | G8: =ROUND(F8 * (1 + VAT), 2) -> 79.85 | H8: ='[5]Non Local 201314'!Y407 -> 0.27 | I8: =ROUND(H8 * (1 + VAT), 2) -> 0.31 | J8: ='[5]Non Local 201314'!AR407 -> 9.89 | K8: =ROUND(J8 * (1 + VAT), 2) -> 11.27 | L8: ='[5]Non Local 201314'!AD407 -> 14.19 | M8: =ROUND(L8 * (1 + VAT), 2) -> 16.18 | N8: ='[5]Non Local 201314'!K407 -> 12.27 | O8: =ROUND(N8 * (1 + VAT), 2) -> 13.99 | V8: ='[5]Non Local 201314'!AO407+'[5]Non Local 201314'!AM407 -> 0 | W8: =ROUND(V8 * (1 + VAT), 2) -> 0 | X8: ='[5]Non Local 201314'!AP407 -> 0 | Y8: =ROUND(X8 * (1 + VAT), 2) -> 0
D9: Businessrate 2 | F9: ='[5]Non Local 201314'!P408 -> 70.04 | G9: =ROUND(F9 * (1 + VAT), 2) -> 79.85 | H9: ='[5]Non Local 201314'!Y408 -> 0.27 | I9: =ROUND(H9 * (1 + VAT), 2) -> 0.31 | J9: ='[5]Non Local 201314'!AR408 -> 9.89 | K9: =ROUND(J9 * (1 + VAT), 2) -> 11.27 | L9: ='[5]Non Local 201314'!AD408 -> 23.92 | M9: =ROUND(L9 * (1 + VAT), 2) -> 27.27 | N9: ='[5]Non Local 201314'!K408 -> 12.27 | O9: =ROUND(N9 * (1 + VAT), 2) -> 13.99 | V9: =V8 -> 0 | W9: =ROUND(V9 * (1 + VAT), 2) -> 0 | X9: =X8 -> 0 | Y9: =ROUND(X9 * (1 + VAT), 2) -> 0
D10: Businessrate 3 | F10: ='[5]Non Local 201314'!P409 -> 70.04 | G10: =ROUND(F10 * (1 + VAT), 2) -> 79.85 | H10: ='[5]Non Local 201314'!Y409 -> 0.27 | I10: =ROUND(H10 * (1 + VAT), 2) -> 0.31 | J10: ='[5]Non Local 201314'!AR409 -> 9.89 | K10: =ROUND(J10 * (1 + VAT), 2) -> 11.27 | L10: ='[5]Non Local 201314'!AD409 -> 41.33 | M10: =ROUND(L10 * (1 + VAT), 2) -> 47.12 | N10: ='[5]Non Local 201314'!K409 -> 12.27 | O10: =ROUND(N10 * (1 + VAT), 2) -> 13.99 | V10: =V8 -> 0 | W10: =ROUND(V10 * (1 + VAT), 2) -> 0 | X10: =X8 -> 0 | Y10: =ROUND(X10 * (1 + VAT), 2) -> 0
D11: Businessrate 4 | F11: ='[5]Non Local 201314'!P410 -> 188.46 | G11: =ROUND(F11 * (1 + VAT), 2) -> 214.84 | H11: ='[5]Non Local 201314'!Y410 -> 0.27 | I11: =ROUND(H11 * (1 + VAT), 2) -> 0.31 | J11: ='[5]Non Local 201314'!AR410 -> 9.89 | K11: =ROUND(J11 * (1 + VAT), 2) -> 11.27 | V11: =V9 -> 0 | W11: =ROUND(V11 * (1 + VAT), 2) -> 0 | X11: =X9 -> 0 | Y11: =ROUND(X11 * (1 + VAT), 2) -> 0

Sheet Businessrate Munic inc
B2: Businessrate tariffs | N2: Local authority
F4: Energy charge [c/kWh] | H4: Reliability service charge [c/kWh] | J4: Network demand charge [c/kWh] | L4: Network access charge [R/POD/day] | N4: Service and administration charge [R/POD/day] | W4: Electrification and rural network subsidy charge [c/kWh]
W5: All seasons
G6: VAT incl | I6: VAT incl | K6: VAT incl | M6: VAT incl | O6: VAT incl | X6: VAT incl
D7: Businessrate 1 | F7: ='[5]Local 201314'!P275 -> 71.7 | G7: =ROUND(F7 * (1 + VAT), 2) -> 81.74 | H7: ='[5]Non Local 201314'!Y407 -> 0.27 | I7: =ROUND(H7 * (1 + VAT), 2) -> 0.31 | J7: ='[5]Local 201314'!AR275 -> 9.94 | K7: =ROUND(J7 * (1 + VAT), 2) -> 11.33 | L7: ='[5]Local 201314'!AD275 -> 14.26 | M7: =ROUND(L7 * (1 + VAT), 2) -> 16.26 | N7: ='[5]Local 201314'!K275 -> 12.21 | O7: =ROUND(N7 * (1 + VAT), 2) -> 13.92 | W7: ='[5]Local 201314'!$AM$275 + '[5]Local 201314'!$AO$275 -> 0 | X7: =ROUND(W7 * (1 + VAT), 2) -> 0
D8: Businessrate 2 | F8: ='[5]Local 201314'!P276 -> 71.7 | G8: =ROUND(F8 * (1 + VAT), 2) -> 81.74 | H8: ='[5]Non Local 201314'!Y408 -> 0.27 | I8: =ROUND(H8 * (1 + VAT), 2) -> 0.31 | J8: ='[5]Local 201314'!AR276 -> 9.94 | K8: =ROUND(J8 * (1 + VAT), 2) -> 11.33 | L8: ='[5]Local 201314'!AD276 -> 24.03 | M8: =ROUND(L8 * (1 + VAT), 2) -> 27.39 | N8: ='[5]Local 201314'!K276 -> 12.21 | O8: =ROUND(N8 * (1 + VAT), 2) -> 13.92 | W8: =W7 -> 0 | X8: =ROUND(W8 * (1 + VAT), 2) -> 0
D9: Businessrate 3 | F9: ='[5]Local 201314'!P277 -> 71.7 | G9: =ROUND(F9 * (1 + VAT), 2) -> 81.74 | H9: ='[5]Non Local 201314'!Y409 -> 0.27 | I9: =ROUND(H9 * (1 + VAT), 2) -> 0.31 | J9: ='[5]Local 201314'!AR277 -> 9.94 | K9: =ROUND(J9 * (1 + VAT), 2) -> 11.33 | L9: ='[5]Local 201314'!AD277 -> 41.53 | M9: =ROUND(L9 * (1 + VAT), 2) -> 47.34 | N9: ='[5]Local 201314'!K277 -> 12.21 | O9: =ROUND(N9 * (1 + VAT), 2) -> 13.92 | W9: =W7 -> 0 | X9: =ROUND(W9 * (1 + VAT), 2) -> 0
D10: Businessrate 4 | F10: ='[5]Local 201314'!P278 -> 192.95 | G10: =ROUND(F10 * (1 + VAT), 2) -> 219.96 | H10: ='[5]Non Local 201314'!Y410 -> 0.27 | I10: =ROUND(H10 * (1 + VAT), 2) -> 0.31 | J10: ='[5]Local 201314'!AR278 -> 9.94 | K10: =ROUND(J10 * (1 + VAT), 2) -> 11.33 | W10: =W8 -> 0 | X10: =ROUND(W10 * (1 + VAT), 2) -> 0

Sheet Homepower inc
B2: Homepower tariffs Local authority | D2: Homepower | K2: Non-local authority
F5: Energy charge [c/kWh] | H5: Energy charge [c/kWh] | J5: Network access charge [R/POD/day]
F6: Block 1 [>0 - 600 kWh] | G6: VAT incl | H6: Block 2 [>600 kWh] | I6: VAT incl | K6: VAT incl
D7: Homepower 1 | F7: ='[5]Non Local 201314'!AH411 -> 82.08 | G7: =ROUND(F7 * (1 + VAT), 2) -> 93.57 | H7: ='[5]Non Local 201314'!AK411 -> 129.6 | I7: =ROUND(H7 * (1 + VAT), 2) -> 147.74 | J7: ='[5]Non Local 201314'!AD411 -> 3.52 | K7: =ROUND(J7 * (1 + VAT), 2) -> 4.01
D8: Homepower 2 | F8: ='[5]Non Local 201314'!AH412 -> 82.08 | G8: =ROUND(F8 * (1 + VAT), 2) -> 93.57 | H8: ='[5]Non Local 201314'!AK412 -> 126.36 | I8: =ROUND(H8 * (1 + VAT), 2) -> 144.05 | J8: ='[5]Non Local 201314'!AD412 -> 6.59 | K8: =ROUND(J8 * (1 + VAT), 2) -> 7.51
D9: Homepower 3 | F9: ='[5]Non Local 201314'!AH413 -> 82.08 | G9: =ROUND(F9 * (1 + VAT), 2) -> 93.57 | H9: ='[5]Non Local 201314'!AK413 -> 126.36 | I9: =ROUND(H9 * (1 + VAT), 2) -> 144.05 | J9: ='[5]Non Local 201314'!AD413 -> 13.6 | K9: =ROUND(J9 * (1 + VAT), 2) -> 15.5
D10: Homepower 4 | F10: ='[5]Non Local 201314'!AH414 -> 82.08 | G10: =ROUND(F10 * (1 + VAT), 2) -> 93.57 | H10: ='[5]Non Local 201314'!AK414 -> 131.99 | I10: =ROUND(H10 * (1 + VAT), 2) -> 150.47 | J10: ='[5]Non Local 201314'!AD414 -> 2.15 | K10: =ROUND(J10 * (1 + VAT), 2) -> 2.45
F12: Energy charge [c/kWh] | H12: Network access charge [R/kVA]
G13: VAT incl | I13: VAT incl
D14: Homepower Bulk | F14: ='[5]Non Local 201314'!AH416 -> 107.76 | G14: =ROUND(F14 * (1 + VAT), 2) -> 122.85 | H14: ='[5]Non Local 201314'!$AA$416 -> 22.3 | I14: =ROUND(H14 * (1 + VAT), 2) -> 25.42

Sheet Homepower Munic inc
B2: Homepower tariffs | K2: Local authority
G4: Energy charge [c/kWh] | I4: Energy charge [c/kWh] | K4: Network access charge [R/POD/day]
G5: Block 1 [>0 - 600 kWh] | H5: VAT incl | I5: Block 2 [>600 kWh] | J5: VAT incl | L5: VAT incl
E6: Homepower 1 | G6: ='[5]Local 201314'!AH279 -> 82.08 | H6: =ROUND(G6 * (1 + VAT), 2) -> 93.57 | I6: ='[5]Local 201314'!AK279 -> 129.6 | J6: =ROUND(I6 * (1 + VAT), 2) -> 147.74 | K6: ='[5]Local 201314'!AD279 -> 3.52 | L6: =ROUND(K6 * (1 + VAT), 2) -> 4.01
E7: Homepower 2 | G7: ='[5]Local 201314'!AH280 -> 82.08 | H7: =ROUND(G7 * (1 + VAT), 2) -> 93.57 | I7: ='[5]Local 201314'!AK280 -> 126.36 | J7: =ROUND(I7 * (1 + VAT), 2) -> 144.05 | K7: ='[5]Local 201314'!AD280 -> 6.59 | L7: =ROUND(K7 * (1 + VAT), 2) -> 7.51
E8: Homepower 3 | G8: ='[5]Local 201314'!AH281 -> 82.08 | H8: =ROUND(G8 * (1 + VAT), 2) -> 93.57 | I8: ='[5]Local 201314'!AK281 -> 126.36 | J8: =ROUND(I8 * (1 + VAT), 2) -> 144.05 | K8: ='[5]Local 201314'!AD281 -> 13.6 | L8: =ROUND(K8 * (1 + VAT), 2) -> 15.5
E9: Homepower 4 | G9: ='[5]Local 201314'!AH282 -> 82.08 | H9: =ROUND(G9 * (1 + VAT), 2) -> 93.57 | I9: ='[5]Local 201314'!AK282 -> 131.99 | J9: =ROUND(I9 * (1 + VAT), 2) -> 150.47 | K9: ='[5]Local 201314'!AD282 -> 2.15 | L9: =ROUND(K9 * (1 + VAT), 2) -> 2.45

Sheet Homeflex REDESIGN inc (hidden)
B2: Homeflex | O2: Non-local authority | AC2: =SUM(F6,J6:J16,L6:N16) -> 1059.44 | AD2: check value
F4: Peak energy charge [c/kWh] | H4: Off peak energy charge [c/kWh] | J4: Service & administration charge [c/kWh] | L4: Network demand charge [c/kWh] | N4: Network access charge [R/POD/day]
G5: VAT incl | I5: VAT incl | K5: VAT incl | M5: VAT incl | O5: VAT incl
D6: Homeflex 1 | E6: High Demand | F6: ='[5]Non Local 201314'!P460+'[5]Non Local 201314'!Y460 -> 210.7 | G6: =ROUND(F6 * (1 + VAT), 2) -> 240.2 | H6: ='[5]Non Local 201314'!Q460+'[5]Non Local 201314'!Y460 -> 48.1 | I6: =ROUND(H6 * (1 + VAT), 2) -> 54.83 | J6: ='[5]Non Local 201314'!AT460 -> 25.74 | K6: 29.34 | L6: ='[5]Non Local 201314'!AR460 -> 34.04 | M6: 38.81 | N6: ='[5]Non Local 201314'!AD460 -> 4.05 | O6: 4.62
E7: Low Demand | F7: ='[5]Non Local 201314'!S460+'[5]Non Local 201314'!Y460 -> 69.2 | G7: =ROUND(F7 * (1 + VAT), 2) -> 78.89 | H7: ='[5]Non Local 201314'!T460+'[5]Non Local 201314'!Y460 -> 38.16 | I7: 43.5 | J7: ='[5]Non Local 201314'!AT460 -> 25.74 | K7: 29.34 | L7: ='[5]Non Local 201314'!AR460 -> 34.04 | M7: 38.81 | N7: =N6 -> 4.05 | O7: 4.62
D8: Homeflex 2 | E8: High Demand | F8: ='[5]Non Local 201314'!P461+'[5]Non Local 201314'!Y461 -> 210.7 | G8: 240.2 | H8: ='[5]Non Local 201314'!Q461+'[5]Non Local 201314'!Y461 -> 48.1 | I8: 54.83 | J8: ='[5]Non Local 201314'!AT461 -> 25.74 | K8: 29.34 | L8: ='[5]Non Local 201314'!AR461 -> 34.04 | M8: 38.81 | N8: ='[5]Non Local 201314'!AD461 -> 7.53 | O8: 8.58
E9: Low Demand | F9: ='[5]Non Local 201314'!S461+'[5]Non Local 201314'!Y461 -> 69.2 | G9: 78.89 | H9: ='[5]Non Local 201314'!T461+'[5]Non Local 201314'!Y461 -> 38.16 | I9: 43.5 | J9: ='[5]Non Local 201314'!AT461 -> 25.74 | K9: 29.34 | L9: ='[5]Non Local 201314'!AR461 -> 34.04 | M9: 38.81 | N9: =N8 -> 7.53 | O9: 8.58
D10: Homeflex 3 | E10: High Demand | F10: ='[5]Non Local 201314'!P462+'[5]Non Local 201314'!Y462 -> 210.7 | G10: 240.2 | H10: ='[5]Non Local 201314'!Q462+'[5]Non Local 201314'!Y462 -> 48.1 | I10: 54.83 | J10: ='[5]Non Local 201314'!AT462 -> 25.74 | K10: 29.34 | L10: ='[5]Non Local 201314'!AR462 -> 34.04 | M10: 38.81 | N10: ='[5]Non Local 201314'!AD462 -> 16.01 | O10: 18.25
E11: Low Demand | F11: ='[5]Non Local 201314'!S462+'[5]Non Local 201314'!Y462 -> 69.2 | G11: 78.89 | H11: ='[5]Non Local 201314'!T462+'[5]Non Local 201314'!Y462 -> 38.16 | I11: 43.5 | J11: ='[5]Non Local 201314'!AT462 -> 25.74 | K11: 29.34 | L11: ='[5]Non Local 201314'!AR462 -> 34.04 | M11: 38.81 | N11: =N10 -> 16.01 | O11: 18.25
D12: Homeflex 4 | E12: High Demand | F12: ='[5]Non Local 201314'!P463+'[5]Non Local 201314'!Y463 -> 210.7 | G12: 240.2 | H12: ='[5]Non Local 201314'!Q463+'[5]Non Local 201314'!Y463 -> 48.1 | I12: 54.83 | J12: ='[5]Non Local 201314'!AT463 -> 25.74 | K12: 29.34 | L12: ='[5]Non Local 201314'!AR463 -> 34.04 | M12: 38.81 | N12: ='[5]Non Local 201314'!AD463 -> 2.42 | O12: 2.76
E13: Low Demand | F13: ='[5]Non Local 201314'!S463+'[5]Non Local 201314'!Y463 -> 69.2 | G13: 78.89 | H13: ='[5]Non Local 201314'!T463+'[5]Non Local 201314'!Y463 -> 38.16 | I13: 43.5 | J13: ='[5]Non Local 201314'!AT463 -> 25.74 | K13: 29.34 | L13: ='[5]Non Local 201314'!AR463 -> 34.04 | M13: 38.81 | N13: =N12 -> 2.42 | O13: 2.76
F14: The network access charge is a R/kVA charge and is based on the Notified Maximum Demand (NMD).

Sheet Homelight inc
B2: Homelight tariffs Non-local authority | AB2: =SUM(#REF!,#REF!,#REF!,#REF!,#REF!,#REF!) ->  | AC2: check value
D4: Homelight 60A | F4: Energy charge [c/kWh]
G5: VAT incl
D6: Block 1 [> 0 - 600 kWh] | F6: ='[5]Non Local 201314'!$AH$425 -> 77.66 | G6: =ROUND(F6 * (1 + VAT), 2) -> 88.53
D7: Block 2 [>600 kWh] | F7: ='[5]Non Local 201314'!$AK$425 -> 131.99 | G7: =ROUND(F7 * (1 + VAT), 2) -> 150.47
D10: Homelight 20A | F10: Energy charge [c/kWh]
G11: VAT incl
D12: Block 1 [> 0 - 350 kWh] | F12: ='[5]Non Local 201314'!$AH$424 -> 73.22 | G12: =ROUND(F12 * (1 + VAT), 2) -> 83.47
D13: Block 2 [>350 kWh] | F13: ='[5]Non Local 201314'!$AK$424 -> 78.6 | G13: =ROUND(F13 * (1 + VAT), 2) -> 89.6

Sheet Public Lighting inc
C2: Public Lighting tariffs Non-local authority | W2: =SUM(#REF!) ->  | X2: check value
F4: All Night | H4: 24 Hours
G5: VAT incl | I5: VAT incl
C6: Public Lighting | D6: Energy charge [c/kWh] | F6: ='[5]Non Local 201314'!$P$436 -> 57.62 | G6: =ROUND(F6 * (1 + VAT), 2) -> 65.69 | H6: ='[5]Non Local 201314'!$P$437 -> 77.16 | I6: =ROUND(H6 * (1 + VAT), 2) -> 87.96
D7: Energy charge [R/100W/month] | F7: ='[5]Non Local 201314'!$CJ$239 -> 18.34 | G7: =ROUND(F7 * (1 + VAT), 2) -> 20.91 | H7: ='[5]Non Local 201314'!$CK$239 -> 52.85 | I7: =ROUND(H7 * (1 + VAT), 2) -> 60.25
C9: Public Lighting - Urban Fixed | D9: Fixed charge [R/POD/day] | F9: ='[5]Non Local 201314'!$CL$238 -> 3.79 | G9: =ROUND(F9 * (1 + VAT), 2) -> 4.32
C11: Maintenance charges | F11: R/month
G12: VAT incl
E13: Per lumanaire | F13: ='[5]Non Local 201314'!$K$476 -> 31.07 | G13: =ROUND(F13 * (1 + VAT), 2) -> 35.42
E14: Per high-mast lumanaire | F14: ='[5]Non Local 201314'!$K$477 -> 723.41 | G14: =ROUND(F14 * (1 + VAT), 2) -> 824.69

Sheet Public Lighting Munic inc
C2: Public Lighting tariffs Local authority
F4: All Night | H4: 24 Hours
G5: VAT incl | I5: VAT incl
C6: Public Lighting | D6: Energy charge [c/kWh] | F6: ='[5]Local 201314'!$P$296 -> 59 | G6: =ROUND(F6 * (1 + VAT), 2) -> 67.26 | H6: ='[5]Local 201314'!$P$297 -> 79 | I6: =ROUND(H6 * (1 + VAT), 2) -> 90.06
D7: Energy charge [R/100W/month] | F7: ='[5]Local 201314'!$CQ$168 -> 18.34 | G7: =ROUND(F7 * (1 + VAT), 2) -> 20.91 | H7: ='[5]Local 201314'!$CR$168 -> 52.85 | I7: =ROUND(H7 * (1 + VAT), 2) -> 60.25
C9: Public Lighting - Urban Fixed | D9: Fixed charge [R/POD/day] | F9: ='[5]Local 201314'!$CS$167 -> 3.88 | G9: =ROUND(F9 * (1 + VAT), 2) -> 4.42
C11: Maintenance charges | F11: R/month
G12: VAT incl
E13: Per lumanaire | F13: ='[5]Local 201314'!$K$370 -> 31.68 | G13: =ROUND(F13 * (1 + VAT), 2) -> 36.12
E14: Per high-mast lumanaire | F14: ='[5]Local 201314'!$K$371 -> 739.86 | G14: =ROUND(F14 * (1 + VAT), 2) -> 843.44

Sheet Landrate inc
B2: Landrate tariffs | L2: Non-local authority | AA2: =SUM(#REF!,#REF!,#REF!,#REF!,#REF!) ->  | AB2: check value
F4: Energy charge [c/kWh] | H4: Reliability service charge [c/kWh] | J4: Network demand charge [c/kWh] | L4: Network access charge [R/POD/day] | N4: Service and administration charge [R/POD/day]
G5: VAT incl | I5: VAT incl | K5: VAT incl | M5: VAT incl | O5: VAT incl
D6: Landrate 1 | F6: ='[5]Non Local 201314'!P417 -> 69.69 | G6: =ROUND(F6 * (1 + VAT), 2) -> 79.45 | H6: ='[5]Non Local 201314'!Y417 -> 0.27 | I6: =ROUND(H6 * (1 + VAT), 2) -> 0.31 | J6: ='[5]Non Local 201314'!AR417 -> 17.41 | K6: =ROUND(J6 * (1 + VAT), 2) -> 19.85 | L6: ='[5]Non Local 201314'!AD417 -> 18.61 | M6: =ROUND(L6 * (1 + VAT), 2) -> 21.22 | N6: ='[5]Non Local 201314'!K417 -> 15.45 | O6: =ROUND(N6 * (1 + VAT), 2) -> 17.61
D7: Landrate 2 | F7: ='[5]Non Local 201314'!P418 -> 69.69 | G7: =ROUND(F7 * (1 + VAT), 2) -> 79.45 | H7: ='[5]Non Local 201314'!Y418 -> 0.27 | I7: =ROUND(H7 * (1 + VAT), 2) -> 0.31 | J7: ='[5]Non Local 201314'!AR418 -> 17.41 | K7: =ROUND(J7 * (1 + VAT), 2) -> 19.85 | L7: ='[5]Non Local 201314'!AD418 -> 28.61 | M7: =ROUND(L7 * (1 + VAT), 2) -> 32.62 | N7: ='[5]Non Local 201314'!K418 -> 15.45 | O7: =ROUND(N7 * (1 + VAT), 2) -> 17.61
D8: Landrate 3 | F8: ='[5]Non Local 201314'!P419 -> 69.69 | G8: =ROUND(F8 * (1 + VAT), 2) -> 79.45 | H8: ='[5]Non Local 201314'!Y419 -> 0.27 | I8: =ROUND(H8 * (1 + VAT), 2) -> 0.31 | J8: ='[5]Non Local 201314'!AR419 -> 17.41 | K8: =ROUND(J8 * (1 + VAT), 2) -> 19.85 | L8: ='[5]Non Local 201314'!AD419 -> 45.74 | M8: =ROUND(L8 * (1 + VAT), 2) -> 52.14 | N8: ='[5]Non Local 201314'!K419 -> 15.45 | O8: =ROUND(N8 * (1 + VAT), 2) -> 17.61
D9: Landrate 4 | F9: ='[5]Non Local 201314'!P420 -> 150.52 | G9: =ROUND(F9 * (1 + VAT), 2) -> 171.59 | H9: ='[5]Non Local 201314'!Y420 -> 0.27 | I9: =ROUND(H9 * (1 + VAT), 2) -> 0.31 | J9: ='[5]Non Local 201314'!AR420 -> 17.41 | K9: =ROUND(J9 * (1 + VAT), 2) -> 19.85 | L9: ='[5]Non Local 201314'!AD420 -> 14.82 | M9: =ROUND(L9 * (1 + VAT), 2) -> 16.89
D10: Landlight | F10: ='[5]Non Local 201314'!$P$422 -> 257.37 | G10: =ROUND(F10 * (1 + VAT), 2) -> 293.4
D11: Landrate Dx | N11: =ROUND('[5]Non Local 201314'!$CH$207, 2) -> 33.15 | O11: =ROUND(N11 * (1 + VAT), 2) -> 37.79

Sheet Landrate Munic inc
B2: Landrate tariffs | M2: Local authority
F4: Energy charge [c/kWh] | H4: Reliability service charge [c/kWh] | J4: Network demand charge [c/kWh] | L4: Network access charge [R/POD/day] | N4: Service and administration charge [R/POD/day]
G5: VAT incl | I5: VAT incl | K5: VAT incl | M5: VAT incl | O5: VAT incl
D6: Landrate 1 | F6: ='[5]Local 201314'!P285 -> 71.35 | G6: =ROUND(F6 * (1 + VAT), 2) -> 81.34 | H6: ='[5]Local 201314'!Y285 -> 0.27 | I6: =ROUND(H6 * (1 + VAT), 2) -> 0.31 | J6: ='[5]Local 201314'!AR285 -> 17.58 | K6: =ROUND(J6 * (1 + VAT), 2) -> 20.04 | L6: ='[5]Local 201314'!AD285 -> 18.78 | M6: =ROUND(L6 * (1 + VAT), 2) -> 21.41 | N6: ='[5]Local 201314'!K285 -> 15.38 | O6: =ROUND(N6 * (1 + VAT), 2) -> 17.53
D7: Landrate 2 | F7: ='[5]Local 201314'!P286 -> 71.35 | G7: =ROUND(F7 * (1 + VAT), 2) -> 81.34 | H7: ='[5]Local 201314'!Y286 -> 0.27 | I7: =ROUND(H7 * (1 + VAT), 2) -> 0.31 | J7: ='[5]Local 201314'!AR286 -> 17.58 | K7: =ROUND(J7 * (1 + VAT), 2) -> 20.04 | L7: ='[5]Local 201314'!AD286 -> 28.87 | M7: =ROUND(L7 * (1 + VAT), 2) -> 32.91 | N7: ='[5]Local 201314'!K286 -> 15.38 | O7: =ROUND(N7 * (1 + VAT), 2) -> 17.53
D8: Landrate 3 | F8: ='[5]Local 201314'!P287 -> 71.35 | G8: =ROUND(F8 * (1 + VAT), 2) -> 81.34 | H8: ='[5]Local 201314'!Y287 -> 0.27 | I8: =ROUND(H8 * (1 + VAT), 2) -> 0.31 | J8: ='[5]Local 201314'!AR287 -> 17.58 | K8: =ROUND(J8 * (1 + VAT), 2) -> 20.04 | L8: ='[5]Local 201314'!AD287 -> 46.17 | M8: =ROUND(L8 * (1 + VAT), 2) -> 52.63 | N8: ='[5]Local 201314'!K287 -> 15.38 | O8: =ROUND(N8 * (1 + VAT), 2) -> 17.53
D9: Landrate 4 | F9: ='[5]Local 201314'!P288 -> 154.1 | G9: =ROUND(F9 * (1 + VAT), 2) -> 175.67 | H9: ='[5]Local 201314'!Y288 -> 0.27 | I9: =ROUND(H9 * (1 + VAT), 2) -> 0.31 | J9: ='[5]Local 201314'!AR288 -> 17.58 | K9: =ROUND(J9 * (1 + VAT), 2) -> 20.04 | L9: ='[5]Local 201314'!AD288 -> 14.96 | M9: =ROUND(L9 * (1 + VAT), 2) -> 17.05
D10: Landrate Dx | N10: =ROUND('[5]Local 201314'!$CL$144, 2) -> 33.28 | O10: =ROUND(N10 * (1 + VAT), 2) -> 37.94

Sheet TOuS
B3: TUoS (> 132 KV or direct Transmission connected) network charge for loads
B6: Electrification and rural network subsidy charge [c/kWh]
D7: Electrification and rural network subsidy charge [c/kWh]
B9: Tariff | E9: VAT incl
B10: Megaflex, Miniflex, Nightsave Urban Large, Nightsave Urban Small, Businessrate
D11: ='Megaflex inc'!C46 -> 5.2 | E11: =ROUND(D11 * (1 + VAT), 2) -> 5.93
B15: Service and admin charges
B16: Utilised capacity/maximum export capacity | D16: Service charge [R/account/day] | F16: Administration charge [R/POD/day]
B19: [kVA = loads]
B20: [kW = generators] | E20: VAT incl | G20: VAT incl
B21: ≤ 100 kVA/kW | D21: ='[5]Non Local 201314'!$K$279 -> 9.49 | E21: =ROUND(D21 * (1 + VAT), 2) -> 10.82 | F21: ='[5]Non Local 201314'!$F$279 -> 2.08 | G21: =ROUND(F21 * (1 + VAT), 2) -> 2.37
B22: > 100 kVA/kW & ≤ 500 kVA/kW | D22: ='[5]Non Local 201314'!$L$279 -> 43.38 | E22: =ROUND(D22 * (1 + VAT), 2) -> 49.45 | F22: ='[5]Non Local 201314'!$G$279 -> 12.16 | G22: =ROUND(F22 * (1 + VAT), 2) -> 13.86
B23: > 500 kVA/kW & ≤ 1 MVA/MW | D23: ='[5]Non Local 201314'!$M$279 -> 133.5 | E23: =ROUND(D23 * (1 + VAT), 2) -> 152.19 | F23: ='[5]Non Local 201314'!$H$279 -> 24.17 | G23: =ROUND(F23 * (1 + VAT), 2) -> 27.55
B24: > 1 MVA/MW | D24: ='[5]Non Local 201314'!$N$279 -> 133.5 | E24: =ROUND(D24 * (1 + VAT), 2) -> 152.19 | F24: ='[5]Non Local 201314'!$I$279 -> 60.17 | G24: =ROUND(F24 * (1 + VAT), 2) -> 68.59
B25: Key customers or Transmission connected generators | D25: ='[5]Non Local 201314'!$O$279 -> 2616.06 | E25: =ROUND(D25 * (1 + VAT), 2) -> 2982.31 | F25: ='[5]Non Local 201314'!$J$279 -> 83.55 | G25: =ROUND(F25 * (1 + VAT), 2) -> 95.25
B28: Transmission loss factors for loads
B29: Distance from Johannesburg | C29: Zone | D29: Loss factor
B30: ≤ 300km | C30: 0 | D30: ='Loss Factors'!I5 -> 1.0107
B31: > 300km & ≤ 600km | C31: 1 | D31: ='Loss Factors'!I6 -> 1.0208
B32: > 600km & ≤ 900km | C32: 2 | D32: ='Loss Factors'!I7 -> 1.031
B33: > 900km | C33: 3 | D33: ='Loss Factors'!I8 -> 1.0413
B36: Loss factors for Transmission connected generators | D36: Loss factor
C38: Cape | D38: 0.971
C39: Karoo | D39: 0.995
C40: Kwazulu-Natal | D40: 1.004
C41: Vaal | D41: 1.02
C42: Waterberg | D42: 1.023
C43: Mpumalanga | D43: 1.021
B46: TUoS [ > 132kV] | D46: Charge [R/kVA]
E47: VAT incl
C48: ≤ 300km | D48: ='Megaflex inc'!Q11 -> 6.58 | E48: =ROUND(D48 * (1 + VAT), 2) -> 7.5
C49: > 300km & ≤ 600km | D49: ='Megaflex inc'!Q15 -> 6.65 | E49: =ROUND(D49 * (1 + VAT), 2) -> 7.58
C50: > 600km & ≤ 900km | D50: ='Megaflex inc'!Q19 -> 6.74 | E50: =ROUND(D50 * (1 + VAT), 2) -> 7.68
C51: > 900km | D51: ='Megaflex inc'!Q23 -> 6.79 | E51: =ROUND(D51 * (1 + VAT), 2) -> 7.74
B54: TUoS network charges for Transmission connected generators | D54: Charge [R/kW]
E55: VAT incl
C56: Cape | D56: ='[6]Gen NC'!C4 -> 0 | E56: =ROUND(D56 * (1 + VAT), 2) -> 0
C57: Karoo | D57: ='[6]Gen NC'!C5 -> 0 | E57: 0
C58: Kwazulu-Natal | D58: ='[6]Gen NC'!C6 -> 1.384247997 | E58: 1.58
C59: Vaal | D59: ='[6]Gen NC'!C7 -> 4.60171998 | E59: 5.25
C60: Waterberg | D60: ='[6]Gen NC'!C8 -> 5.898851129 | E60: 6.72
C61: Mpumalanga | D61: ='[6]Gen NC'!C9 -> 5.459471779 | E61: 6.22
B64: Transmission connected reliability service charge | D64: Charge [c/kWh]
E66: VAT incl
B67: Generators | D67: ='[5]Non Local 201314'!Y250 -> 0.23 | E67: =ROUND(D67 * (1 + VAT), 2) -> 0.26
B68: Loads | D68: ='[5]Non Local 201314'!Y250 -> 0.23 | E68: =ROUND(D68 * (1 + VAT), 2) -> 0.26

Sheet TOuS Original (hidden)
B4: Reliability service charge urban | D4: Charge [c/kWh]
E5: VAT incl
B6: < 500V | D6: ='[5]Non Local 201314'!Y247 -> 0.27 | E6: =ROUND(D6 * (1 + VAT), 2) -> 0.31
B7: ≥ 500V & < 66kV | D7: ='[5]Non Local 201314'!Y248 -> 0.26 | E7: =ROUND(D7 * (1 + VAT), 2) -> 0.3
B8: ≥ 66kV & ≤ 132kV | D8: ='[5]Non Local 201314'!Y249 -> 0.25 | E8: =ROUND(D8 * (1 + VAT), 2) -> 0.29
B9: > 132kV | D9: ='[5]Non Local 201314'!Y250 -> 0.23 | E9: =ROUND(D9 * (1 + VAT), 2) -> 0.26
B12: Reliability service charge rural | D12: Charge [c/kWh]
E13: VAT incl
B14: < 500V | D14: ='[5]Non Local 201314'!Y311 -> 0.27 | E14: =ROUND(D14 * (1 + VAT), 2) -> 0.31
B15: ≥ 500V & ≤ 22kV | D15: ='[5]Non Local 201314'!Y312 -> 0.27 | E15: =ROUND(D15 * (1 + VAT), 2) -> 0.31
C18: Transmission zone | D18: Voltage | E18: R/kVA
F19: VAT incl
B20: ETUoS urban | C20: ≤ 300km | D20: < 500V | E20: ='[7]DUoS and GUoS dx networks'!$G$44 -> 11.36438596 | F20: =ROUND(E20 * (1 + VAT), 2) -> 12.96
D21: ≥ 500V & < 66kV | E21: ='[7]DUoS and GUoS dx networks'!$G$45 -> 11.19400536 | F21: 12.76
D22: ≥ 66kV & ≤ 132kV | E22: ='[7]DUoS and GUoS dx networks'!$G$46 -> 10.8362061 | F22: 12.35
C23: > 300km & ≤ 600km | D23: < 500V | E23: ='[7]DUoS and GUoS dx networks'!$G$48 -> 11.46661432 | F23: 13.07
D24: ≥ 500V & < 66kV | E24: ='[7]DUoS and GUoS dx networks'!$G$49 -> 11.31327178 | F24: 12.9
D25: ≥ 66kV & ≤ 132kV | E25: ='[7]DUoS and GUoS dx networks'!$G$50 -> 10.95547252 | F25: 12.49
C26: > 600km & ≤ 900km | D26: < 500V | E26: ='[7]DUoS and GUoS dx networks'!$G$52 -> 11.58588074 | F26: 13.21
D27: ≥ 500V & < 66kV | E27: ='[7]DUoS and GUoS dx networks'!$G$53 -> 11.4325382 | F27: 13.03
D28: ≥ 66kV & ≤ 132kV | E28: ='[7]DUoS and GUoS dx networks'!$G$54 -> 11.05770088 | F28: 12.61
C29: > 900km | D29: < 500V | E29: ='[7]DUoS and GUoS dx networks'!$G$56 -> 11.70514716 | F29: 13.34
D30: ≥ 500V & < 66kV | E30: ='[7]DUoS and GUoS dx networks'!$G$57 -> 11.55180462 | F30: 13.17
D31: ≥ 66kV & ≤ 132kV | E31: ='[7]DUoS and GUoS dx networks'!$G$58 -> 11.1769673 | F31: 12.74
C34: Transmission zone | D34: Voltage | E34: R/kVA
F35: VAT incl
B36: ETUoS rural | C36: ≤ 300km | D36: < 500V | E36: ='[7]DUoS and GUoS dx networks'!$G$65 -> 11.7732994 | F36: =ROUND(E36 * (1 + VAT), 2) -> 13.42
D37: ≥ 500V & < 66kV | E37: ='[7]DUoS and GUoS dx networks'!$G$66 -> 11.67107104 | F37: 13.31
C38: > 300km & ≤ 600km | D38: < 500V | E38: ='[7]DUoS and GUoS dx networks'!$G$69 -> 11.89256582 | F38: 13.56
D39: ≥ 500V & < 66kV | E39: ='[7]DUoS and GUoS dx networks'!$G$70 -> 11.79033746 | F39: 13.44
C40: > 600km & ≤ 900km | D40: < 500V | E40: ='[7]DUoS and GUoS dx networks'!$G$73 -> 12.01183224 | F40: 13.69
D41: ≥ 500V & < 66kV | E41: ='[7]DUoS and GUoS dx networks'!$G$74 -> 11.90960388 | F41: 13.58
C42: > 900km | D42: < 500V | E42: ='[7]DUoS and GUoS dx networks'!$G$77 -> 12.13109866 | F42: 13.83
D43: ≥ 500V & < 66kV | E43: ='[7]DUoS and GUoS dx networks'!$G$78 -> 12.0288703 | F43: 13.71
B46: Distribution network charges urban
D47: Network access charge [R/kVA/m] | F47: Network demand charge [R/kVA/m] | H47: Urban low voltage subsidy charge [R/kVA/m]
B49: Voltage | E49: VAT incl | G49: VAT incl | I49: VAT incl
B50: < 500V | D50: ='Megaflex inc'!E30 -> 11.63 | E50: =ROUND(D50 * (1 + VAT), 2) -> 13.26 | F50: ='Megaflex inc'!G30 -> 22.05 | G50: =ROUND(F50 * (1 + VAT), 2) -> 25.14 | H50: ='Megaflex inc'!I30 -> 0 | I50: =ROUND(H50 * (1 + VAT), 2) -> 0
B51: ≥ 500V & < 66kV | D51: ='Megaflex inc'!E31 -> 10.67 | E51: =ROUND(D51 * (1 + VAT), 2) -> 12.16 | F51: ='Megaflex inc'!G31 -> 20.23 | G51: =ROUND(F51 * (1 + VAT), 2) -> 23.06 | H51: ='Megaflex inc'!I31 -> 0 | I51: =ROUND(H51 * (1 + VAT), 2) -> 0
B52: ≥ 66kV & ≤ 132kV | D52: ='Megaflex inc'!E32 -> 3.81 | E52: =ROUND(D52 * (1 + VAT), 2) -> 4.34 | F52: ='Megaflex inc'!G32 -> 7.05 | G52: =ROUND(F52 * (1 + VAT), 2) -> 8.04 | H52: ='Megaflex inc'!I32 -> 9.39 | I52: =ROUND(H52 * (1 + VAT), 2) -> 10.7
B53: > 132kV | D53: ='Megaflex inc'!E33 -> 0 | E53: =ROUND(D53 * (1 + VAT), 2) -> 0 | F53: ='Megaflex inc'!G33 -> 0 | G53: =ROUND(F53 * (1 + VAT), 2) -> 0 | H53: ='Megaflex inc'!I33 -> 9.39 | I53: =ROUND(H53 * (1 + VAT), 2) -> 10.7
B56: Distribution network charges rural
D57: Network access charge [R/kVA/m] | F57: Network demand charge [c/kWh]
B59: Voltage | E59: VAT incl | G59: VAT incl
B60: < 500V | D60: ='[7]DUoS and GUoS dx networks'!$F$31 -> 6.201664795 | E60: =ROUND(D60 * (1 + VAT), 2) -> 7.07 | F60: ='[7]DUoS and GUoS dx networks'!$F$38 -> 19.67324725 | G60: =ROUND(F60 * (1 + VAT), 2) -> 22.43
B61: ≥ 500V & ≤ 22kV | D61: ='[7]DUoS and GUoS dx networks'!$F$32 -> 2.297555913 | E61: =ROUND(D61 * (1 + VAT), 2) -> 2.62 | F61: ='[7]DUoS and GUoS dx networks'!$F$39 -> 17.23886725 | G61: =ROUND(F61 * (1 + VAT), 2) -> 19.65
B64: Distribution network charges for Generators
D65: Network access charge [R/MW/m]
B67: Voltage | E67: VAT incl
B68: < 500V
B69: ≥ 500V & < 66kV
B70: ≥ 66kV & ≤ 132kV | D70: ='[5]Non Local 201314'!$AA$497 -> 9.4 | E70: =ROUND(D70 * (1 + VAT), 2) -> 10.72
B73: Electrification and rural network subsidy charge [c/kWh]
D74: Rural network subsidy charge [c/kWh] | F74: Electrification networks subsidy charge [c/kWh] | H74: Total electrification and rural network subsidy charge [c/kWh]
B76: Tariff | E76: VAT incl | G76: VAT incl | I76: VAT incl
B77: Megaflex, Miniflex, Nightsave Urban Large, Nightsave Urban Small, Businessrate
D78: 2.68 | E78: =ROUND(D78 * (1 + VAT), 2) -> 3.06 | F78: 0.91 | G78: =ROUND(F78 * (1 + VAT), 2) -> 1.04 | H78: 3.59 | I78: =ROUND(H78 * (1 + VAT), 2) -> 4.09
B83: Service and admin charges
B84: Customer categories | D84: Service charge [R/account/day] | F84: Administration charge [R/POD/day]
E86: VAT incl | G86: VAT incl
B87: ≤ 100 kVA | D87: ='[5]Non Local 201314'!$K$279 -> 9.49 | E87: =ROUND(D87 * (1 + VAT), 2) -> 10.82 | F87: ='[5]Non Local 201314'!$F$279 -> 2.08 | G87: =ROUND(F87 * (1 + VAT), 2) -> 2.37
B88: > 100 kVA & ≤ 500 kVA | D88: ='[5]Non Local 201314'!$L$279 -> 43.38 | E88: =ROUND(D88 * (1 + VAT), 2) -> 49.45 | F88: ='[5]Non Local 201314'!$G$279 -> 12.16 | G88: =ROUND(F88 * (1 + VAT), 2) -> 13.86
B89: > 500 kVA & ≤ 1 MVA | D89: ='[5]Non Local 201314'!$M$279 -> 133.5 | E89: =ROUND(D89 * (1 + VAT), 2) -> 152.19 | F89: ='[5]Non Local 201314'!$H$279 -> 24.17 | G89: =ROUND(F89 * (1 + VAT), 2) -> 27.55
B90: > 1 MVA | D90: ='[5]Non Local 201314'!$N$279 -> 133.5 | E90: =ROUND(D90 * (1 + VAT), 2) -> 152.19 | F90: ='[5]Non Local 201314'!$I$279 -> 60.17 | G90: =ROUND(F90 * (1 + VAT), 2) -> 68.59
B91: Key customers | D91: ='[5]Non Local 201314'!$O$279 -> 2616.06 | E91: =ROUND(D91 * (1 + VAT), 2) -> 2982.31 | F91: ='[5]Non Local 201314'!$J$279 -> 83.55 | G91: =ROUND(F91 * (1 + VAT), 2) -> 95.25
B94: Distribution loss factors | F94: Transmission loss factors for loads
B95: Voltage | C95: Urban loss factor | D95: Rural loss factor | F95: Distance from Johannesburg | G95: Zone | H95: Loss factor
B96: < 500V | C96: ='Loss Factors'!D5 -> 1.1111 | D96: ='Loss Factors'!E5 -> 1.1527 | F96: 0 to 300 km | G96: 0 | H96: ='Loss Factors'!I5 -> 1.0107
B97: ≥ 500V & < 66kV | C97: ='Loss Factors'!D6 -> 1.0957 | D97: ='Loss Factors'!E6 -> 1.1412 | F97: 301 to 600 km | G97: 1 | H97: ='Loss Factors'!I6 -> 1.0208
B98: ≥ 66kV & ≤ 132kV | C98: ='Loss Factors'!D7 -> 1.0611 | F98: 601 to 900 km | G98: 2 | H98: ='Loss Factors'!I7 -> 1.031
B99: > 132kV | C99: ='Loss Factors'!D8 -> 1 | F99: > 900 km | G99: 3 | H99: ='Loss Factors'!I8 -> 1.0413
K104: TUoS [ > 132kV] | M104: Charge R/kVA
N105: VAT incl
L106: ≤ 300km | M106: ='Megaflex inc'!Q11 -> 6.58 | N106: =ROUND(M106 * (1 + VAT), 2) -> 7.5
L107: > 300km & ≤ 600km | M107: ='Megaflex inc'!Q15 -> 6.65 | N107: =ROUND(M107 * (1 + VAT), 2) -> 7.58
L108: > 600km & ≤ 900km | M108: ='Megaflex inc'!Q19 -> 6.74 | N108: =ROUND(M108 * (1 + VAT), 2) -> 7.68
L109: > 900km | M109: ='Megaflex inc'!Q23 -> 6.79 | N109: =ROUND(M109 * (1 + VAT), 2) -> 7.74

Sheet DUoS
B4: DUoS
B7: Reliability service charge Urbanp | D7: Charge [c/kWh]
E8: VAT incl
B9: < 500V | D9: ='[5]Non Local 201314'!Y247 -> 0.27 | E9: =ROUND(D9 * (1 + VAT), 2) -> 0.31
B10: ≥ 500V & < 66kV | D10: ='[5]Non Local 201314'!Y248 -> 0.26 | E10: =ROUND(D10 * (1 + VAT), 2) -> 0.3
B11: ≥ 66kV & ≤ 132kV | D11: ='[5]Non Local 201314'!Y249 -> 0.25 | E11: =ROUND(D11 * (1 + VAT), 2) -> 0.29
B15: Reliability service charge Ruralp | D15: Charge [c/kWh]
E16: VAT incl
B17: < 500V | D17: ='[5]Non Local 201314'!Y311 -> 0.27 | E17: =ROUND(D17 * (1 + VAT), 2) -> 0.31
B18: ≥ 500V & ≤ 22kV | D18: ='[5]Non Local 201314'!Y312 -> 0.27 | E18: =ROUND(D18 * (1 + VAT), 2) -> 0.31
C21: Transmission zone | D21: Voltage | E21: [R/kVA]
F22: VAT incl
B23: ETUoS urban | C23: ≤ 300km | D23: < 500V | E23: ='WEPS inc'!Q8 -> 5.85 | F23: =ROUND(E23 * (1 + VAT), 2) -> 6.67
D24: ≥ 500V & < 66kV | E24: ='WEPS inc'!Q9 -> 5.35 | F24: 6.1
D25: ≥ 66kV & ≤ 132kV | E25: ='WEPS inc'!Q10 -> 5.21 | F25: 5.94
C26: > 300km & ≤ 600km | D26: < 500V | E26: ='WEPS inc'!Q12 -> 5.9 | F26: 6.73
D27: ≥ 500V & < 66kV | E27: ='WEPS inc'!Q13 -> 5.4 | F27: 6.16
D28: ≥ 66kV & ≤ 132kV | E28: ='WEPS inc'!Q14 -> 5.25 | F28: 5.99
C29: > 600km & ≤ 900km | D29: < 500V | E29: ='WEPS inc'!Q16 -> 5.97 | F29: 6.81
D30: ≥ 500V & < 66kV | E30: ='WEPS inc'!Q17 -> 5.44 | F30: 6.2
D31: ≥ 66kV & ≤ 132kV | E31: ='WEPS inc'!Q18 -> 5.29 | F31: 6.03
C32: > 900km | D32: < 500V | E32: ='WEPS inc'!Q20 -> 5.99 | F32: 6.83
D33: ≥ 500V & < 66kV | E33: ='WEPS inc'!Q21 -> 5.51 | F33: 6.28
D34: ≥ 66kV & ≤ 132kV | E34: ='WEPS inc'!Q22 -> 5.32 | F34: 6.06
C37: Transmission zone | D37: Voltage | E37: [R/kVA]
F38: VAT incl
B39: ETUoS rural | C39: ≤ 300km | D39: < 500V | E39: ='Ruraflex inc'!Q8 -> 12.22 | F39: =ROUND(E39 * (1 + VAT), 2) -> 13.93
D40: ≥ 500V & < 66kV | E40: ='Ruraflex inc'!Q9 -> 11.2 | F40: 12.77
C41: > 300km & ≤ 600km | D41: < 500V | E41: ='Ruraflex inc'!Q12 -> 12.27 | F41: 13.99
D42: ≥ 500V & < 66kV | E42: ='Ruraflex inc'!Q13 -> 11.28 | F42: 12.86
C43: > 600km & ≤ 900km | D43: < 500V | E43: ='Ruraflex inc'!Q16 -> 12.33 | F43: 14.06
D44: ≥ 500V & < 66kV | E44: ='Ruraflex inc'!Q17 -> 11.32 | F44: 12.9
C45: > 900km | D45: < 500V | E45: ='Ruraflex inc'!Q20 -> 12.38 | F45: 14.11
D46: ≥ 500V & < 66kV | E46: ='Ruraflex inc'!Q21 -> 11.33 | F46: 12.92
B49: Distribution network charges urban
D50: Network access charge [R/kVA/m] | F50: Network demand charge [R/kVA/m] | H50: Urban low voltage subsidy charge [R/kVA/m]
B52: Voltage | E52: VAT incl | G52: VAT incl | I52: VAT incl
B53: < 500V | D53: ='Megaflex inc'!E30 -> 11.63 | E53: =ROUND(D53 * (1 + VAT), 2) -> 13.26 | F53: ='Megaflex inc'!G30 -> 22.05 | G53: =ROUND(F53 * (1 + VAT), 2) -> 25.14 | H53: ='Megaflex inc'!I30 -> 0 | I53: =ROUND(H53 * (1 + VAT), 2) -> 0
B54: ≥ 500V & < 66kV | D54: ='Megaflex inc'!E31 -> 10.67 | E54: =ROUND(D54 * (1 + VAT), 2) -> 12.16 | F54: ='Megaflex inc'!G31 -> 20.23 | G54: =ROUND(F54 * (1 + VAT), 2) -> 23.06 | H54: ='Megaflex inc'!I31 -> 0 | I54: =ROUND(H54 * (1 + VAT), 2) -> 0
B55: ≥ 66kV & ≤ 132kV | D55: ='Megaflex inc'!E32 -> 3.81 | E55: =ROUND(D55 * (1 + VAT), 2) -> 4.34 | F55: ='Megaflex inc'!G32 -> 7.05 | G55: =ROUND(F55 * (1 + VAT), 2) -> 8.04 | H55: ='Megaflex inc'!I32 -> 9.39 | I55: =ROUND(H55 * (1 + VAT), 2) -> 10.7
B56: > 132kV / Transmission connected | D56: ='Megaflex inc'!E33 -> 0 | E56: =ROUND(D56 * (1 + VAT), 2) -> 0 | F56: ='Megaflex inc'!G33 -> 0 | G56: =ROUND(F56 * (1 + VAT), 2) -> 0 | H56: ='Megaflex inc'!I33 -> 9.39 | I56: =ROUND(H56 * (1 + VAT), 2) -> 10.7
B59: Distribution network charges rural
D60: Network access charge [R/kVA/m] | F60: Network demand charge [c/kWh]
B62: Voltage | E62: VAT incl | G62: VAT incl
B63: < 500V | D63: ='Ruraflex inc'!Q8 -> 12.22 | E63: =ROUND(D63 * (1 + VAT), 2) -> 13.93 | F63: ='Ruraflex inc'!N28 -> 17.41 | G63: =ROUND(F63 * (1 + VAT), 2) -> 19.85
B64: ≥ 500V & ≤ 22kV | D64: ='Ruraflex inc'!Q9 -> 11.2 | E64: =ROUND(D64 * (1 + VAT), 2) -> 12.77 | F64: ='Ruraflex inc'!N29 -> 15.26 | G64: =ROUND(F64 * (1 + VAT), 2) -> 17.4
B67: Distribution network charges for Generators
D68: Network access charge [R/kW/m]
B70: Voltage | E70: VAT incl
B71: < 500V
B72: ≥ 500V & < 66kV
B73: ≥ 66kV & ≤ 132kV | D73: ='[5]Non Local 201314'!$AA$497 -> 9.4 | E73: =ROUND(D73 * (1 + VAT), 2) -> 10.72
B76: Electrification and rural network subsidy charge [c/kWh] | L76: Electrification and rural network subsidy charge [c/kWh]
D77: Rural network subsidy charge [c/kWh] | F77: Electrification networks subsidy charge [c/kWh] | H77: Electrification and rural network subsidy charge [c/kWh] | N77: Total electrification and rural network subsidy charge [c/kWh]
B79: Tariff | E79: VAT incl | G79: VAT incl | I79: VAT incl | L79: Tariff | O79: VAT incl
B80: Megaflex, Miniflex, Nightsave Urban Large, Nightsave Urban Small, Businessrate | L80: Megaflex, Miniflex, Nightsave Urban Large, Nightsave Urban Small, Businessrate
D81: ='[5]Non Local 201314'!$AM$247 -> 3.45 | E81: =ROUND(D81 * (1 + VAT), 2) -> 3.93 | F81: ='[5]Non Local 201314'!$AO$247 -> 1.75 | G81: =ROUND(F81 * (1 + VAT), 2) -> 2 | H81: =SUM(D81, F81) -> 5.2 | I81: =ROUND(H81 * (1 + VAT), 2) -> 5.93 | N81: =H81 -> 5.2 | O81: =ROUND(N81 * (1 + VAT), 2) -> 5.93
B86: Service and admin charges
B87: Utilised capacity/maximum export capacity | D87: Service charge [R/account/day] | F87: Administration charge [R/POD/day]
B90: [kVA /MVA = loads]
B91: [kW /MW = generators] | E91: VAT incl | G91: VAT incl
B92: ≤ 100 kVA/kW | D92: ='[5]Non Local 201314'!$K$279 -> 9.49 | E92: =ROUND(D92 * (1 + VAT), 2) -> 10.82 | F92: ='[5]Non Local 201314'!$F$279 -> 2.08 | G92: =ROUND(F92 * (1 + VAT), 2) -> 2.37
B93: > 100 kVA/kW & ≤ 500 kVA/kW | D93: ='[5]Non Local 201314'!$L$279 -> 43.38 | E93: =ROUND(D93 * (1 + VAT), 2) -> 49.45 | F93: ='[5]Non Local 201314'!$G$279 -> 12.16 | G93: =ROUND(F93 * (1 + VAT), 2) -> 13.86
B94: > 500 kVA/kW & ≤ 1 MVA/MW | D94: ='[5]Non Local 201314'!$M$279 -> 133.5 | E94: =ROUND(D94 * (1 + VAT), 2) -> 152.19 | F94: ='[5]Non Local 201314'!$H$279 -> 24.17 | G94: =ROUND(F94 * (1 + VAT), 2) -> 27.55
B95: > 1 MVA/MW | D95: ='[5]Non Local 201314'!$N$279 -> 133.5 | E95: =ROUND(D95 * (1 + VAT), 2) -> 152.19 | F95: ='[5]Non Local 201314'!$I$279 -> 60.17 | G95: =ROUND(F95 * (1 + VAT), 2) -> 68.59
B96: Key customers or Transmission connected generators | D96: ='[5]Non Local 201314'!$O$279 -> 2616.06 | E96: =ROUND(D96 * (1 + VAT), 2) -> 2982.31 | F96: ='[5]Non Local 201314'!$J$279 -> 83.55 | G96: =ROUND(F96 * (1 + VAT), 2) -> 95.25
B99: Distribution loss factors | F99: Transmission loss factors for loads
B100: Voltage | C100: Urban loss factor | D100: Rural loss factor | F100: Distance from Johannesburg | G100: Zone | H100: Loss factor
B101: < 500V | C101: ='Loss Factors'!D5 -> 1.1111 | D101: ='Loss Factors'!E5 -> 1.1527 | F101: ≤ 300km | G101: 0 | H101: ='Loss Factors'!I5 -> 1.0107
B102: ≥ 500V & < 66kV | C102: ='Loss Factors'!D6 -> 1.0957 | D102: ='Loss Factors'!E6 -> 1.1412 | F102: > 300km & ≤ 600km | G102: 1 | H102: ='Loss Factors'!I6 -> 1.0208
B103: ≥ 66kV & ≤ 132kV | C103: ='Loss Factors'!D7 -> 1.0611 | F103: > 600km & ≤ 900km | G103: 2 | H103: ='Loss Factors'!I7 -> 1.031
B104: > 132kV / Transmission connected | C104: ='Loss Factors'!D8 -> 1 | F104: > 900km | G104: 3 | H104: ='Loss Factors'!I8 -> 1.0413

Sheet Excess NAC
B2: Urban - Excess NAC Megaflex [non local authorities] | H2: Urban - Excess NAC Nightsave Urban Large [non local authorities] | N2: Urban - Excess NAC Miniflex [non local authorities]
E4: Excess network charge [R/kVA/m] | K4: Excess network charge [R/kVA/m] | Q4: Excess network charge [R/kVA/m]
C5: Transmission zone | I5: Transmission zone | O5: Transmission zone
D6: Voltage | J6: Voltage | P6: Voltage
F7: VAT incl | L7: VAT incl | R7: VAT incl
C8: ≤ 300km | D8: < 500V | E8: ='[5]Non Local 201314'!Z562 -> 17.48 | F8: =ROUND(E8 * (1 + VAT), 2) -> 19.93 | I8: ≤ 300km | J8: < 500V | K8: ='[5]Non Local 201314'!Z578 -> 17.48 | L8: =ROUND(K8 * (1 + VAT), 2) -> 19.93 | O8: ≤ 300km | P8: < 500V | Q8: ='[5]Non Local 201314'!Z594 -> 17.46 | R8: =ROUND(Q8 * (1 + VAT), 2) -> 19.9
D9: ≥ 500V & < 66kV | E9: ='[5]Non Local 201314'!Z563 -> 16.02 | F9: 18.26 | J9: ≥ 500V & < 66kV | K9: ='[5]Non Local 201314'!Z579 -> 16.02 | L9: 18.26 | P9: ≥ 500V & < 66kV | Q9: ='[5]Non Local 201314'!Z595 -> 16 | R9: 18.24
D10: ≥ 66kV & ≤ 132kV | E10: ='[5]Non Local 201314'!Z564 -> 18.41 | F10: 20.99 | J10: ≥ 66kV & ≤ 132kV | K10: ='[5]Non Local 201314'!Z580 -> 18.41 | L10: 20.99 | P10: ≥ 66kV & ≤ 132kV | Q10: ='[5]Non Local 201314'!Z596 -> 18.38 | R10: 20.95
D11: > 132kV* | E11: ='[5]Non Local 201314'!Z565 -> 15.97 | F11: 18.21 | J11: > 132kV* | K11: ='[5]Non Local 201314'!Z581 -> 15.97 | L11: 18.21 | P11: > 132kV* | Q11: ='[5]Non Local 201314'!Z597 -> 15.94 | R11: 18.17
C12: > 300km and ≤ 600km | D12: < 500V | E12: ='[5]Non Local 201314'!Z566 -> 17.53 | F12: 19.98 | I12: > 300km and ≤ 600km | J12: < 500V | K12: ='[5]Non Local 201314'!Z582 -> 17.53 | L12: 19.98 | O12: > 300km and ≤ 600km | P12: < 500V | Q12: ='[5]Non Local 201314'!Z598 -> 17.5 | R12: 19.95
D13: ≥ 500V & < 66kV | E13: ='[5]Non Local 201314'!Z567 -> 16.07 | F13: 18.32 | J13: ≥ 500V & < 66kV | K13: ='[5]Non Local 201314'!Z583 -> 16.07 | L13: 18.32 | P13: ≥ 500V & < 66kV | Q13: ='[5]Non Local 201314'!Z599 -> 16.05 | R13: 18.3
D14: ≥ 66kV & ≤ 132kV | E14: ='[5]Non Local 201314'!Z568 -> 18.45 | F14: 21.03 | J14: ≥ 66kV & ≤ 132kV | K14: ='[5]Non Local 201314'!Z584 -> 18.45 | L14: 21.03 | P14: ≥ 66kV & ≤ 132kV | Q14: ='[5]Non Local 201314'!Z600 -> 18.42 | R14: 21
D15: > 132kV* | E15: ='[5]Non Local 201314'!Z569 -> 16.04 | F15: 18.29 | J15: > 132kV* | K15: ='[5]Non Local 201314'!Z585 -> 16.04 | L15: 18.29 | P15: > 132kV* | Q15: ='[5]Non Local 201314'!Z601 -> 16.01 | R15: 18.25
C16: > 600km and ≤ 900km | D16: < 500V | E16: ='[5]Non Local 201314'!Z570 -> 17.6 | F16: 20.06 | I16: > 600km and ≤ 900km | J16: < 500V | K16: ='[5]Non Local 201314'!Z586 -> 17.6 | L16: 20.06 | O16: > 600km and ≤ 900km | P16: < 500V | Q16: ='[5]Non Local 201314'!Z602 -> 17.58 | R16: 20.04
D17: ≥ 500V & < 66kV | E17: ='[5]Non Local 201314'!Z571 -> 16.11 | F17: 18.37 | J17: ≥ 500V & < 66kV | K17: ='[5]Non Local 201314'!Z587 -> 16.11 | L17: 18.37 | P17: ≥ 500V & < 66kV | Q17: ='[5]Non Local 201314'!Z603 -> 16.09 | R17: 18.34
D18: ≥ 66kV & ≤ 132kV | E18: ='[5]Non Local 201314'!Z572 -> 18.49 | F18: 21.08 | J18: ≥ 66kV & ≤ 132kV | K18: ='[5]Non Local 201314'!Z588 -> 18.49 | L18: 21.08 | P18: ≥ 66kV & ≤ 132kV | Q18: ='[5]Non Local 201314'!Z604 -> 18.46 | R18: 21.04
D19: > 132kV* | E19: ='[5]Non Local 201314'!Z573 -> 16.13 | F19: 18.39 | J19: > 132kV* | K19: ='[5]Non Local 201314'!Z589 -> 16.13 | L19: 18.39 | P19: > 132kV* | Q19: ='[5]Non Local 201314'!Z605 -> 16.1 | R19: 18.35
C20: > 900km | D20: < 500V | E20: ='[5]Non Local 201314'!Z574 -> 17.62 | F20: 20.09 | I20: > 900km | J20: < 500V | K20: ='[5]Non Local 201314'!Z590 -> 17.62 | L20: 20.09 | O20: > 900km | P20: < 500V | Q20: ='[5]Non Local 201314'!Z606 -> 17.6 | R20: 20.06
D21: ≥ 500V & < 66kV | E21: ='[5]Non Local 201314'!Z575 -> 16.18 | F21: 18.45 | J21: ≥ 500V & < 66kV | K21: ='[5]Non Local 201314'!Z591 -> 16.18 | L21: 18.45 | P21: ≥ 500V & < 66kV | Q21: ='[5]Non Local 201314'!Z607 -> 16.16 | R21: 18.42
D22: ≥ 66kV & ≤ 132kV | E22: ='[5]Non Local 201314'!Z576 -> 18.52 | F22: 21.11 | J22: ≥ 66kV & ≤ 132kV | K22: ='[5]Non Local 201314'!Z592 -> 18.52 | L22: 21.11 | P22: ≥ 66kV & ≤ 132kV | Q22: ='[5]Non Local 201314'!Z608 -> 18.5 | R22: 21.09
D23: > 132kV* | E23: ='[5]Non Local 201314'!Z577 -> 16.18 | F23: 18.45 | J23: > 132kV* | K23: ='[5]Non Local 201314'!Z593 -> 16.18 | L23: 18.45 | P23: > 132kV* | Q23: ='[5]Non Local 201314'!Z609 -> 16.15 | R23: 18.41
D24: * 132 kV or Transmission connected | J24: * 132 kV or Transmission connected | P24: * 132 kV or Transmission connected
B25: Urban - Excess NAC Nightsave Urban Small [non local authorities] | H25: Rural - Excess NAC Nightsave Rural [non local authorities] | N25: Rural - Excess NAC Ruraflex [non local authorities]
E27: Excess network charge [R/kVA/m] | K27: Excess network charge [R/kVA/m] | Q27: Excess network charge [R/kVA/m]
C28: Transmission zone | I28: Transmission zone | O28: Transmission zone
D29: Voltage | J29: Voltage | P29: Voltage
F30: VAT incl | L30: VAT incl | R30: VAT incl
C31: ≤ 300km | D31: < 500V | E31: ='[5]Non Local 201314'!Z610 -> 17.48 | F31: =ROUND(E31 * (1 + VAT), 2) -> 19.93 | I31: ≤ 300km | J31: < 500V | K31: ='[5]Non Local 201314'!Z642 -> 8.75 | L31: =ROUND(K31 * (1 + VAT), 2) -> 9.98 | O31: ≤ 300km | P31: < 500V | Q31: ='[5]Non Local 201314'!Z626 -> 12.22 | R31: =ROUND(Q31 * (1 + VAT), 2) -> 13.93
D32: ≥ 500V & < 66kV | E32: ='[5]Non Local 201314'!Z611 -> 16.02 | F32: 18.26 | J32: ≥ 500V & ≤ 22kV | K32: ='[5]Non Local 201314'!Z643 -> 8.04 | L32: 9.17 | P32: ≥ 500V & ≤ 22kV | Q32: ='[5]Non Local 201314'!Z627 -> 11.2 | R32: 12.77
D33: ≥ 66kV & ≤ 132kV | E33: ='[5]Non Local 201314'!Z612 -> 18.41 | F33: 20.99
D34: > 132kV* | E34: ='[5]Non Local 201314'!Z613 -> 15.97 | F34: 18.21
C35: > 300km and ≤ 600km | D35: < 500V | E35: ='[5]Non Local 201314'!Z614 -> 17.53 | F35: 19.98 | I35: > 300km and ≤ 600km | J35: < 500V | K35: ='[5]Non Local 201314'!Z646 -> 8.78 | L35: =ROUND(K35 * (1 + VAT), 2) -> 10.01 | O35: > 300km and ≤ 600km | P35: < 500V | Q35: ='[5]Non Local 201314'!Z630 -> 12.27 | R35: =ROUND(Q35 * (1 + VAT), 2) -> 13.99
D36: ≥ 500V & < 66kV | E36: ='[5]Non Local 201314'!Z615 -> 16.07 | F36: 18.32 | J36: ≥ 500V & ≤ 22kV | K36: ='[5]Non Local 201314'!Z647 -> 8.07 | L36: 9.2 | P36: ≥ 500V & ≤ 22kV | Q36: ='[5]Non Local 201314'!Z631 -> 11.28 | R36: 12.86
D37: ≥ 66kV & ≤ 132kV | E37: ='[5]Non Local 201314'!Z616 -> 18.45 | F37: 21.03
D38: > 132kV* | E38: ='[5]Non Local 201314'!Z617 -> 16.04 | F38: 18.29
C39: > 600km and ≤ 900km | D39: < 500V | E39: ='[5]Non Local 201314'!Z618 -> 17.6 | F39: 20.06 | I39: > 600km and ≤ 900km | J39: < 500V | K39: ='[5]Non Local 201314'!Z650 -> 8.86 | L39: =ROUND(K39 * (1 + VAT), 2) -> 10.1 | O39: > 600km and ≤ 900km | P39: < 500V | Q39: ='[5]Non Local 201314'!Z634 -> 12.33 | R39: =ROUND(Q39 * (1 + VAT), 2) -> 14.06
D40: ≥ 500V & < 66kV | E40: ='[5]Non Local 201314'!Z619 -> 16.11 | F40: 18.37 | J40: ≥ 500V & ≤ 22kV | K40: ='[5]Non Local 201314'!Z651 -> 8.13 | L40: 9.27 | P40: ≥ 500V & ≤ 22kV | Q40: ='[5]Non Local 201314'!Z635 -> 11.32 | R40: 12.9
D41: ≥ 66kV & ≤ 132kV | E41: ='[5]Non Local 201314'!Z620 -> 18.49 | F41: 21.08
D42: > 132kV* | E42: ='[5]Non Local 201314'!Z621 -> 16.13 | F42: 18.39
C43: > 900km | D43: < 500V | E43: ='[5]Non Local 201314'!Z622 -> 17.62 | F43: 20.09 | I43: > 900km | J43: < 500V | K43: ='[5]Non Local 201314'!Z654 -> 8.87 | L43: =ROUND(K43 * (1 + VAT), 2) -> 10.11 | O43: > 900km | P43: < 500V | Q43: ='[5]Non Local 201314'!Z638 -> 12.38 | R43: =ROUND(Q43 * (1 + VAT), 2) -> 14.11
D44: ≥ 500V & < 66kV | E44: ='[5]Non Local 201314'!Z623 -> 16.18 | F44: 18.45 | J44: ≥ 500V & ≤ 22kV | K44: ='[5]Non Local 201314'!Z655 -> 8.14 | L44: 9.28 | P44: ≥ 500V & ≤ 22kV | Q44: ='[5]Non Local 201314'!Z639 -> 11.33 | R44: 12.92
D45: ≥ 66kV & ≤ 132kV | E45: ='[5]Non Local 201314'!Z624 -> 18.52 | F45: 21.11
D46: > 132kV* | E46: ='[5]Non Local 201314'!Z625 -> 16.18 | F46: 18.45
D47: * 132 kV or Transmission connected

Sheet Excess NAC munic
B2: Urban - Excess NAC Megaflex [local authorities] | H2: Urban - Excess NAC Nightsave Urban Large [local authorities] | N2: Urban - Excess NAC Miniflex [local authorities]
E4: Excess network charge [R/kVA/m] | K4: Excess network charge [R/kVA/m] | Q4: Excess network charge [R/kVA/m]
C5: Transmission zone | I5: Transmission zone | O5: Transmission zone
D6: Voltage | J6: Voltage | P6: Voltage
F7: VAT incl | L7: VAT incl | R7: VAT incl
C8: ≤ 300km | D8: < 500V | E8: ='[5]Local 201314'!Z438 -> 17.46 | F8: =ROUND(E8 * (1 + VAT), 2) -> 19.9 | I8: ≤ 300km | J8: < 500V | K8: ='[5]Local 201314'!Z454 -> 17.46 | L8: =ROUND(K8 * (1 + VAT), 2) -> 19.9 | O8: ≤ 300km | P8: < 500V | Q8: ='[5]Local 201314'!Z470 -> 17.46 | R8: =ROUND(Q8 * (1 + VAT), 2) -> 19.9
D9: ≥ 500V & < 66kV | E9: ='[5]Local 201314'!Z439 -> 15.99 | F9: 18.23 | J9: ≥ 500V & < 66kV | K9: ='[5]Local 201314'!Z455 -> 15.99 | L9: 18.23 | P9: ≥ 500V & < 66kV | Q9: ='[5]Local 201314'!Z471 -> 16 | R9: 18.24
D10: ≥ 66kV & ≤ 132kV | E10: ='[5]Local 201314'!Z440 -> 18.38 | F10: 20.95 | J10: ≥ 66kV & ≤ 132kV | K10: ='[5]Local 201314'!Z456 -> 18.38 | L10: 20.95 | P10: ≥ 66kV & ≤ 132kV | Q10: ='[5]Local 201314'!Z472 -> 18.33 | R10: 20.9
D11: > 132kV* | E11: ='[5]Local 201314'!Z441 -> 15.94 | F11: 18.17 | J11: > 132kV* | K11: ='[5]Local 201314'!Z457 -> 15.94 | L11: 18.17 | P11: > 132kV* | Q11: ='[5]Local 201314'!Z473 -> 15.89 | R11: 18.11
C12: > 300km and ≤ 600km | D12: < 500V | E12: ='[5]Local 201314'!Z442 -> 17.5 | F12: 19.95 | I12: > 300km and ≤ 600km | J12: < 500V | K12: ='[5]Local 201314'!Z458 -> 17.5 | L12: 19.95 | O12: > 300km and ≤ 600km | P12: < 500V | Q12: ='[5]Local 201314'!Z474 -> 17.5 | R12: 19.95
D13: ≥ 500V & < 66kV | E13: ='[5]Local 201314'!Z443 -> 16.05 | F13: 18.3 | J13: ≥ 500V & < 66kV | K13: ='[5]Local 201314'!Z459 -> 16.05 | L13: 18.3 | P13: ≥ 500V & < 66kV | Q13: ='[5]Local 201314'!Z475 -> 16.05 | R13: 18.3
D14: ≥ 66kV & ≤ 132kV | E14: ='[5]Local 201314'!Z444 -> 18.42 | F14: 21 | J14: ≥ 66kV & ≤ 132kV | K14: ='[5]Local 201314'!Z460 -> 18.42 | L14: 21 | P14: ≥ 66kV & ≤ 132kV | Q14: ='[5]Local 201314'!Z476 -> 18.37 | R14: 20.94
D15: > 132kV* | E15: ='[5]Local 201314'!Z445 -> 16.01 | F15: 18.25 | J15: > 132kV* | K15: ='[5]Local 201314'!Z461 -> 16.01 | L15: 18.25 | P15: > 132kV* | Q15: ='[5]Local 201314'!Z477 -> 15.96 | R15: 18.19
C16: > 600km and ≤ 900km | D16: < 500V | E16: ='[5]Local 201314'!Z446 -> 17.57 | F16: 20.03 | I16: > 600km and ≤ 900km | J16: < 500V | K16: ='[5]Local 201314'!Z462 -> 17.57 | L16: 20.03 | O16: > 600km and ≤ 900km | P16: < 500V | Q16: ='[5]Local 201314'!Z478 -> 17.58 | R16: 20.04
D17: ≥ 500V & < 66kV | E17: ='[5]Local 201314'!Z447 -> 16.09 | F17: 18.34 | J17: ≥ 500V & < 66kV | K17: ='[5]Local 201314'!Z463 -> 16.09 | L17: 18.34 | P17: ≥ 500V & < 66kV | Q17: ='[5]Local 201314'!Z479 -> 16.09 | R17: 18.34
D18: ≥ 66kV & ≤ 132kV | E18: ='[5]Local 201314'!Z448 -> 18.47 | F18: 21.06 | J18: ≥ 66kV & ≤ 132kV | K18: ='[5]Local 201314'!Z464 -> 18.47 | L18: 21.06 | P18: ≥ 66kV & ≤ 132kV | Q18: ='[5]Local 201314'!Z480 -> 18.41 | R18: 20.99
D19: > 132kV* | E19: ='[5]Local 201314'!Z449 -> 16.1 | F19: 18.35 | J19: > 132kV* | K19: ='[5]Local 201314'!Z465 -> 16.1 | L19: 18.35 | P19: > 132kV* | Q19: ='[5]Local 201314'!Z481 -> 16.05 | R19: 18.3
C20: > 900km | D20: < 500V | E20: ='[5]Local 201314'!Z450 -> 17.6 | F20: 20.06 | I20: > 900km | J20: < 500V | K20: ='[5]Local 201314'!Z466 -> 17.6 | L20: 20.06 | O20: > 900km | P20: < 500V | Q20: ='[5]Local 201314'!Z482 -> 17.6 | R20: 20.06
D21: ≥ 500V & < 66kV | E21: ='[5]Local 201314'!Z451 -> 16.15 | F21: 18.41 | J21: ≥ 500V & < 66kV | K21: ='[5]Local 201314'!Z467 -> 16.15 | L21: 18.41 | P21: ≥ 500V & < 66kV | Q21: ='[5]Local 201314'!Z483 -> 16.16 | R21: 18.42
D22: ≥ 66kV & ≤ 132kV | E22: ='[5]Local 201314'!Z452 -> 18.5 | F22: 21.09 | J22: ≥ 66kV & ≤ 132kV | K22: ='[5]Local 201314'!Z468 -> 18.5 | L22: 21.09 | P22: ≥ 66kV & ≤ 132kV | Q22: ='[5]Local 201314'!Z484 -> 18.45 | R22: 21.03
D23: > 132kV* | E23: ='[5]Local 201314'!Z453 -> 16.15 | F23: 18.41 | J23: > 132kV* | K23: ='[5]Local 201314'!Z469 -> 16.15 | L23: 18.41 | P23: > 132kV* | Q23: ='[5]Local 201314'!Z485 -> 16.1 | R23: 18.35
D24: * 132 kV or Transmission connected | J24: * 132 kV or Transmission connected | P24: * 132 kV or Transmission connected
B25: Urban - Excess NAC Nightsave Urban Small [local authorities] | H25: Rural - Excess NAC Nightsave Rural [local authorities]
E27: Excess network charge [R/kVA/m] | K27: Excess network charge [R/kVA/m] | Q27: Excess network charge [R/kVA/m]
C28: Transmission zone | I28: Transmission zone | O28: Transmission zone
D29: Voltage | J29: Voltage | P29: Voltage
F30: VAT incl | L30: VAT incl | R30: VAT incl
C31: ≤ 300km | D31: < 500V | E31: ='[5]Local 201314'!Z486 -> 17.46 | F31: =ROUND(E31 * (1 + VAT), 2) -> 19.9 | I31: ≤ 300km | J31: < 500V | K31: ='[5]Local 201314'!Z518 -> 8.84 | L31: =ROUND(K31 * (1 + VAT), 2) -> 10.08 | O31: ≤ 300km | P31: < 500V | Q31: ='[5]Local 201314'!Z502 -> 12.33 | R31: =ROUND(Q31 * (1 + VAT), 2) -> 14.06
D32: ≥ 500V & < 66kV | E32: ='[5]Local 201314'!Z487 -> 15.99 | F32: 18.23 | J32: ≥ 500V & ≤ 22kV | K32: ='[5]Local 201314'!Z519 -> 8.12 | L32: 9.26 | P32: ≥ 500V & ≤ 22kV | Q32: ='[5]Local 201314'!Z503 -> 11.31 | R32: 12.89
D33: ≥ 66kV & ≤ 132kV | E33: ='[5]Local 201314'!Z488 -> 18.38 | F33: 20.95
D34: > 132kV* | E34: ='[5]Local 201314'!Z489 -> 15.94 | F34: 18.17
C35: > 300km and ≤ 600km | D35: < 500V | E35: ='[5]Local 201314'!Z490 -> 17.5 | F35: 19.95 | I35: > 300km and ≤ 600km | J35: < 500V | K35: ='[5]Local 201314'!Z522 -> 8.86 | L35: =ROUND(K35 * (1 + VAT), 2) -> 10.1 | O35: > 300km and ≤ 600km | P35: < 500V | Q35: ='[5]Local 201314'!Z506 -> 12.38 | R35: =ROUND(Q35 * (1 + VAT), 2) -> 14.11
D36: ≥ 500V & < 66kV | E36: ='[5]Local 201314'!Z491 -> 16.05 | F36: 18.3 | J36: ≥ 500V & ≤ 22kV | K36: ='[5]Local 201314'!Z523 -> 8.15 | L36: 9.29 | P36: ≥ 500V & ≤ 22kV | Q36: ='[5]Local 201314'!Z507 -> 11.38 | R36: 12.97
D37: ≥ 66kV & ≤ 132kV | E37: ='[5]Local 201314'!Z492 -> 18.42 | F37: 21
D38: > 132kV* | E38: ='[5]Local 201314'!Z493 -> 16.01 | F38: 18.25
C39: > 600km and ≤ 900km | D39: < 500V | E39: ='[5]Local 201314'!Z494 -> 17.57 | F39: 20.03 | I39: > 600km and ≤ 900km | J39: < 500V | K39: ='[5]Local 201314'!Z526 -> 8.94 | L39: =ROUND(K39 * (1 + VAT), 2) -> 10.19 | O39: > 600km and ≤ 900km | P39: < 500V | Q39: ='[5]Local 201314'!Z510 -> 12.45 | R39: =ROUND(Q39 * (1 + VAT), 2) -> 14.19
D40: ≥ 500V & < 66kV | E40: ='[5]Local 201314'!Z495 -> 16.09 | F40: 18.34 | J40: ≥ 500V & ≤ 22kV | K40: ='[5]Local 201314'!Z527 -> 8.2 | L40: 9.35 | P40: ≥ 500V & ≤ 22kV | Q40: ='[5]Local 201314'!Z511 -> 11.43 | R40: 13.03
D41: ≥ 66kV & ≤ 132kV | E41: ='[5]Local 201314'!Z496 -> 18.47 | F41: 21.06
D42: > 132kV* | E42: ='[5]Local 201314'!Z497 -> 16.1 | F42: 18.35
C43: > 900km | D43: < 500V | E43: ='[5]Local 201314'!Z498 -> 17.6 | F43: 20.06 | I43: > 900km | J43: < 500V | K43: ='[5]Local 201314'!Z530 -> 8.95 | L43: =ROUND(K43 * (1 + VAT), 2) -> 10.2 | O43: > 900km | P43: < 500V | Q43: ='[5]Local 201314'!Z514 -> 12.49 | R43: =ROUND(Q43 * (1 + VAT), 2) -> 14.24
D44: ≥ 500V & < 66kV | E44: ='[5]Local 201314'!Z499 -> 16.15 | F44: 18.41 | J44: ≥ 500V & ≤ 22kV | K44: ='[5]Local 201314'!Z531 -> 8.21 | L44: 9.36 | P44: ≥ 500V & ≤ 22kV | Q44: ='[5]Local 201314'!Z515 -> 11.44 | R44: 13.04
D45: ≥ 66kV & ≤ 132kV | E45: ='[5]Local 201314'!Z500 -> 18.5 | F45: 21.09
D46: > 132kV* | E46: ='[5]Local 201314'!Z501 -> 16.15 | F46: 18.41
D47: * 132 kV or Transmission connected

Sheet Loss Factors
AA1: 0.14
C3: Distribution loss factors | G3: Transmission loss factors for loads
C4: Voltage | D4: Urban loss factor | E4: Rural loss factor | G4: Distance from Johannesburg | H4: Zone | I4: Loss factor
C5: < 500V | D5: =ROUND('[8]Loss Factors'!D13, 4) -> 1.1111 | E5: =ROUND('[8]Loss Factors'!E13, 4) -> 1.1527 | G5: ≤ 300km | H5: 0 | I5: =ROUND('[8]Loss Factors'!D6, 4) -> 1.0107
C6: ≥ 500V & < 66kV | D6: =ROUND('[8]Loss Factors'!D14, 4) -> 1.0957 | E6: =ROUND('[8]Loss Factors'!E14, 4) -> 1.1412 | G6: > 300km & ≤ 600km | H6: 1 | I6: =ROUND('[8]Loss Factors'!D7, 4) -> 1.0208
C7: ≥ 66kV & ≤ 132kV | D7: =ROUND('[8]Loss Factors'!D15, 4) -> 1.0611 | G7: > 600km & ≤ 900km | H7: 2 | I7: =ROUND('[8]Loss Factors'!D8, 4) -> 1.031
C8: > 132kV | D8: =ROUND('[8]Loss Factors'!D16, 4) -> 1 | G8: > 900km | H8: 3 | I8: =ROUND('[8]Loss Factors'!D9, 4) -> 1.0413
E10: 2012/13
C11: Loss factors for Transmission connected generators | E11: Loss factor
D13: Cape | E13: =TOuS!D38 -> 0.971
D14: Karoo | E14: =TOuS!D39 -> 0.995
D15: Kwazulu-Natal | E15: =TOuS!D40 -> 1.004
D16: Vaal | E16: =TOuS!D41 -> 1.02
D17: Waterburg | E17: =TOuS!D42 -> 1.023
D18: Mpumalanga | E18: =TOuS!D43 -> 1.021

Sheet Env levy (hidden)
B2: Urban
B3: Ave c/kWh | C3: Column Labels
B4: Row Labels | C4: 0 | D4: 1 | E4: 2 | F4: 3 | G4: Grand Total
B5: 1 | C5: =ROUND('[9]Enviro Levy New'!AA30, 4) -> 4.2442 | D5: =ROUND('[9]Enviro Levy New'!AB30, 4) -> 3.9229 | E5: =ROUND('[9]Enviro Levy New'!AC30, 4) -> 3.9527 | F5: =ROUND('[9]Enviro Levy New'!AD30, 4) -> 3.9952 | G5: =ROUND('[9]Enviro Levy New'!AE30, 4) -> 4.2303
B6: 2 | C6: =ROUND('[9]Enviro Levy New'!AA31, 4) -> 3.8186 | D6: =ROUND('[9]Enviro Levy New'!AB31, 4) -> 3.8568 | E6: =ROUND('[9]Enviro Levy New'!AC31, 4) -> 3.8954 | F6: =ROUND('[9]Enviro Levy New'!AD31, 4) -> 3.9343 | G6: =ROUND('[9]Enviro Levy New'!AE31, 4) -> 3.83
B7: 3 | C7: =ROUND('[9]Enviro Levy New'!AA32, 4) -> 3.6978 | D7: =ROUND('[9]Enviro Levy New'!AB32, 4) -> 3.7348 | E7: =ROUND('[9]Enviro Levy New'!AC32, 4) -> 3.7722 | F7: =ROUND('[9]Enviro Levy New'!AD32, 4) -> 3.8099 | G7: =ROUND('[9]Enviro Levy New'!AE32, 4) -> 3.7496
B8: 4 | C8: =ROUND('[9]Enviro Levy New'!AA33, 4) -> 3.485 | D8: =ROUND('[9]Enviro Levy New'!AB33, 4) -> 3.5199 | E8: =ROUND('[9]Enviro Levy New'!AC33, 4) -> 3.5551 | F8: =ROUND('[9]Enviro Levy New'!AD33, 4) -> 0 | G8: =ROUND('[9]Enviro Levy New'!AE33, 4) -> 3.4978
B9: Grand Total | C9: =ROUND('[9]Enviro Levy New'!AA34, 4) -> 3.7687 | D9: =ROUND('[9]Enviro Levy New'!AB34, 4) -> 3.6665 | E9: =ROUND('[9]Enviro Levy New'!AC34, 4) -> 3.799 | F9: =ROUND('[9]Enviro Levy New'!AD34, 4) -> 3.8482 | G9: =ROUND('[9]Enviro Levy New'!AE34, 4) -> 3.7606
B11: Rural pivot(excluding landrate)
B12: Ave c/kWh | C12: Column Labels
B13: Row Labels | C13: 0 | D13: 1 | E13: 2 | F13: 3 | G13: Grand Total
B14: 1 | C14: =ROUND('[9]Enviro Levy New'!AA41, 4) -> 4.0171 | D14: =ROUND('[9]Enviro Levy New'!AB41, 4) -> 4.0573 | E14: =ROUND('[9]Enviro Levy New'!AC41, 4) -> 4.0979 | F14: =ROUND('[9]Enviro Levy New'!AD41, 4) -> 4.1388 | G14: =ROUND('[9]Enviro Levy New'!AE41, 4) -> 4.0648
B15: 2 | C15: =ROUND('[9]Enviro Levy New'!AA42, 4) -> 3.9772 | D15: =ROUND('[9]Enviro Levy New'!AB42, 4) -> 4.0169 | E15: =ROUND('[9]Enviro Levy New'!AC42, 4) -> 4.0571 | F15: =ROUND('[9]Enviro Levy New'!AD42, 4) -> 4.0977 | G15: =ROUND('[9]Enviro Levy New'!AE42, 4) -> 4.0194
B16: Grand Total | C16: =ROUND('[9]Enviro Levy New'!AA43, 4) -> 3.9924 | D16: =ROUND('[9]Enviro Levy New'!AB43, 4) -> 4.037 | E16: =ROUND('[9]Enviro Levy New'!AC43, 4) -> 4.076 | F16: =ROUND('[9]Enviro Levy New'!AD43, 4) -> 4.117 | G16: =ROUND('[9]Enviro Levy New'!AE43, 4) -> 4.0399
B18: Landrate
B19: Ave c/kWh | C19: Column Labels
B20: Row Labels | C20: 0 | D20: Grand Total
B21: 1 | C21: =ROUND('[9]Enviro Levy New'!AA50, 4) -> 4.6543 | D21: =ROUND('[9]Enviro Levy New'!AB50, 4) -> 4.6543
B22: Grand Total | C22: =ROUND('[9]Enviro Levy New'!AA51, 4) -> 4.6543 | D22: =ROUND('[9]Enviro Levy New'!AB51, 4) -> 4.6543
